Workbook

Sheet Formulaire
N1: CUP
B2: Formulaire de commande | N2: 3499290000017
B4: Numéro de client: | D4: 5838009 | E4: Succursale d'approv.: | G4: 33599
B5: Nom propriétaire: | D5: Dany Doucet | E5: Date: | G5: =TODAY() -> 2018-12-28 | H5: 3263280111270
B6: No agence | D6: AG125 | E6: Nombres de Caisse : | G6: =IFERROR(SUM(Tableau1[commande]),"") -> 0
A8: ID | B8: Code Article | C8: commande | D8: Nom du produit | E8: Format | F8: UVC | G8: CUP | H8: Catégorie | I8: Description | Q8: ID | R8: Code Article | S8: Commande | T8: Nom du produit | U8: Format | V8: UVC | W8: CUP | X8: Catégorie | Y8: Description
A9: =ROW(C9)-8 -> 1 | B9: 606988 | D9: =VLOOKUP($B9,'Répertoire des produits'!$1:$1048576,4,FALSE) -> Cabernet-Sauvignon/Syrah J.P. Chenet vin de pays d'Oc | E9: =VLOOKUP($B9,'Répertoire des produits'!$1:$1048576,5,FALSE) -> 250 | F9: =VLOOKUP($B9,'Répertoire des produits'!$1:$1048576,6,FALSE) -> 24 | G9: =VLOOKUP($B9,'Répertoire des produits'!$1:$1048576,3,FALSE) -> 03263286324216 | H9: =VLOOKUP($B9,'Répertoire des produits'!$1:$1048576,2,FALSE) -> Vin rg petits formats | I9: =CONCATENATE(Tableau1[[#This Row],[Code Article]]&","&Tableau1[[#This Row],[Nom du produit]]&","&Tableau1[[#This Row],[Format]]&","&Tableau1[[#This Row],[UVC]]&","&Tableau1[[#This Row],[CUP]]&","&Tableau1[[#This Row],[Catégorie]]) -> 606988,Cabernet-Sauvignon/Syrah J.P. Chenet vin de pays d'Oc,250,24,03263286324216,Vin rg petits formats | Q9: 11 | R9: 857177 | T9: Clos la Coutale Cahors | U9: 750 | V9: 12 | W9: 03499290000017 | X9: Vin rg France Sud-Ouest
A10: 2 | B10: 464669 | D10: =VLOOKUP($B10,'Répertoire des produits'!$1:$1048576,4,FALSE) -> Cellier des Dauphins Prestige Côtes du Rhône | E10: =VLOOKUP($B10,'Répertoire des produits'!$1:$1048576,5,FALSE) -> 250 | F10: =VLOOKUP($B10,'Répertoire des produits'!$1:$1048576,6,FALSE) -> 24 | G10: =VLOOKUP($B10,'Répertoire des produits'!$1:$1048576,3,FALSE) -> 03179070184013 | H10: =VLOOKUP($B10,'Répertoire des produits'!$1:$1048576,2,FALSE) -> Vin rg petits formats | I10: =CONCATENATE(Tableau1[[#This Row],[Code Article]]&","&Tableau1[[#This Row],[Nom du produit]]&","&Tableau1[[#This Row],[Format]]&","&Tableau1[[#This Row],[UVC]]&","&Tableau1[[#This Row],[CUP]]&","&Tableau1[[#This Row],[Catégorie]]) -> 464669,Cellier des Dauphins Prestige Côtes du Rhône,250,24,03179070184013,Vin rg petits formats
A11: 3 | B11: 11184933 | D11: =VLOOKUP($B11,'Répertoire des produits'!$1:$1048576,4,FALSE) -> Shiraz/Malbec Fuzion Zuccardi Mendoza | E11: =VLOOKUP($B11,'Répertoire des produits'!$1:$1048576,5,FALSE) -> 375 | F11: =VLOOKUP($B11,'Répertoire des produits'!$1:$1048576,6,FALSE) -> 24 | G11: =VLOOKUP($B11,'Répertoire des produits'!$1:$1048576,3,FALSE) -> 07791728023107 | H11: =VLOOKUP($B11,'Répertoire des produits'!$1:$1048576,2,FALSE) -> Vin rg petits formats | I11: =CONCATENATE(Tableau1[[#This Row],[Code Article]]&","&Tableau1[[#This Row],[Nom du produit]]&","&Tableau1[[#This Row],[Format]]&","&Tableau1[[#This Row],[UVC]]&","&Tableau1[[#This Row],[CUP]]&","&Tableau1[[#This Row],[Catégorie]]) -> 11184933,Shiraz/Malbec Fuzion Zuccardi Mendoza,375,24,07791728023107,Vin rg petits formats
A12: 4 | B12: 123778 | D12: =VLOOKUP($B12,'Répertoire des produits'!$1:$1048576,4,FALSE) -> Benjamin Brunel Rasteau Côtes du Rhône Villages | E12: =VLOOKUP($B12,'Répertoire des produits'!$1:$1048576,5,FALSE) -> 750 | F12: =VLOOKUP($B12,'Répertoire des produits'!$1:$1048576,6,FALSE) -> 12 | G12: =VLOOKUP($B12,'Répertoire des produits'!$1:$1048576,3,FALSE) -> 03760168120008 | H12: =VLOOKUP($B12,'Répertoire des produits'!$1:$1048576,2,FALSE) -> Vin rg France Vallée du Rhône | I12: =CONCATENATE(Tableau1[[#This Row],[Code Article]]&","&Tableau1[[#This Row],[Nom du produit]]&","&Tableau1[[#This Row],[Format]]&","&Tableau1[[#This Row],[UVC]]&","&Tableau1[[#This Row],[CUP]]&","&Tableau1[[#This Row],[Catégorie]]) -> 123778,Benjamin Brunel Rasteau Côtes du Rhône Villages,750,12,03760168120008,Vin rg France Vallée du Rhône
A13: 5 | B13: 23358 | D13: =VLOOKUP($B13,'Répertoire des produits'!$1:$1048576,4,FALSE) -> J. Lebègue Saint-Emilion | E13: =VLOOKUP($B13,'Répertoire des produits'!$1:$1048576,5,FALSE) -> 750 | F13: =VLOOKUP($B13,'Répertoire des produits'!$1:$1048576,6,FALSE) -> 12 | G13: =VLOOKUP($B13,'Répertoire des produits'!$1:$1048576,3,FALSE) -> 00618726000046 | H13: =VLOOKUP($B13,'Répertoire des produits'!$1:$1048576,2,FALSE) -> Vin rg France Bordeaux | I13: =CONCATENATE(Tableau1[[#This Row],[Code Article]]&","&Tableau1[[#This Row],[Nom du produit]]&","&Tableau1[[#This Row],[Format]]&","&Tableau1[[#This Row],[UVC]]&","&Tableau1[[#This Row],[CUP]]&","&Tableau1[[#This Row],[Catégorie]]) -> 23358,J. Lebègue Saint-Emilion,750,12,00618726000046,Vin rg France Bordeaux
A14: 6 | B14: 237875 | D14: =VLOOKUP($B14,'Répertoire des produits'!$1:$1048576,4,FALSE) -> Bourgogne Pinot noir Réserve Chèvre noire Boisseaux-Estivan | E14: =VLOOKUP($B14,'Répertoire des produits'!$1:$1048576,5,FALSE) -> 750 | F14: =VLOOKUP($B14,'Répertoire des produits'!$1:$1048576,6,FALSE) -> 12 | G14: =VLOOKUP($B14,'Répertoire des produits'!$1:$1048576,3,FALSE) -> 03700061600207 | H14: =VLOOKUP($B14,'Répertoire des produits'!$1:$1048576,2,FALSE) -> Vin rg France Bourgogne | I14: =CONCATENATE(Tableau1[[#This Row],[Code Article]]&","&Tableau1[[#This Row],[Nom du produit]]&","&Tableau1[[#This Row],[Format]]&","&Tableau1[[#This Row],[UVC]]&","&Tableau1[[#This Row],[CUP]]&","&Tableau1[[#This Row],[Catégorie]]) -> 237875,Bourgogne Pinot noir Réserve Chèvre noire Boisseaux-Estivan,750,12,03700061600207,Vin rg France Bourgogne
A15: 7 | B15: 70540 | D15: =VLOOKUP($B15,'Répertoire des produits'!$1:$1048576,4,FALSE) -> Brouilly Georges Duboeuf | E15: =VLOOKUP($B15,'Répertoire des produits'!$1:$1048576,5,FALSE) -> 750 | F15: =VLOOKUP($B15,'Répertoire des produits'!$1:$1048576,6,FALSE) -> 12 | G15: =VLOOKUP($B15,'Répertoire des produits'!$1:$1048576,3,FALSE) -> 03351650001662 | H15: =VLOOKUP($B15,'Répertoire des produits'!$1:$1048576,2,FALSE) -> Vin rg France Beaujolais | I15: =CONCATENATE(Tableau1[[#This Row],[Code Article]]&","&Tableau1[[#This Row],[Nom du produit]]&","&Tableau1[[#This Row],[Format]]&","&Tableau1[[#This Row],[UVC]]&","&Tableau1[[#This Row],[CUP]]&","&Tableau1[[#This Row],[Catégorie]]) -> 70540,Brouilly Georges Duboeuf,750,12,03351650001662,Vin rg France Beaujolais
A16: 8 | B16: 628123 | D16: =VLOOKUP($B16,'Répertoire des produits'!$1:$1048576,4,FALSE) -> Brouilly Mignot | E16: =VLOOKUP($B16,'Répertoire des produits'!$1:$1048576,5,FALSE) -> 750 | F16: =VLOOKUP($B16,'Répertoire des produits'!$1:$1048576,6,FALSE) -> 12 | G16: =VLOOKUP($B16,'Répertoire des produits'!$1:$1048576,3,FALSE) -> 03257651018886 | H16: =VLOOKUP($B16,'Répertoire des produits'!$1:$1048576,2,FALSE) -> Vin rg France Beaujolais | I16: =CONCATENATE(Tableau1[[#This Row],[Code Article]]&","&Tableau1[[#This Row],[Nom du produit]]&","&Tableau1[[#This Row],[Format]]&","&Tableau1[[#This Row],[UVC]]&","&Tableau1[[#This Row],[CUP]]&","&Tableau1[[#This Row],[Catégorie]]) -> 628123,Brouilly Mignot,750,12,03257651018886,Vin rg France Beaujolais
A17: 9 | B17: 13152142 | D17: merlot grand sud | E17: 1000 | F17: 12 | H17: vin rouge de France | I17: =CONCATENATE(Tableau1[[#This Row],[Code Article]]&","&Tableau1[[#This Row],[Nom du produit]]&","&Tableau1[[#This Row],[Format]]&","&Tableau1[[#This Row],[UVC]]&","&Tableau1[[#This Row],[CUP]]&","&Tableau1[[#This Row],[Catégorie]]) -> 13152142,merlot grand sud,1000,12,,vin rouge de France
A18: 10 | B18: 12167211 | D18: =VLOOKUP($B18,'Répertoire des produits'!$1:$1048576,4,FALSE) -> Vive la vie | E18: =VLOOKUP($B18,'Répertoire des produits'!$1:$1048576,5,FALSE) -> 750 | F18: =VLOOKUP($B18,'Répertoire des produits'!$1:$1048576,6,FALSE) -> 12 | G18: =VLOOKUP($B18,'Répertoire des produits'!$1:$1048576,3,FALSE) -> 03263280111270 | H18: =VLOOKUP($B18,'Répertoire des produits'!$1:$1048576,2,FALSE) -> Vin rg France autres régions | I18: =CONCATENATE(Tableau1[[#This Row],[Code Article]]&","&Tableau1[[#This Row],[Nom du produit]]&","&Tableau1[[#This Row],[Format]]&","&Tableau1[[#This Row],[UVC]]&","&Tableau1[[#This Row],[CUP]]&","&Tableau1[[#This Row],[Catégorie]]) -> 12167211,Vive la vie,750,12,03263280111270,Vin rg France autres régions
A19: 11 | B19: 857177 | D19: =VLOOKUP($B19,'Répertoire des produits'!$1:$1048576,4,FALSE) -> Clos la Coutale Cahors | E19: =VLOOKUP($B19,'Répertoire des produits'!$1:$1048576,5,FALSE) -> 750 | F19: =VLOOKUP($B19,'Répertoire des produits'!$1:$1048576,6,FALSE) -> 12 | G19: =VLOOKUP($B19,'Répertoire des produits'!$1:$1048576,3,FALSE) -> 03499290000017 | H19: =VLOOKUP($B19,'Répertoire des produits'!$1:$1048576,2,FALSE) -> Vin rg France Sud-Ouest | I19: =CONCATENATE(Tableau1[[#This Row],[Code Article]]&","&Tableau1[[#This Row],[Nom du produit]]&","&Tableau1[[#This Row],[Format]]&","&Tableau1[[#This Row],[UVC]]&","&Tableau1[[#This Row],[CUP]]&","&Tableau1[[#This Row],[Catégorie]]) -> 857177,Clos la Coutale Cahors,750,12,03499290000017,Vin rg France Sud-Ouest
A20: 12 | B20: 221218 | D20: =VLOOKUP($B20,'Répertoire des produits'!$1:$1048576,4,FALSE) -> Comte André de Monpezat Cahors | E20: =VLOOKUP($B20,'Répertoire des produits'!$1:$1048576,5,FALSE) -> 750 | F20: =VLOOKUP($B20,'Répertoire des produits'!$1:$1048576,6,FALSE) -> 12 | G20: =VLOOKUP($B20,'Répertoire des produits'!$1:$1048576,3,FALSE) -> 03180611046646 | H20: =VLOOKUP($B20,'Répertoire des produits'!$1:$1048576,2,FALSE) -> Vin rg France Sud-Ouest | I20: =CONCATENATE(Tableau1[[#This Row],[Code Article]]&","&Tableau1[[#This Row],[Nom du produit]]&","&Tableau1[[#This Row],[Format]]&","&Tableau1[[#This Row],[UVC]]&","&Tableau1[[#This Row],[CUP]]&","&Tableau1[[#This Row],[Catégorie]]) -> 221218,Comte André de Monpezat Cahors,750,12,03180611046646,Vin rg France Sud-Ouest
A21: 13 | B21: 943 | D21: =VLOOKUP($B21,'Répertoire des produits'!$1:$1048576,4,FALSE) -> Mouton Cadet Bordeaux | E21: =VLOOKUP($B21,'Répertoire des produits'!$1:$1048576,5,FALSE) -> 750 | F21: =VLOOKUP($B21,'Répertoire des produits'!$1:$1048576,6,FALSE) -> 12 | G21: =VLOOKUP($B21,'Répertoire des produits'!$1:$1048576,3,FALSE) -> 03262151001757 | H21: =VLOOKUP($B21,'Répertoire des produits'!$1:$1048576,2,FALSE) -> Vin rg France Bordeaux | I21: =CONCATENATE(Tableau1[[#This Row],[Code Article]]&","&Tableau1[[#This Row],[Nom du produit]]&","&Tableau1[[#This Row],[Format]]&","&Tableau1[[#This Row],[UVC]]&","&Tableau1[[#This Row],[CUP]]&","&Tableau1[[#This Row],[Catégorie]]) -> 943,Mouton Cadet Bordeaux,750,12,03262151001757,Vin rg France Bordeaux
A22: 14 | B22: 303529 | D22: =VLOOKUP($B22,'Répertoire des produits'!$1:$1048576,4,FALSE) -> Château St-Didier-Parnac Cahors | E22: =VLOOKUP($B22,'Répertoire des produits'!$1:$1048576,5,FALSE) -> 750 | F22: =VLOOKUP($B22,'Répertoire des produits'!$1:$1048576,6,FALSE) -> 12 | G22: =VLOOKUP($B22,'Répertoire des produits'!$1:$1048576,3,FALSE) -> 03180611029175 | H22: =VLOOKUP($B22,'Répertoire des produits'!$1:$1048576,2,FALSE) -> Vin rg France Sud-Ouest | I22: =CONCATENATE(Tableau1[[#This Row],[Code Article]]&","&Tableau1[[#This Row],[Nom du produit]]&","&Tableau1[[#This Row],[Format]]&","&Tableau1[[#This Row],[UVC]]&","&Tableau1[[#This Row],[CUP]]&","&Tableau1[[#This Row],[Catégorie]]) -> 303529,Château St-Didier-Parnac Cahors,750,12,03180611029175,Vin rg France Sud-Ouest
A23: 15 | B23: 10802904 | D23: =VLOOKUP($B23,'Répertoire des produits'!$1:$1048576,4,FALSE) -> Pinot noir Les Jamelles vin de pays d'Oc | E23: =VLOOKUP($B23,'Répertoire des produits'!$1:$1048576,5,FALSE) -> 750 | F23: =VLOOKUP($B23,'Répertoire des produits'!$1:$1048576,6,FALSE) -> 12 | G23: =VLOOKUP($B23,'Répertoire des produits'!$1:$1048576,3,FALSE) -> 03525490013240 | H23: =VLOOKUP($B23,'Répertoire des produits'!$1:$1048576,2,FALSE) -> Vin rg France Languedoc | I23: =CONCATENATE(Tableau1[[#This Row],[Code Article]]&","&Tableau1[[#This Row],[Nom du produit]]&","&Tableau1[[#This Row],[Format]]&","&Tableau1[[#This Row],[UVC]]&","&Tableau1[[#This Row],[CUP]]&","&Tableau1[[#This Row],[Catégorie]]) -> 10802904,Pinot noir Les Jamelles vin de pays d'Oc,750,12,03525490013240,Vin rg France Languedoc
A24: 16 | B24: 10374997 | D24: =VLOOKUP($B24,'Répertoire des produits'!$1:$1048576,4,FALSE) -> Pinot noir De La Chevalière vin de pays d'Oc | E24: =VLOOKUP($B24,'Répertoire des produits'!$1:$1048576,5,FALSE) -> 750 | F24: =VLOOKUP($B24,'Répertoire des produits'!$1:$1048576,6,FALSE) -> 12 | G24: =VLOOKUP($B24,'Répertoire des produits'!$1:$1048576,3,FALSE) -> 03546680019415 | H24: =VLOOKUP($B24,'Répertoire des produits'!$1:$1048576,2,FALSE) -> Vin rg France Languedoc | I24: =CONCATENATE(Tableau1[[#This Row],[Code Article]]&","&Tableau1[[#This Row],[Nom du produit]]&","&Tableau1[[#This Row],[Format]]&","&Tableau1[[#This Row],[UVC]]&","&Tableau1[[#This Row],[CUP]]&","&Tableau1[[#This Row],[Catégorie]]) -> 10374997,Pinot noir De La Chevalière vin de pays d'Oc,750,12,03546680019415,Vin rg France Languedoc
A25: 17 | B25: 365924 | D25: =VLOOKUP($B25,'Répertoire des produits'!$1:$1048576,4,FALSE) -> Beaujolais Villages Combe aux Jacques Louis Jadot | E25: =VLOOKUP($B25,'Répertoire des produits'!$1:$1048576,5,FALSE) -> 750 | F25: =VLOOKUP($B25,'Répertoire des produits'!$1:$1048576,6,FALSE) -> 12 | G25: =VLOOKUP($B25,'Répertoire des produits'!$1:$1048576,3,FALSE) -> 03535923001003 | H25: =VLOOKUP($B25,'Répertoire des produits'!$1:$1048576,2,FALSE) -> Vin rg France Beaujolais | I25: =CONCATENATE(Tableau1[[#This Row],[Code Article]]&","&Tableau1[[#This Row],[Nom du produit]]&","&Tableau1[[#This Row],[Format]]&","&Tableau1[[#This Row],[UVC]]&","&Tableau1[[#This Row],[CUP]]&","&Tableau1[[#This Row],[Catégorie]]) -> 365924,Beaujolais Villages Combe aux Jacques Louis Jadot,750,12,03535923001003,Vin rg France Beaujolais
A26: 18 | B26: 2881 | D26: =VLOOKUP($B26,'Répertoire des produits'!$1:$1048576,4,FALSE) -> Beaujolais Pisse-Dru Noémie Vernaux | E26: =VLOOKUP($B26,'Répertoire des produits'!$1:$1048576,5,FALSE) -> 750 | F26: =VLOOKUP($B26,'Répertoire des produits'!$1:$1048576,6,FALSE) -> 12 | G26: =VLOOKUP($B26,'Répertoire des produits'!$1:$1048576,3,FALSE) -> 03040072510509 | H26: =VLOOKUP($B26,'Répertoire des produits'!$1:$1048576,2,FALSE) -> Vin rg France Beaujolais | I26: =CONCATENATE(Tableau1[[#This Row],[Code Article]]&","&Tableau1[[#This Row],[Nom du produit]]&","&Tableau1[[#This Row],[Format]]&","&Tableau1[[#This Row],[UVC]]&","&Tableau1[[#This Row],[CUP]]&","&Tableau1[[#This Row],[Catégorie]]) -> 2881,Beaujolais Pisse-Dru Noémie Vernaux,750,12,03040072510509,Vin rg France Beaujolais
A27: 19 | B27: 11374391 | D27: =VLOOKUP($B27,'Répertoire des produits'!$1:$1048576,4,FALSE) -> Terre à Terre Corbières | E27: =VLOOKUP($B27,'Répertoire des produits'!$1:$1048576,5,FALSE) -> 750 | F27: =VLOOKUP($B27,'Répertoire des produits'!$1:$1048576,6,FALSE) -> 12 | G27: =VLOOKUP($B27,'Répertoire des produits'!$1:$1048576,3,FALSE) -> 03564732005094 | H27: =VLOOKUP($B27,'Répertoire des produits'!$1:$1048576,2,FALSE) -> Vin rg France Languedoc | I27: =CONCATENATE(Tableau1[[#This Row],[Code Article]]&","&Tableau1[[#This Row],[Nom du produit]]&","&Tableau1[[#This Row],[Format]]&","&Tableau1[[#This Row],[UVC]]&","&Tableau1[[#This Row],[CUP]]&","&Tableau1[[#This Row],[Catégorie]]) -> 11374391,Terre à Terre Corbières,750,12,03564732005094,Vin rg France Languedoc
A28: 20 | B28: 331090 | D28: =VLOOKUP($B28,'Répertoire des produits'!$1:$1048576,4,FALSE) -> Grande Réserve des Challières Côtes du Ventoux | E28: =VLOOKUP($B28,'Répertoire des produits'!$1:$1048576,5,FALSE) -> 750 | F28: =VLOOKUP($B28,'Répertoire des produits'!$1:$1048576,6,FALSE) -> 12 | G28: =VLOOKUP($B28,'Répertoire des produits'!$1:$1048576,3,FALSE) -> 03260980006110 | H28: =VLOOKUP($B28,'Répertoire des produits'!$1:$1048576,2,FALSE) -> Vin rg France Vallée du Rhône | I28: =CONCATENATE(Tableau1[[#This Row],[Code Article]]&","&Tableau1[[#This Row],[Nom du produit]]&","&Tableau1[[#This Row],[Format]]&","&Tableau1[[#This Row],[UVC]]&","&Tableau1[[#This Row],[CUP]]&","&Tableau1[[#This Row],[Catégorie]]) -> 331090,Grande Réserve des Challières Côtes du Ventoux,750,12,03260980006110,Vin rg France Vallée du Rhône
A29: 21 | B29: 11459482 | D29: beaujolais fun georges duboeuf | E29: 750 | F29: 12 | H29: vin rouge France | I29: =CONCATENATE(Tableau1[[#This Row],[Code Article]]&","&Tableau1[[#This Row],[Nom du produit]]&","&Tableau1[[#This Row],[Format]]&","&Tableau1[[#This Row],[UVC]]&","&Tableau1[[#This Row],[CUP]]&","&Tableau1[[#This Row],[Catégorie]]) -> 11459482,beaujolais fun georges duboeuf,750,12,,vin rouge France
A30: 22 | B30: 10536757 | D30: =VLOOKUP($B30,'Répertoire des produits'!$1:$1048576,4,FALSE) -> Cab.-Sauv./Syrah J.P. Chenet vin de pays d'Oc | E30: =VLOOKUP($B30,'Répertoire des produits'!$1:$1048576,5,FALSE) -> 750 | F30: =VLOOKUP($B30,'Répertoire des produits'!$1:$1048576,6,FALSE) -> 12 | G30: =VLOOKUP($B30,'Répertoire des produits'!$1:$1048576,3,FALSE) -> 03263286301323 | H30: =VLOOKUP($B30,'Répertoire des produits'!$1:$1048576,2,FALSE) -> Vin rg France Languedoc | I30: =CONCATENATE(Tableau1[[#This Row],[Code Article]]&","&Tableau1[[#This Row],[Nom du produit]]&","&Tableau1[[#This Row],[Format]]&","&Tableau1[[#This Row],[UVC]]&","&Tableau1[[#This Row],[CUP]]&","&Tableau1[[#This Row],[Catégorie]]) -> 10536757,Cab.-Sauv./Syrah J.P. Chenet vin de pays d'Oc,750,12,03263286301323,Vin rg France Languedoc
A31: 23 | B31: 485557 | D31: =VLOOKUP($B31,'Répertoire des produits'!$1:$1048576,4,FALSE) -> Merlot/Cabernet J.P. Chenet vin de pays d'Oc | E31: =VLOOKUP($B31,'Répertoire des produits'!$1:$1048576,5,FALSE) -> 750 | F31: =VLOOKUP($B31,'Répertoire des produits'!$1:$1048576,6,FALSE) -> 12 | G31: =VLOOKUP($B31,'Répertoire des produits'!$1:$1048576,3,FALSE) -> 03500610014789 | H31: =VLOOKUP($B31,'Répertoire des produits'!$1:$1048576,2,FALSE) -> Vin rg France Languedoc | I31: =CONCATENATE(Tableau1[[#This Row],[Code Article]]&","&Tableau1[[#This Row],[Nom du produit]]&","&Tableau1[[#This Row],[Format]]&","&Tableau1[[#This Row],[UVC]]&","&Tableau1[[#This Row],[CUP]]&","&Tableau1[[#This Row],[Catégorie]]) -> 485557,Merlot/Cabernet J.P. Chenet vin de pays d'Oc,750,12,03500610014789,Vin rg France Languedoc
A32: 24 | B32: 11095949 | D32: LA MONTAGNETTE SIGNARGUES RHONE | E32: 750 | F32: 12 | H32: VIN ROUGE FRANCE | I32: =CONCATENATE(Tableau1[[#This Row],[Code Article]]&","&Tableau1[[#This Row],[Nom du produit]]&","&Tableau1[[#This Row],[Format]]&","&Tableau1[[#This Row],[UVC]]&","&Tableau1[[#This Row],[CUP]]&","&Tableau1[[#This Row],[Catégorie]]) -> 11095949,LA MONTAGNETTE SIGNARGUES RHONE,750,12,,VIN ROUGE FRANCE
A33: 25 | B33: 570036 | D33: LA BOURREROI COLLECTION | E33: 750 | F33: 12 | H33: VIN ROUGE FRANCE | I33: =CONCATENATE(Tableau1[[#This Row],[Code Article]]&","&Tableau1[[#This Row],[Nom du produit]]&","&Tableau1[[#This Row],[Format]]&","&Tableau1[[#This Row],[UVC]]&","&Tableau1[[#This Row],[CUP]]&","&Tableau1[[#This Row],[Catégorie]]) -> 570036,LA BOURREROI COLLECTION,750,12,,VIN ROUGE FRANCE
A34: 26 | B34: 263640 | D34: =VLOOKUP($B34,'Répertoire des produits'!$1:$1048576,4,FALSE) -> La Vieille Ferme Côtes du Ventoux | E34: =VLOOKUP($B34,'Répertoire des produits'!$1:$1048576,5,FALSE) -> 750 | F34: =VLOOKUP($B34,'Répertoire des produits'!$1:$1048576,6,FALSE) -> 12 | G34: =VLOOKUP($B34,'Répertoire des produits'!$1:$1048576,3,FALSE) -> 00631470000018 | H34: =VLOOKUP($B34,'Répertoire des produits'!$1:$1048576,2,FALSE) -> Vin rg France Vallée du Rhône | I34: =CONCATENATE(Tableau1[[#This Row],[Code Article]]&","&Tableau1[[#This Row],[Nom du produit]]&","&Tableau1[[#This Row],[Format]]&","&Tableau1[[#This Row],[UVC]]&","&Tableau1[[#This Row],[CUP]]&","&Tableau1[[#This Row],[Catégorie]]) -> 263640,La Vieille Ferme Côtes du Ventoux,750,12,00631470000018,Vin rg France Vallée du Rhône
A35: 27 | B35: 10846026 | D35: =VLOOKUP($B35,'Répertoire des produits'!$1:$1048576,4,FALSE) -> Pinot noir/Syrah C'Est La Vie vin de pays d'Oc | E35: =VLOOKUP($B35,'Répertoire des produits'!$1:$1048576,5,FALSE) -> 750 | F35: =VLOOKUP($B35,'Répertoire des produits'!$1:$1048576,6,FALSE) -> 12 | G35: =VLOOKUP($B35,'Répertoire des produits'!$1:$1048576,3,FALSE) -> 00087113115227 | H35: =VLOOKUP($B35,'Répertoire des produits'!$1:$1048576,2,FALSE) -> Vin rg France Languedoc | I35: =CONCATENATE(Tableau1[[#This Row],[Code Article]]&","&Tableau1[[#This Row],[Nom du produit]]&","&Tableau1[[#This Row],[Format]]&","&Tableau1[[#This Row],[UVC]]&","&Tableau1[[#This Row],[CUP]]&","&Tableau1[[#This Row],[Catégorie]]) -> 10846026,Pinot noir/Syrah C'Est La Vie vin de pays d'Oc,750,12,00087113115227,Vin rg France Languedoc
A36: 28 | B36: 122077 | D36: =VLOOKUP($B36,'Répertoire des produits'!$1:$1048576,4,FALSE) -> Beaujolais Villages Georges Duboeuf | E36: =VLOOKUP($B36,'Répertoire des produits'!$1:$1048576,5,FALSE) -> 750 | F36: =VLOOKUP($B36,'Répertoire des produits'!$1:$1048576,6,FALSE) -> 12 | G36: =VLOOKUP($B36,'Répertoire des produits'!$1:$1048576,3,FALSE) -> 03351650000078 | H36: =VLOOKUP($B36,'Répertoire des produits'!$1:$1048576,2,FALSE) -> Vin rg France Beaujolais | I36: =CONCATENATE(Tableau1[[#This Row],[Code Article]]&","&Tableau1[[#This Row],[Nom du produit]]&","&Tableau1[[#This Row],[Format]]&","&Tableau1[[#This Row],[UVC]]&","&Tableau1[[#This Row],[CUP]]&","&Tableau1[[#This Row],[Catégorie]]) -> 122077,Beaujolais Villages Georges Duboeuf,750,12,03351650000078,Vin rg France Beaujolais
A37: 29 | B37: 11676145 | D37: =VLOOKUP($B37,'Répertoire des produits'!$1:$1048576,4,FALSE) -> Grenache/Syrah Gérard Bertrand Grand Terroir C.d.R. Tautavel | E37: =VLOOKUP($B37,'Répertoire des produits'!$1:$1048576,5,FALSE) -> 750 | F37: =VLOOKUP($B37,'Répertoire des produits'!$1:$1048576,6,FALSE) -> 12 | G37: =VLOOKUP($B37,'Répertoire des produits'!$1:$1048576,3,FALSE) -> 03514124231037 | H37: =VLOOKUP($B37,'Répertoire des produits'!$1:$1048576,2,FALSE) -> Vin rg France Languedoc | I37: =CONCATENATE(Tableau1[[#This Row],[Code Article]]&","&Tableau1[[#This Row],[Nom du produit]]&","&Tableau1[[#This Row],[Format]]&","&Tableau1[[#This Row],[UVC]]&","&Tableau1[[#This Row],[CUP]]&","&Tableau1[[#This Row],[Catégorie]]) -> 11676145,Grenache/Syrah Gérard Bertrand Grand Terroir C.d.R. Tautavel,750,12,03514124231037,Vin rg France Languedoc
A38: 30 | B38: 508879 | D38: =VLOOKUP($B38,'Répertoire des produits'!$1:$1048576,4,FALSE) -> Carrelot des Amants Côtes du Brulhois | E38: =VLOOKUP($B38,'Répertoire des produits'!$1:$1048576,5,FALSE) -> 750 | F38: =VLOOKUP($B38,'Répertoire des produits'!$1:$1048576,6,FALSE) -> 12 | G38: =VLOOKUP($B38,'Répertoire des produits'!$1:$1048576,3,FALSE) -> 03586610000441 | H38: =VLOOKUP($B38,'Répertoire des produits'!$1:$1048576,2,FALSE) -> Vin rg France Sud-Ouest | I38: =CONCATENATE(Tableau1[[#This Row],[Code Article]]&","&Tableau1[[#This Row],[Nom du produit]]&","&Tableau1[[#This Row],[Format]]&","&Tableau1[[#This Row],[UVC]]&","&Tableau1[[#This Row],[CUP]]&","&Tableau1[[#This Row],[Catégorie]]) -> 508879,Carrelot des Amants Côtes du Brulhois,750,12,03586610000441,Vin rg France Sud-Ouest
A39: 31 | B39: 10915263 | D39: =VLOOKUP($B39,'Répertoire des produits'!$1:$1048576,4,FALSE) -> Château Saint-Antoine Réserve du Château Bordeaux supérieur | E39: =VLOOKUP($B39,'Répertoire des produits'!$1:$1048576,5,FALSE) -> 750 | F39: =VLOOKUP($B39,'Répertoire des produits'!$1:$1048576,6,FALSE) -> 12 | G39: =VLOOKUP($B39,'Répertoire des produits'!$1:$1048576,3,FALSE) -> 03573420305316 | H39: =VLOOKUP($B39,'Répertoire des produits'!$1:$1048576,2,FALSE) -> Vin rg France Bordeaux | I39: =CONCATENATE(Tableau1[[#This Row],[Code Article]]&","&Tableau1[[#This Row],[Nom du produit]]&","&Tableau1[[#This Row],[Format]]&","&Tableau1[[#This Row],[UVC]]&","&Tableau1[[#This Row],[CUP]]&","&Tableau1[[#This Row],[Catégorie]]) -> 10915263,Château Saint-Antoine Réserve du Château Bordeaux supérieur,750,12,03573420305316,Vin rg France Bordeaux
A40: 32 | B40: 292904 | D40: =VLOOKUP($B40,'Répertoire des produits'!$1:$1048576,4,FALSE) -> Croix Saint-Martin Bordeaux | E40: =VLOOKUP($B40,'Répertoire des produits'!$1:$1048576,5,FALSE) -> 750 | F40: =VLOOKUP($B40,'Répertoire des produits'!$1:$1048576,6,FALSE) -> 12 | G40: =VLOOKUP($B40,'Répertoire des produits'!$1:$1048576,3,FALSE) -> 03258691243115 | H40: =VLOOKUP($B40,'Répertoire des produits'!$1:$1048576,2,FALSE) -> Vin rg France Bordeaux | I40: =CONCATENATE(Tableau1[[#This Row],[Code Article]]&","&Tableau1[[#This Row],[Nom du produit]]&","&Tableau1[[#This Row],[Format]]&","&Tableau1[[#This Row],[UVC]]&","&Tableau1[[#This Row],[CUP]]&","&Tableau1[[#This Row],[Catégorie]]) -> 292904,Croix Saint-Martin Bordeaux,750,12,03258691243115,Vin rg France Bordeaux
A41: 33 | B41: 12477949 | D41: LES PETITS CARREAUX | E41: 750 | F41: 12 | G41: =VLOOKUP($B41,'Répertoire des produits'!$1:$1048576,3,FALSE) ->  | H41: VIN ROUGE FRANCE | I41: =CONCATENATE(Tableau1[[#This Row],[Code Article]]&","&Tableau1[[#This Row],[Nom du produit]]&","&Tableau1[[#This Row],[Format]]&","&Tableau1[[#This Row],[UVC]]&","&Tableau1[[#This Row],[CUP]]&","&Tableau1[[#This Row],[Catégorie]]) -> 
A42: 34 | B42: 407544 | D42: =VLOOKUP($B42,'Répertoire des produits'!$1:$1048576,4,FALSE) -> Merlot Baron Philippe de Rothschild vin de pays d'Oc | E42: =VLOOKUP($B42,'Répertoire des produits'!$1:$1048576,5,FALSE) -> 750 | F42: =VLOOKUP($B42,'Répertoire des produits'!$1:$1048576,6,FALSE) -> 12 | G42: =VLOOKUP($B42,'Répertoire des produits'!$1:$1048576,3,FALSE) -> 00083960707707 | H42: =VLOOKUP($B42,'Répertoire des produits'!$1:$1048576,2,FALSE) -> Vin rg France Languedoc | I42: =CONCATENATE(Tableau1[[#This Row],[Code Article]]&","&Tableau1[[#This Row],[Nom du produit]]&","&Tableau1[[#This Row],[Format]]&","&Tableau1[[#This Row],[UVC]]&","&Tableau1[[#This Row],[CUP]]&","&Tableau1[[#This Row],[Catégorie]]) -> 407544,Merlot Baron Philippe de Rothschild vin de pays d'Oc,750,12,00083960707707,Vin rg France Languedoc
A43: 35 | B43: 11581429 | D43: =VLOOKUP($B43,'Répertoire des produits'!$1:$1048576,4,FALSE) -> Cabernet-Sauvignon/Syrah Etienne Marceau vin pays d'Oc | E43: =VLOOKUP($B43,'Répertoire des produits'!$1:$1048576,5,FALSE) -> 1000 | F43: =VLOOKUP($B43,'Répertoire des produits'!$1:$1048576,6,FALSE) -> 12 | G43: =VLOOKUP($B43,'Répertoire des produits'!$1:$1048576,3,FALSE) -> 00056049028901 | H43: =VLOOKUP($B43,'Répertoire des produits'!$1:$1048576,2,FALSE) -> Vin rg France Languedoc | I43: =CONCATENATE(Tableau1[[#This Row],[Code Article]]&","&Tableau1[[#This Row],[Nom du produit]]&","&Tableau1[[#This Row],[Format]]&","&Tableau1[[#This Row],[UVC]]&","&Tableau1[[#This Row],[CUP]]&","&Tableau1[[#This Row],[Catégorie]]) -> 11581429,Cabernet-Sauvignon/Syrah Etienne Marceau vin pays d'Oc,1000,12,00056049028901,Vin rg France Languedoc
A44: 36 | B44: 434993 | D44: =VLOOKUP($B44,'Répertoire des produits'!$1:$1048576,4,FALSE) -> Merlot Réserve Maison Nicolas Pays d`Oc IGP | E44: =VLOOKUP($B44,'Répertoire des produits'!$1:$1048576,5,FALSE) -> 750 | F44: =VLOOKUP($B44,'Répertoire des produits'!$1:$1048576,6,FALSE) -> 12 | G44: =VLOOKUP($B44,'Répertoire des produits'!$1:$1048576,3,FALSE) -> 00083729002463 | H44: =VLOOKUP($B44,'Répertoire des produits'!$1:$1048576,2,FALSE) -> Vin rg France Languedoc | I44: =CONCATENATE(Tableau1[[#This Row],[Code Article]]&","&Tableau1[[#This Row],[Nom du produit]]&","&Tableau1[[#This Row],[Format]]&","&Tableau1[[#This Row],[UVC]]&","&Tableau1[[#This Row],[CUP]]&","&Tableau1[[#This Row],[Catégorie]]) -> 434993,Merlot Réserve Maison Nicolas Pays d`Oc IGP,750,12,00083729002463,Vin rg France Languedoc
A45: 37 | B45: 202499 | D45: =VLOOKUP($B45,'Répertoire des produits'!$1:$1048576,4,FALSE) -> Château Cazal-Viel vieilles vignes Saint-Chinian | E45: =VLOOKUP($B45,'Répertoire des produits'!$1:$1048576,5,FALSE) -> 750 | F45: =VLOOKUP($B45,'Répertoire des produits'!$1:$1048576,6,FALSE) -> 12 | G45: =VLOOKUP($B45,'Répertoire des produits'!$1:$1048576,3,FALSE) -> 03357780000414 | H45: =VLOOKUP($B45,'Répertoire des produits'!$1:$1048576,2,FALSE) -> Vin rg France Languedoc | I45: =CONCATENATE(Tableau1[[#This Row],[Code Article]]&","&Tableau1[[#This Row],[Nom du produit]]&","&Tableau1[[#This Row],[Format]]&","&Tableau1[[#This Row],[UVC]]&","&Tableau1[[#This Row],[CUP]]&","&Tableau1[[#This Row],[Catégorie]]) -> 202499,Château Cazal-Viel vieilles vignes Saint-Chinian,750,12,03357780000414,Vin rg France Languedoc
A46: 38 | B46: 560748 | D46: =VLOOKUP($B46,'Répertoire des produits'!$1:$1048576,4,FALSE) -> La Vieille Église Côtes du Marmandais | E46: =VLOOKUP($B46,'Répertoire des produits'!$1:$1048576,5,FALSE) -> 750 | F46: =VLOOKUP($B46,'Répertoire des produits'!$1:$1048576,6,FALSE) -> 12 | G46: =VLOOKUP($B46,'Répertoire des produits'!$1:$1048576,3,FALSE) -> 03468000013982 | H46: =VLOOKUP($B46,'Répertoire des produits'!$1:$1048576,2,FALSE) -> Vin rg France Sud-Ouest | I46: =CONCATENATE(Tableau1[[#This Row],[Code Article]]&","&Tableau1[[#This Row],[Nom du produit]]&","&Tableau1[[#This Row],[Format]]&","&Tableau1[[#This Row],[UVC]]&","&Tableau1[[#This Row],[CUP]]&","&Tableau1[[#This Row],[Catégorie]]) -> 560748,La Vieille Église Côtes du Marmandais,750,12,03468000013982,Vin rg France Sud-Ouest
A47: 39 | B47: 605287 | D47: =VLOOKUP($B47,'Répertoire des produits'!$1:$1048576,4,FALSE) -> Château La Lieue Coteaux Varois en Provence | E47: =VLOOKUP($B47,'Répertoire des produits'!$1:$1048576,5,FALSE) -> 750 | F47: =VLOOKUP($B47,'Répertoire des produits'!$1:$1048576,6,FALSE) -> 12 | G47: =VLOOKUP($B47,'Répertoire des produits'!$1:$1048576,3,FALSE) -> 03760015200013 | H47: =VLOOKUP($B47,'Répertoire des produits'!$1:$1048576,2,FALSE) -> Vin rg France autres régions | I47: =CONCATENATE(Tableau1[[#This Row],[Code Article]]&","&Tableau1[[#This Row],[Nom du produit]]&","&Tableau1[[#This Row],[Format]]&","&Tableau1[[#This Row],[UVC]]&","&Tableau1[[#This Row],[CUP]]&","&Tableau1[[#This Row],[Catégorie]]) -> 605287,Château La Lieue Coteaux Varois en Provence,750,12,03760015200013,Vin rg France autres régions
A48: 40 | B48: 10841161 | D48: cistus douro | E48: 750 | F48: 12 | H48: rouge Espagne | I48: =CONCATENATE(Tableau1[[#This Row],[Code Article]]&","&Tableau1[[#This Row],[Nom du produit]]&","&Tableau1[[#This Row],[Format]]&","&Tableau1[[#This Row],[UVC]]&","&Tableau1[[#This Row],[CUP]]&","&Tableau1[[#This Row],[Catégorie]]) -> 10841161,cistus douro,750,12,,rouge Espagne
A49: 41 | B49: 854422 | D49: =VLOOKUP($B49,'Répertoire des produits'!$1:$1048576,4,FALSE) -> Monasterio de Las Vinas Reserva Carinena | E49: =VLOOKUP($B49,'Répertoire des produits'!$1:$1048576,5,FALSE) -> 750 | F49: =VLOOKUP($B49,'Répertoire des produits'!$1:$1048576,6,FALSE) -> 12 | G49: =VLOOKUP($B49,'Répertoire des produits'!$1:$1048576,3,FALSE) -> 08412075050231 | H49: =VLOOKUP($B49,'Répertoire des produits'!$1:$1048576,2,FALSE) -> Vin rg Espagne | I49: =CONCATENATE(Tableau1[[#This Row],[Code Article]]&","&Tableau1[[#This Row],[Nom du produit]]&","&Tableau1[[#This Row],[Format]]&","&Tableau1[[#This Row],[UVC]]&","&Tableau1[[#This Row],[CUP]]&","&Tableau1[[#This Row],[Catégorie]]) -> 854422,Monasterio de Las Vinas Reserva Carinena,750,12,08412075050231,Vin rg Espagne
A50: 42 | B50: 10324623 | D50: =VLOOKUP($B50,'Répertoire des produits'!$1:$1048576,4,FALSE) -> Borsao Seleccion Campo de Borja | E50: =VLOOKUP($B50,'Répertoire des produits'!$1:$1048576,5,FALSE) -> 750 | F50: =VLOOKUP($B50,'Répertoire des produits'!$1:$1048576,6,FALSE) -> 12 | G50: =VLOOKUP($B50,'Répertoire des produits'!$1:$1048576,3,FALSE) -> 08412423120036 | H50: =VLOOKUP($B50,'Répertoire des produits'!$1:$1048576,2,FALSE) -> Vin rg Espagne | I50: =CONCATENATE(Tableau1[[#This Row],[Code Article]]&","&Tableau1[[#This Row],[Nom du produit]]&","&Tableau1[[#This Row],[Format]]&","&Tableau1[[#This Row],[UVC]]&","&Tableau1[[#This Row],[CUP]]&","&Tableau1[[#This Row],[Catégorie]]) -> 10324623,Borsao Seleccion Campo de Borja,750,12,08412423120036,Vin rg Espagne
A51: 43 | B51: 978387 | D51: =VLOOKUP($B51,'Répertoire des produits'!$1:$1048576,4,FALSE) -> Tempranillo Hoya de Cadenas Reserva Utiel-Requena | E51: =VLOOKUP($B51,'Répertoire des produits'!$1:$1048576,5,FALSE) -> 750 | F51: =VLOOKUP($B51,'Répertoire des produits'!$1:$1048576,6,FALSE) -> 12 | G51: =VLOOKUP($B51,'Répertoire des produits'!$1:$1048576,3,FALSE) -> 08410310602757 | H51: =VLOOKUP($B51,'Répertoire des produits'!$1:$1048576,2,FALSE) -> Vin rg Espagne | I51: =CONCATENATE(Tableau1[[#This Row],[Code Article]]&","&Tableau1[[#This Row],[Nom du produit]]&","&Tableau1[[#This Row],[Format]]&","&Tableau1[[#This Row],[UVC]]&","&Tableau1[[#This Row],[CUP]]&","&Tableau1[[#This Row],[Catégorie]]) -> 978387,Tempranillo Hoya de Cadenas Reserva Utiel-Requena,750,12,08410310602757,Vin rg Espagne
A52: 44 | B52: 250548 | D52: =VLOOKUP($B52,'Répertoire des produits'!$1:$1048576,4,FALSE) -> Meia Encosta Dâo | E52: =VLOOKUP($B52,'Répertoire des produits'!$1:$1048576,5,FALSE) -> 750 | F52: =VLOOKUP($B52,'Répertoire des produits'!$1:$1048576,6,FALSE) -> 12 | G52: =VLOOKUP($B52,'Répertoire des produits'!$1:$1048576,3,FALSE) -> 05601129034249 | H52: =VLOOKUP($B52,'Répertoire des produits'!$1:$1048576,2,FALSE) -> Vin rg Portugal | I52: =CONCATENATE(Tableau1[[#This Row],[Code Article]]&","&Tableau1[[#This Row],[Nom du produit]]&","&Tableau1[[#This Row],[Format]]&","&Tableau1[[#This Row],[UVC]]&","&Tableau1[[#This Row],[CUP]]&","&Tableau1[[#This Row],[Catégorie]]) -> 250548,Meia Encosta Dâo,750,12,05601129034249,Vin rg Portugal
A53: 45 | B53: 11462446 | D53: =VLOOKUP($B53,'Répertoire des produits'!$1:$1048576,4,FALSE) -> Campo Viejo Rioja | E53: =VLOOKUP($B53,'Répertoire des produits'!$1:$1048576,5,FALSE) -> 750 | F53: =VLOOKUP($B53,'Répertoire des produits'!$1:$1048576,6,FALSE) -> 12 | G53: =VLOOKUP($B53,'Répertoire des produits'!$1:$1048576,3,FALSE) -> 08410302121006 | H53: =VLOOKUP($B53,'Répertoire des produits'!$1:$1048576,2,FALSE) -> Vin rg Espagne | I53: =CONCATENATE(Tableau1[[#This Row],[Code Article]]&","&Tableau1[[#This Row],[Nom du produit]]&","&Tableau1[[#This Row],[Format]]&","&Tableau1[[#This Row],[UVC]]&","&Tableau1[[#This Row],[CUP]]&","&Tableau1[[#This Row],[Catégorie]]) -> 11462446,Campo Viejo Rioja,750,12,08410302121006,Vin rg Espagne
A54: 46 | B54: 539528 | D54: =VLOOKUP($B54,'Répertoire des produits'!$1:$1048576,4,FALSE) -> Monasterio de Las Vinas Crianza Carinena | E54: =VLOOKUP($B54,'Répertoire des produits'!$1:$1048576,5,FALSE) -> 750 | F54: =VLOOKUP($B54,'Répertoire des produits'!$1:$1048576,6,FALSE) -> 12 | G54: =VLOOKUP($B54,'Répertoire des produits'!$1:$1048576,3,FALSE) -> 08412075030233 | H54: =VLOOKUP($B54,'Répertoire des produits'!$1:$1048576,2,FALSE) -> Vin rg Espagne | I54: =CONCATENATE(Tableau1[[#This Row],[Code Article]]&","&Tableau1[[#This Row],[Nom du produit]]&","&Tableau1[[#This Row],[Format]]&","&Tableau1[[#This Row],[UVC]]&","&Tableau1[[#This Row],[CUP]]&","&Tableau1[[#This Row],[Catégorie]]) -> 539528,Monasterio de Las Vinas Crianza Carinena,750,12,08412075030233,Vin rg Espagne
A55: 47 | B55: 270363 | D55: =VLOOKUP($B55,'Répertoire des produits'!$1:$1048576,4,FALSE) -> Castillo de Almansa Reserva Almansa | E55: =VLOOKUP($B55,'Répertoire des produits'!$1:$1048576,5,FALSE) -> 750 | F55: =VLOOKUP($B55,'Répertoire des produits'!$1:$1048576,6,FALSE) -> 12 | G55: =VLOOKUP($B55,'Répertoire des produits'!$1:$1048576,3,FALSE) -> 08414837010118 | H55: =VLOOKUP($B55,'Répertoire des produits'!$1:$1048576,2,FALSE) -> Vin rg Espagne | I55: =CONCATENATE(Tableau1[[#This Row],[Code Article]]&","&Tableau1[[#This Row],[Nom du produit]]&","&Tableau1[[#This Row],[Format]]&","&Tableau1[[#This Row],[UVC]]&","&Tableau1[[#This Row],[CUP]]&","&Tableau1[[#This Row],[Catégorie]]) -> 270363,Castillo de Almansa Reserva Almansa,750,12,08414837010118,Vin rg Espagne
A56: 48 | B56: 10269388 | D56: =VLOOKUP($B56,'Répertoire des produits'!$1:$1048576,4,FALSE) -> Vinho regional Lisboa Quinta de Bons-Ventos | E56: =VLOOKUP($B56,'Répertoire des produits'!$1:$1048576,5,FALSE) -> 750 | F56: =VLOOKUP($B56,'Répertoire des produits'!$1:$1048576,6,FALSE) -> 12 | G56: =VLOOKUP($B56,'Répertoire des produits'!$1:$1048576,3,FALSE) -> 05604424178007 | H56: =VLOOKUP($B56,'Répertoire des produits'!$1:$1048576,2,FALSE) -> Vin rg Portugal | I56: =CONCATENATE(Tableau1[[#This Row],[Code Article]]&","&Tableau1[[#This Row],[Nom du produit]]&","&Tableau1[[#This Row],[Format]]&","&Tableau1[[#This Row],[UVC]]&","&Tableau1[[#This Row],[CUP]]&","&Tableau1[[#This Row],[Catégorie]]) -> 10269388,Vinho regional Lisboa Quinta de Bons-Ventos,750,12,05604424178007,Vin rg Portugal
A57: 49 | B57: 464388 | D57: =VLOOKUP($B57,'Répertoire des produits'!$1:$1048576,4,FALSE) -> Vila Regia Douro | E57: =VLOOKUP($B57,'Répertoire des produits'!$1:$1048576,5,FALSE) -> 750 | F57: =VLOOKUP($B57,'Répertoire des produits'!$1:$1048576,6,FALSE) -> 12 | G57: =VLOOKUP($B57,'Répertoire des produits'!$1:$1048576,3,FALSE) -> 05601012414509 | H57: =VLOOKUP($B57,'Répertoire des produits'!$1:$1048576,2,FALSE) -> Vin rg Portugal | I57: =CONCATENATE(Tableau1[[#This Row],[Code Article]]&","&Tableau1[[#This Row],[Nom du produit]]&","&Tableau1[[#This Row],[Format]]&","&Tableau1[[#This Row],[UVC]]&","&Tableau1[[#This Row],[CUP]]&","&Tableau1[[#This Row],[Catégorie]]) -> 464388,Vila Regia Douro,750,12,05601012414509,Vin rg Portugal
A58: 50 | B58: 36483 | D58: torres gran coronas | E58: 750 | F58: 12 | H58: VIN ROUGE Espagne | I58: =CONCATENATE(Tableau1[[#This Row],[Code Article]]&","&Tableau1[[#This Row],[Nom du produit]]&","&Tableau1[[#This Row],[Format]]&","&Tableau1[[#This Row],[UVC]]&","&Tableau1[[#This Row],[CUP]]&","&Tableau1[[#This Row],[Catégorie]]) -> 36483,torres gran coronas,750,12,,VIN ROUGE Espagne
A59: 51 | B59: 12525120 | D59: FONTEDO NICO | E59: 750 | F59: 12 | H59: vin rouge Portugal | I59: =CONCATENATE(Tableau1[[#This Row],[Code Article]]&","&Tableau1[[#This Row],[Nom du produit]]&","&Tableau1[[#This Row],[Format]]&","&Tableau1[[#This Row],[UVC]]&","&Tableau1[[#This Row],[CUP]]&","&Tableau1[[#This Row],[Catégorie]]) -> 12525120,FONTEDO NICO,750,12,,vin rouge Portugal
A60: 52 | B60: 12989936 | D60: nobella | E60: 750 | F60: 12 | H60: vin rg espagne | I60: =CONCATENATE(Tableau1[[#This Row],[Code Article]]&","&Tableau1[[#This Row],[Nom du produit]]&","&Tableau1[[#This Row],[Format]]&","&Tableau1[[#This Row],[UVC]]&","&Tableau1[[#This Row],[CUP]]&","&Tableau1[[#This Row],[Catégorie]]) -> 12989936,nobella,750,12,,vin rg espagne
A61: 53 | B61: 10803051 | D61: =VLOOKUP($B61,'Répertoire des produits'!$1:$1048576,4,FALSE) -> Vinho regional Alentejano Herdade das Albernoas | E61: =VLOOKUP($B61,'Répertoire des produits'!$1:$1048576,5,FALSE) -> 750 | F61: =VLOOKUP($B61,'Répertoire des produits'!$1:$1048576,6,FALSE) -> 12 | G61: =VLOOKUP($B61,'Répertoire des produits'!$1:$1048576,3,FALSE) -> 05607645077555 | H61: =VLOOKUP($B61,'Répertoire des produits'!$1:$1048576,2,FALSE) -> Vin rg Portugal | I61: =CONCATENATE(Tableau1[[#This Row],[Code Article]]&","&Tableau1[[#This Row],[Nom du produit]]&","&Tableau1[[#This Row],[Format]]&","&Tableau1[[#This Row],[UVC]]&","&Tableau1[[#This Row],[CUP]]&","&Tableau1[[#This Row],[Catégorie]]) -> 10803051,Vinho regional Alentejano Herdade das Albernoas,750,12,05607645077555,Vin rg Portugal
A62: 54 | B62: 11133239 | D62: =VLOOKUP($B62,'Répertoire des produits'!$1:$1048576,4,FALSE) -> Animus Douro | E62: =VLOOKUP($B62,'Répertoire des produits'!$1:$1048576,5,FALSE) -> 750 | F62: =VLOOKUP($B62,'Répertoire des produits'!$1:$1048576,6,FALSE) -> 12 | G62: =VLOOKUP($B62,'Répertoire des produits'!$1:$1048576,3,FALSE) -> 05601815421216 | H62: =VLOOKUP($B62,'Répertoire des produits'!$1:$1048576,2,FALSE) -> Vin rg Portugal | I62: =CONCATENATE(Tableau1[[#This Row],[Code Article]]&","&Tableau1[[#This Row],[Nom du produit]]&","&Tableau1[[#This Row],[Format]]&","&Tableau1[[#This Row],[UVC]]&","&Tableau1[[#This Row],[CUP]]&","&Tableau1[[#This Row],[Catégorie]]) -> 11133239,Animus Douro,750,12,05601815421216,Vin rg Portugal
A63: 55 | B63: 739680 | D63: =VLOOKUP($B63,'Répertoire des produits'!$1:$1048576,4,FALSE) -> Catedral Caves Velhas Signature Dâo | E63: =VLOOKUP($B63,'Répertoire des produits'!$1:$1048576,5,FALSE) -> 750 | F63: =VLOOKUP($B63,'Répertoire des produits'!$1:$1048576,6,FALSE) -> 12 | G63: =VLOOKUP($B63,'Répertoire des produits'!$1:$1048576,3,FALSE) -> 05601157210714 | H63: =VLOOKUP($B63,'Répertoire des produits'!$1:$1048576,2,FALSE) -> Vin rg Portugal | I63: =CONCATENATE(Tableau1[[#This Row],[Code Article]]&","&Tableau1[[#This Row],[Nom du produit]]&","&Tableau1[[#This Row],[Format]]&","&Tableau1[[#This Row],[UVC]]&","&Tableau1[[#This Row],[CUP]]&","&Tableau1[[#This Row],[Catégorie]]) -> 739680,Catedral Caves Velhas Signature Dâo,750,12,05601157210714,Vin rg Portugal
A64: 56 | B64: 6585 | D64: =VLOOKUP($B64,'Répertoire des produits'!$1:$1048576,4,FALSE) -> Sangre de Toro Torres Catalunya | E64: =VLOOKUP($B64,'Répertoire des produits'!$1:$1048576,5,FALSE) -> 750 | F64: =VLOOKUP($B64,'Répertoire des produits'!$1:$1048576,6,FALSE) -> 12 | G64: =VLOOKUP($B64,'Répertoire des produits'!$1:$1048576,3,FALSE) -> 08410113003027 | H64: =VLOOKUP($B64,'Répertoire des produits'!$1:$1048576,2,FALSE) -> Vin rg Espagne | I64: =CONCATENATE(Tableau1[[#This Row],[Code Article]]&","&Tableau1[[#This Row],[Nom du produit]]&","&Tableau1[[#This Row],[Format]]&","&Tableau1[[#This Row],[UVC]]&","&Tableau1[[#This Row],[CUP]]&","&Tableau1[[#This Row],[Catégorie]]) -> 6585,Sangre de Toro Torres Catalunya,750,12,08410113003027,Vin rg Espagne
A65: 57 | B65: 624296 | D65: =VLOOKUP($B65,'Répertoire des produits'!$1:$1048576,4,FALSE) -> Garnacha Castillo de Monseran Carinena | E65: =VLOOKUP($B65,'Répertoire des produits'!$1:$1048576,5,FALSE) -> 750 | F65: =VLOOKUP($B65,'Répertoire des produits'!$1:$1048576,6,FALSE) -> 12 | G65: =VLOOKUP($B65,'Répertoire des produits'!$1:$1048576,3,FALSE) -> 03378630306227 | H65: =VLOOKUP($B65,'Répertoire des produits'!$1:$1048576,2,FALSE) -> Vin rg Espagne | I65: =CONCATENATE(Tableau1[[#This Row],[Code Article]]&","&Tableau1[[#This Row],[Nom du produit]]&","&Tableau1[[#This Row],[Format]]&","&Tableau1[[#This Row],[UVC]]&","&Tableau1[[#This Row],[CUP]]&","&Tableau1[[#This Row],[Catégorie]]) -> 624296,Garnacha Castillo de Monseran Carinena,750,12,03378630306227,Vin rg Espagne
A66: 58 | B66: 10858086 | D66: JUAN GIL | E66: =VLOOKUP($B66,'Répertoire des produits'!$1:$1048576,5,FALSE) -> 750 | G66: =VLOOKUP($B66,'Répertoire des produits'!$1:$1048576,3,FALSE) -> 08437005068001 | H66: =VLOOKUP($B66,'Répertoire des produits'!$1:$1048576,2,FALSE) -> Vin rg Espagne | I66: =CONCATENATE(Tableau1[[#This Row],[Code Article]]&","&Tableau1[[#This Row],[Nom du produit]]&","&Tableau1[[#This Row],[Format]]&","&Tableau1[[#This Row],[UVC]]&","&Tableau1[[#This Row],[CUP]]&","&Tableau1[[#This Row],[Catégorie]]) -> 10858086,JUAN GIL,750,,08437005068001,Vin rg Espagne
A67: 59 | B67: 11766917 | D67: =VLOOKUP($B67,'Répertoire des produits'!$1:$1048576,4,FALSE) -> Sangiovese/Merlot Iove Umberto Cesari Rubicone i.g.t. | E67: =VLOOKUP($B67,'Répertoire des produits'!$1:$1048576,5,FALSE) -> 750 | F67: =VLOOKUP($B67,'Répertoire des produits'!$1:$1048576,6,FALSE) -> 12 | G67: =VLOOKUP($B67,'Répertoire des produits'!$1:$1048576,3,FALSE) -> 00818276001191 | H67: =VLOOKUP($B67,'Répertoire des produits'!$1:$1048576,2,FALSE) -> Vin rg Italie autres régions | I67: =CONCATENATE(Tableau1[[#This Row],[Code Article]]&","&Tableau1[[#This Row],[Nom du produit]]&","&Tableau1[[#This Row],[Format]]&","&Tableau1[[#This Row],[UVC]]&","&Tableau1[[#This Row],[CUP]]&","&Tableau1[[#This Row],[Catégorie]]) -> 11766917,Sangiovese/Merlot Iove Umberto Cesari Rubicone i.g.t.,750,12,00818276001191,Vin rg Italie autres régions
A68: 60 | B68: 240416 | D68: =VLOOKUP($B68,'Répertoire des produits'!$1:$1048576,4,FALSE) -> Montresor Amarone della Valpolicella | E68: =VLOOKUP($B68,'Répertoire des produits'!$1:$1048576,5,FALSE) -> 750 | F68: =VLOOKUP($B68,'Répertoire des produits'!$1:$1048576,6,FALSE) -> 12 | G68: =VLOOKUP($B68,'Répertoire des produits'!$1:$1048576,3,FALSE) -> 08003503000555 | H68: =VLOOKUP($B68,'Répertoire des produits'!$1:$1048576,2,FALSE) -> Vin rg Italie Vénétie | I68: =CONCATENATE(Tableau1[[#This Row],[Code Article]]&","&Tableau1[[#This Row],[Nom du produit]]&","&Tableau1[[#This Row],[Format]]&","&Tableau1[[#This Row],[UVC]]&","&Tableau1[[#This Row],[CUP]]&","&Tableau1[[#This Row],[Catégorie]]) -> 240416,Montresor Amarone della Valpolicella,750,12,08003503000555,Vin rg Italie Vénétie
A69: 61 | B69: 963389 | D69: =VLOOKUP($B69,'Répertoire des produits'!$1:$1048576,4,FALSE) -> Cabernet-Sauvignon Farnito Carpineto Toscana i.g.t. | E69: =VLOOKUP($B69,'Répertoire des produits'!$1:$1048576,5,FALSE) -> 750 | F69: =VLOOKUP($B69,'Répertoire des produits'!$1:$1048576,6,FALSE) -> 6 | G69: =VLOOKUP($B69,'Répertoire des produits'!$1:$1048576,3,FALSE) -> 08003015700127 | H69: =VLOOKUP($B69,'Répertoire des produits'!$1:$1048576,2,FALSE) -> Vin rg Italie Toscane | I69: =CONCATENATE(Tableau1[[#This Row],[Code Article]]&","&Tableau1[[#This Row],[Nom du produit]]&","&Tableau1[[#This Row],[Format]]&","&Tableau1[[#This Row],[UVC]]&","&Tableau1[[#This Row],[CUP]]&","&Tableau1[[#This Row],[Catégorie]]) -> 963389,Cabernet-Sauvignon Farnito Carpineto Toscana i.g.t.,750,6,08003015700127,Vin rg Italie Toscane
A70: 62 | B70: 12042603 | D70: =VLOOKUP($B70,'Répertoire des produits'!$1:$1048576,4,FALSE) -> Sangiovese/Cab.-Sauv. Liano Umberto Cesari Rubicone i.g.t. | E70: =VLOOKUP($B70,'Répertoire des produits'!$1:$1048576,5,FALSE) -> 750 | F70: =VLOOKUP($B70,'Répertoire des produits'!$1:$1048576,6,FALSE) -> 12 | G70: =VLOOKUP($B70,'Répertoire des produits'!$1:$1048576,3,FALSE) -> 00818276000217 | H70: =VLOOKUP($B70,'Répertoire des produits'!$1:$1048576,2,FALSE) -> Vin rg Italie autres régions | I70: =CONCATENATE(Tableau1[[#This Row],[Code Article]]&","&Tableau1[[#This Row],[Nom du produit]]&","&Tableau1[[#This Row],[Format]]&","&Tableau1[[#This Row],[UVC]]&","&Tableau1[[#This Row],[CUP]]&","&Tableau1[[#This Row],[Catégorie]]) -> 12042603,Sangiovese/Cab.-Sauv. Liano Umberto Cesari Rubicone i.g.t.,750,12,00818276000217,Vin rg Italie autres régions
A71: 63 | B71: 160358 | D71: =VLOOKUP($B71,'Répertoire des produits'!$1:$1048576,4,FALSE) -> Merlot Donini Delle Venezie i.g.t. | E71: =VLOOKUP($B71,'Répertoire des produits'!$1:$1048576,5,FALSE) -> 1000 | F71: =VLOOKUP($B71,'Répertoire des produits'!$1:$1048576,6,FALSE) -> 12 | G71: =VLOOKUP($B71,'Répertoire des produits'!$1:$1048576,3,FALSE) -> 08000160615214 | H71: =VLOOKUP($B71,'Répertoire des produits'!$1:$1048576,2,FALSE) -> Vin rg Italie Vénétie | I71: =CONCATENATE(Tableau1[[#This Row],[Code Article]]&","&Tableau1[[#This Row],[Nom du produit]]&","&Tableau1[[#This Row],[Format]]&","&Tableau1[[#This Row],[UVC]]&","&Tableau1[[#This Row],[CUP]]&","&Tableau1[[#This Row],[Catégorie]]) -> 160358,Merlot Donini Delle Venezie i.g.t.,1000,12,08000160615214,Vin rg Italie Vénétie
A72: 64 | B72: 155051 | D72: =VLOOKUP($B72,'Répertoire des produits'!$1:$1048576,4,FALSE) -> Campofiorin Masi Veronese i.g.t. | E72: =VLOOKUP($B72,'Répertoire des produits'!$1:$1048576,5,FALSE) -> 750 | F72: =VLOOKUP($B72,'Répertoire des produits'!$1:$1048576,6,FALSE) -> 12 | G72: =VLOOKUP($B72,'Répertoire des produits'!$1:$1048576,3,FALSE) -> 08002062000068 | H72: =VLOOKUP($B72,'Répertoire des produits'!$1:$1048576,2,FALSE) -> Vin rg Italie Vénétie | I72: =CONCATENATE(Tableau1[[#This Row],[Code Article]]&","&Tableau1[[#This Row],[Nom du produit]]&","&Tableau1[[#This Row],[Format]]&","&Tableau1[[#This Row],[UVC]]&","&Tableau1[[#This Row],[CUP]]&","&Tableau1[[#This Row],[Catégorie]]) -> 155051,Campofiorin Masi Veronese i.g.t.,750,12,08002062000068,Vin rg Italie Vénétie
A73: =ROW(C73)-8 -> 65 | B73: 443036 | D73: =VLOOKUP($B73,'Répertoire des produits'!$1:$1048576,4,FALSE) -> Sangiovese Giacondi Rubicone i.g.t. | E73: =VLOOKUP($B73,'Répertoire des produits'!$1:$1048576,5,FALSE) -> 1000 | F73: =VLOOKUP($B73,'Répertoire des produits'!$1:$1048576,6,FALSE) -> 12 | G73: =VLOOKUP($B73,'Répertoire des produits'!$1:$1048576,3,FALSE) -> 08032610310547 | H73: =VLOOKUP($B73,'Répertoire des produits'!$1:$1048576,2,FALSE) -> Vin rg Italie autres régions | I73: =CONCATENATE(Tableau1[[#This Row],[Code Article]]&","&Tableau1[[#This Row],[Nom du produit]]&","&Tableau1[[#This Row],[Format]]&","&Tableau1[[#This Row],[UVC]]&","&Tableau1[[#This Row],[CUP]]&","&Tableau1[[#This Row],[Catégorie]]) -> 443036,Sangiovese Giacondi Rubicone i.g.t.,1000,12,08032610310547,Vin rg Italie autres régions
A74: 66 | B74: 11676604 | D74: =VLOOKUP($B74,'Répertoire des produits'!$1:$1048576,4,FALSE) -> Sangiovese/Cabernet-Sauvignon Farnese Soluna Terre du Chieti | E74: =VLOOKUP($B74,'Répertoire des produits'!$1:$1048576,5,FALSE) -> 750 | F74: =VLOOKUP($B74,'Répertoire des produits'!$1:$1048576,6,FALSE) -> 12 | G74: =VLOOKUP($B74,'Répertoire des produits'!$1:$1048576,3,FALSE) -> 08019873724540 | H74: =VLOOKUP($B74,'Répertoire des produits'!$1:$1048576,2,FALSE) -> Vin rg Italie autres régions | I74: =CONCATENATE(Tableau1[[#This Row],[Code Article]]&","&Tableau1[[#This Row],[Nom du produit]]&","&Tableau1[[#This Row],[Format]]&","&Tableau1[[#This Row],[UVC]]&","&Tableau1[[#This Row],[CUP]]&","&Tableau1[[#This Row],[Catégorie]]) -> 11676604,Sangiovese/Cabernet-Sauvignon Farnese Soluna Terre du Chieti,750,12,08019873724540,Vin rg Italie autres régions
A75: 67 | B75: 10669242 | D75: =VLOOKUP($B75,'Répertoire des produits'!$1:$1048576,4,FALSE) -> Ripasso Sartori Valpolicella Superiore | E75: =VLOOKUP($B75,'Répertoire des produits'!$1:$1048576,5,FALSE) -> 750 | F75: =VLOOKUP($B75,'Répertoire des produits'!$1:$1048576,6,FALSE) -> 12 | G75: =VLOOKUP($B75,'Répertoire des produits'!$1:$1048576,3,FALSE) -> 08005390008058 | H75: =VLOOKUP($B75,'Répertoire des produits'!$1:$1048576,2,FALSE) -> Vin rg Italie Vénétie | I75: =CONCATENATE(Tableau1[[#This Row],[Code Article]]&","&Tableau1[[#This Row],[Nom du produit]]&","&Tableau1[[#This Row],[Format]]&","&Tableau1[[#This Row],[UVC]]&","&Tableau1[[#This Row],[CUP]]&","&Tableau1[[#This Row],[Catégorie]]) -> 10669242,Ripasso Sartori Valpolicella Superiore,750,12,08005390008058,Vin rg Italie Vénétie
A76: 68 | B76: 1743 | D76: =VLOOKUP($B76,'Répertoire des produits'!$1:$1048576,4,FALSE) -> Ruffino Chianti | E76: =VLOOKUP($B76,'Répertoire des produits'!$1:$1048576,5,FALSE) -> 750 | F76: =VLOOKUP($B76,'Répertoire des produits'!$1:$1048576,6,FALSE) -> 12 | G76: =VLOOKUP($B76,'Répertoire des produits'!$1:$1048576,3,FALSE) -> 08001660101757 | H76: =VLOOKUP($B76,'Répertoire des produits'!$1:$1048576,2,FALSE) -> Vin rg Italie Toscane | I76: =CONCATENATE(Tableau1[[#This Row],[Code Article]]&","&Tableau1[[#This Row],[Nom du produit]]&","&Tableau1[[#This Row],[Format]]&","&Tableau1[[#This Row],[UVC]]&","&Tableau1[[#This Row],[CUP]]&","&Tableau1[[#This Row],[Catégorie]]) -> 1743,Ruffino Chianti,750,12,08001660101757,Vin rg Italie Toscane
A77: 69 | B77: 26021 | D77: =VLOOKUP($B77,'Répertoire des produits'!$1:$1048576,4,FALSE) -> Sartori Valpolicella Superiore | E77: =VLOOKUP($B77,'Répertoire des produits'!$1:$1048576,5,FALSE) -> 750 | F77: =VLOOKUP($B77,'Répertoire des produits'!$1:$1048576,6,FALSE) -> 12 | G77: =VLOOKUP($B77,'Répertoire des produits'!$1:$1048576,3,FALSE) -> 08005390065105 | H77: =VLOOKUP($B77,'Répertoire des produits'!$1:$1048576,2,FALSE) -> Vin rg Italie Vénétie | I77: =CONCATENATE(Tableau1[[#This Row],[Code Article]]&","&Tableau1[[#This Row],[Nom du produit]]&","&Tableau1[[#This Row],[Format]]&","&Tableau1[[#This Row],[UVC]]&","&Tableau1[[#This Row],[CUP]]&","&Tableau1[[#This Row],[Catégorie]]) -> 26021,Sartori Valpolicella Superiore,750,12,08005390065105,Vin rg Italie Vénétie
A78: 70 | B78: 533026 | D78: =VLOOKUP($B78,'Répertoire des produits'!$1:$1048576,4,FALSE) -> Modello Masi Delle Venezie i.g.t. | E78: =VLOOKUP($B78,'Répertoire des produits'!$1:$1048576,5,FALSE) -> 750 | F78: =VLOOKUP($B78,'Répertoire des produits'!$1:$1048576,6,FALSE) -> 12 | G78: =VLOOKUP($B78,'Répertoire des produits'!$1:$1048576,3,FALSE) -> 08002062001522 | H78: =VLOOKUP($B78,'Répertoire des produits'!$1:$1048576,2,FALSE) -> Vin rg Italie Vénétie | I78: =CONCATENATE(Tableau1[[#This Row],[Code Article]]&","&Tableau1[[#This Row],[Nom du produit]]&","&Tableau1[[#This Row],[Format]]&","&Tableau1[[#This Row],[UVC]]&","&Tableau1[[#This Row],[CUP]]&","&Tableau1[[#This Row],[Catégorie]]) -> 533026,Modello Masi Delle Venezie i.g.t.,750,12,08002062001522,Vin rg Italie Vénétie
A79: 71 | B79: 10270442 | D79: =VLOOKUP($B79,'Répertoire des produits'!$1:$1048576,4,FALSE) -> Folonari Valpolicella | E79: =VLOOKUP($B79,'Répertoire des produits'!$1:$1048576,5,FALSE) -> 750 | F79: =VLOOKUP($B79,'Répertoire des produits'!$1:$1048576,6,FALSE) -> 12 | G79: =VLOOKUP($B79,'Répertoire des produits'!$1:$1048576,3,FALSE) -> 08000160632402 | H79: =VLOOKUP($B79,'Répertoire des produits'!$1:$1048576,2,FALSE) -> Vin rg Italie Vénétie | I79: =CONCATENATE(Tableau1[[#This Row],[Code Article]]&","&Tableau1[[#This Row],[Nom du produit]]&","&Tableau1[[#This Row],[Format]]&","&Tableau1[[#This Row],[UVC]]&","&Tableau1[[#This Row],[CUP]]&","&Tableau1[[#This Row],[Catégorie]]) -> 10270442,Folonari Valpolicella,750,12,08000160632402,Vin rg Italie Vénétie
A80: 72 | B80: 11905809 | D80: =VLOOKUP($B80,'Répertoire des produits'!$1:$1048576,4,FALSE) -> Nero d'Avola/Petit Verdot Nari Firriato Sicilia IGT | E80: =VLOOKUP($B80,'Répertoire des produits'!$1:$1048576,5,FALSE) -> 750 | F80: =VLOOKUP($B80,'Répertoire des produits'!$1:$1048576,6,FALSE) -> 12 | G80: =VLOOKUP($B80,'Répertoire des produits'!$1:$1048576,3,FALSE) -> 08002815405706 | H80: =VLOOKUP($B80,'Répertoire des produits'!$1:$1048576,2,FALSE) -> Vin rg Italie Sicile Sardaigne | I80: =CONCATENATE(Tableau1[[#This Row],[Code Article]]&","&Tableau1[[#This Row],[Nom du produit]]&","&Tableau1[[#This Row],[Format]]&","&Tableau1[[#This Row],[UVC]]&","&Tableau1[[#This Row],[CUP]]&","&Tableau1[[#This Row],[Catégorie]]) -> 11905809,Nero d'Avola/Petit Verdot Nari Firriato Sicilia IGT,750,12,08002815405706,Vin rg Italie Sicile Sardaigne
A81: 73 | B81: 11315446 | D81: =VLOOKUP($B81,'Répertoire des produits'!$1:$1048576,4,FALSE) -> Ricossa Barbera d'Asti | E81: =VLOOKUP($B81,'Répertoire des produits'!$1:$1048576,5,FALSE) -> 750 | F81: =VLOOKUP($B81,'Répertoire des produits'!$1:$1048576,6,FALSE) -> 12 | G81: =VLOOKUP($B81,'Répertoire des produits'!$1:$1048576,3,FALSE) -> 00851241000577 | H81: =VLOOKUP($B81,'Répertoire des produits'!$1:$1048576,2,FALSE) -> Vin rg Italie Piémont | I81: =CONCATENATE(Tableau1[[#This Row],[Code Article]]&","&Tableau1[[#This Row],[Nom du produit]]&","&Tableau1[[#This Row],[Format]]&","&Tableau1[[#This Row],[UVC]]&","&Tableau1[[#This Row],[CUP]]&","&Tableau1[[#This Row],[Catégorie]]) -> 11315446,Ricossa Barbera d'Asti,750,12,00851241000577,Vin rg Italie Piémont
A82: 74 | B82: 964569 | D82: =VLOOKUP($B82,'Répertoire des produits'!$1:$1048576,4,FALSE) -> Campolieti Ripasso Valpo Superiore Classico | E82: =VLOOKUP($B82,'Répertoire des produits'!$1:$1048576,5,FALSE) -> 750 | F82: =VLOOKUP($B82,'Répertoire des produits'!$1:$1048576,6,FALSE) -> 12 | G82: =VLOOKUP($B82,'Répertoire des produits'!$1:$1048576,3,FALSE) -> 08016963000041 | H82: =VLOOKUP($B82,'Répertoire des produits'!$1:$1048576,2,FALSE) -> Vin rg Italie Vénétie | I82: =CONCATENATE(Tableau1[[#This Row],[Code Article]]&","&Tableau1[[#This Row],[Nom du produit]]&","&Tableau1[[#This Row],[Format]]&","&Tableau1[[#This Row],[UVC]]&","&Tableau1[[#This Row],[CUP]]&","&Tableau1[[#This Row],[Catégorie]]) -> 964569,Campolieti Ripasso Valpo Superiore Classico,750,12,08016963000041,Vin rg Italie Vénétie
A83: 75 | B83: 10703834 | D83: =VLOOKUP($B83,'Répertoire des produits'!$1:$1048576,4,FALSE) -> Mara Valpolicella Ripasso Superiore Classico | E83: =VLOOKUP($B83,'Répertoire des produits'!$1:$1048576,5,FALSE) -> 750 | F83: =VLOOKUP($B83,'Répertoire des produits'!$1:$1048576,6,FALSE) -> 12 | G83: =VLOOKUP($B83,'Répertoire des produits'!$1:$1048576,3,FALSE) -> 08000834312005 | H83: =VLOOKUP($B83,'Répertoire des produits'!$1:$1048576,2,FALSE) -> Vin rg Italie Vénétie | I83: =CONCATENATE(Tableau1[[#This Row],[Code Article]]&","&Tableau1[[#This Row],[Nom du produit]]&","&Tableau1[[#This Row],[Format]]&","&Tableau1[[#This Row],[UVC]]&","&Tableau1[[#This Row],[CUP]]&","&Tableau1[[#This Row],[Catégorie]]) -> 10703834,Mara Valpolicella Ripasso Superiore Classico,750,12,08000834312005,Vin rg Italie Vénétie
A84: 76 | B84: 10960777 | D84: cusumane | E84: 750 | F84: 12 | H84: Vin rg Italie | I84: =CONCATENATE(Tableau1[[#This Row],[Code Article]]&","&Tableau1[[#This Row],[Nom du produit]]&","&Tableau1[[#This Row],[Format]]&","&Tableau1[[#This Row],[UVC]]&","&Tableau1[[#This Row],[CUP]]&","&Tableau1[[#This Row],[Catégorie]]) -> 10960777,cusumane,750,12,,Vin rg Italie
A85: 77 | B85: 565283 | D85: =VLOOKUP($B85,'Répertoire des produits'!$1:$1048576,4,FALSE) -> Medoro Umani Ronchi Marche i.g.t. | E85: =VLOOKUP($B85,'Répertoire des produits'!$1:$1048576,5,FALSE) -> 750 | F85: =VLOOKUP($B85,'Répertoire des produits'!$1:$1048576,6,FALSE) -> 12 | G85: =VLOOKUP($B85,'Répertoire des produits'!$1:$1048576,3,FALSE) -> 08032853720479 | H85: =VLOOKUP($B85,'Répertoire des produits'!$1:$1048576,2,FALSE) -> Vin rg Italie autres régions | I85: =CONCATENATE(Tableau1[[#This Row],[Code Article]]&","&Tableau1[[#This Row],[Nom du produit]]&","&Tableau1[[#This Row],[Format]]&","&Tableau1[[#This Row],[UVC]]&","&Tableau1[[#This Row],[CUP]]&","&Tableau1[[#This Row],[Catégorie]]) -> 565283,Medoro Umani Ronchi Marche i.g.t.,750,12,08032853720479,Vin rg Italie autres régions
A86: 78 | B86: 485565 | D86: =VLOOKUP($B86,'Répertoire des produits'!$1:$1048576,4,FALSE) -> Merlot Vivolo di Sasso Veneto i.g.t. | E86: =VLOOKUP($B86,'Répertoire des produits'!$1:$1048576,5,FALSE) -> 750 | F86: =VLOOKUP($B86,'Répertoire des produits'!$1:$1048576,6,FALSE) -> 12 | G86: =VLOOKUP($B86,'Répertoire des produits'!$1:$1048576,3,FALSE) -> 08008863004113 | H86: =VLOOKUP($B86,'Répertoire des produits'!$1:$1048576,2,FALSE) -> Vin rg Italie Vénétie | I86: =CONCATENATE(Tableau1[[#This Row],[Code Article]]&","&Tableau1[[#This Row],[Nom du produit]]&","&Tableau1[[#This Row],[Format]]&","&Tableau1[[#This Row],[UVC]]&","&Tableau1[[#This Row],[CUP]]&","&Tableau1[[#This Row],[Catégorie]]) -> 485565,Merlot Vivolo di Sasso Veneto i.g.t.,750,12,08008863004113,Vin rg Italie Vénétie
A87: 79 | B87: 11254452 | D87: =VLOOKUP($B87,'Répertoire des produits'!$1:$1048576,4,FALSE) -> Negroamaro Mezzo Mondo Puglia IGT | E87: =VLOOKUP($B87,'Répertoire des produits'!$1:$1048576,5,FALSE) -> 750 | F87: =VLOOKUP($B87,'Répertoire des produits'!$1:$1048576,6,FALSE) -> 12 | G87: =VLOOKUP($B87,'Répertoire des produits'!$1:$1048576,3,FALSE) -> 05010134009317 | H87: =VLOOKUP($B87,'Répertoire des produits'!$1:$1048576,2,FALSE) -> Vin rg Italie autres régions | I87: =CONCATENATE(Tableau1[[#This Row],[Code Article]]&","&Tableau1[[#This Row],[Nom du produit]]&","&Tableau1[[#This Row],[Format]]&","&Tableau1[[#This Row],[UVC]]&","&Tableau1[[#This Row],[CUP]]&","&Tableau1[[#This Row],[Catégorie]]) -> 11254452,Negroamaro Mezzo Mondo Puglia IGT,750,12,05010134009317,Vin rg Italie autres régions
A88: 80 | B88: 10542647 | D88: =VLOOKUP($B88,'Répertoire des produits'!$1:$1048576,4,FALSE) -> Il Brecciarolo Rosso Piceno superiore | E88: =VLOOKUP($B88,'Répertoire des produits'!$1:$1048576,5,FALSE) -> 750 | F88: =VLOOKUP($B88,'Répertoire des produits'!$1:$1048576,6,FALSE) -> 12 | G88: =VLOOKUP($B88,'Répertoire des produits'!$1:$1048576,3,FALSE) -> 00666056000090 | H88: =VLOOKUP($B88,'Répertoire des produits'!$1:$1048576,2,FALSE) -> Vin rg Italie autres régions | I88: =CONCATENATE(Tableau1[[#This Row],[Code Article]]&","&Tableau1[[#This Row],[Nom du produit]]&","&Tableau1[[#This Row],[Format]]&","&Tableau1[[#This Row],[UVC]]&","&Tableau1[[#This Row],[CUP]]&","&Tableau1[[#This Row],[Catégorie]]) -> 10542647,Il Brecciarolo Rosso Piceno superiore,750,12,00666056000090,Vin rg Italie autres régions
A89: 81 | B89: 103861 | D89: =VLOOKUP($B89,'Répertoire des produits'!$1:$1048576,4,FALSE) -> Citra Montepulciano d'Abruzzo | E89: =VLOOKUP($B89,'Répertoire des produits'!$1:$1048576,5,FALSE) -> 1000 | F89: =VLOOKUP($B89,'Répertoire des produits'!$1:$1048576,6,FALSE) -> 12 | G89: =VLOOKUP($B89,'Répertoire des produits'!$1:$1048576,3,FALSE) -> 00008005493001 | H89: =VLOOKUP($B89,'Répertoire des produits'!$1:$1048576,2,FALSE) -> Vin rg Italie autres régions | I89: =CONCATENATE(Tableau1[[#This Row],[Code Article]]&","&Tableau1[[#This Row],[Nom du produit]]&","&Tableau1[[#This Row],[Format]]&","&Tableau1[[#This Row],[UVC]]&","&Tableau1[[#This Row],[CUP]]&","&Tableau1[[#This Row],[Catégorie]]) -> 103861,Citra Montepulciano d'Abruzzo,1000,12,00008005493001,Vin rg Italie autres régions
A90: 82 | B90: 409888 | D90: =VLOOKUP($B90,'Répertoire des produits'!$1:$1048576,4,FALSE) -> Bottero Veneto i.g.t. | E90: =VLOOKUP($B90,'Répertoire des produits'!$1:$1048576,5,FALSE) -> 1000 | F90: =VLOOKUP($B90,'Répertoire des produits'!$1:$1048576,6,FALSE) -> 12 | G90: =VLOOKUP($B90,'Répertoire des produits'!$1:$1048576,3,FALSE) -> 08008863004076 | H90: =VLOOKUP($B90,'Répertoire des produits'!$1:$1048576,2,FALSE) -> Vin rg Italie Vénétie | I90: =CONCATENATE(Tableau1[[#This Row],[Code Article]]&","&Tableau1[[#This Row],[Nom du produit]]&","&Tableau1[[#This Row],[Format]]&","&Tableau1[[#This Row],[UVC]]&","&Tableau1[[#This Row],[CUP]]&","&Tableau1[[#This Row],[Catégorie]]) -> 409888,Bottero Veneto i.g.t.,1000,12,08008863004076,Vin rg Italie Vénétie
A91: 83 | B91: 10678464 | D91: =VLOOKUP($B91,'Répertoire des produits'!$1:$1048576,4,FALSE) -> The Wolftrap Western Cape | E91: =VLOOKUP($B91,'Répertoire des produits'!$1:$1048576,5,FALSE) -> 750 | F91: =VLOOKUP($B91,'Répertoire des produits'!$1:$1048576,6,FALSE) -> 12 | G91: =VLOOKUP($B91,'Répertoire des produits'!$1:$1048576,3,FALSE) -> 00746925000564 | H91: =VLOOKUP($B91,'Répertoire des produits'!$1:$1048576,2,FALSE) -> Vin rg Afrique du Sud | I91: =CONCATENATE(Tableau1[[#This Row],[Code Article]]&","&Tableau1[[#This Row],[Nom du produit]]&","&Tableau1[[#This Row],[Format]]&","&Tableau1[[#This Row],[UVC]]&","&Tableau1[[#This Row],[CUP]]&","&Tableau1[[#This Row],[Catégorie]]) -> 10678464,The Wolftrap Western Cape,750,12,00746925000564,Vin rg Afrique du Sud
A92: 84 | B92: 430611 | D92: =VLOOKUP($B92,'Répertoire des produits'!$1:$1048576,4,FALSE) -> Malbec Trapiche fût de chêne réserve Mendoza | E92: =VLOOKUP($B92,'Répertoire des produits'!$1:$1048576,5,FALSE) -> 750 | F92: =VLOOKUP($B92,'Répertoire des produits'!$1:$1048576,6,FALSE) -> 12 | G92: =VLOOKUP($B92,'Répertoire des produits'!$1:$1048576,3,FALSE) -> 07790240072808 | H92: =VLOOKUP($B92,'Répertoire des produits'!$1:$1048576,2,FALSE) -> Vin rg Argentine | I92: =CONCATENATE(Tableau1[[#This Row],[Code Article]]&","&Tableau1[[#This Row],[Nom du produit]]&","&Tableau1[[#This Row],[Format]]&","&Tableau1[[#This Row],[UVC]]&","&Tableau1[[#This Row],[CUP]]&","&Tableau1[[#This Row],[Catégorie]]) -> 430611,Malbec Trapiche fût de chêne réserve Mendoza,750,12,07790240072808,Vin rg Argentine
A93: 85 | B93: 10327630 | D93: SABASTIANI CABERNET SAUVIGNION | E93: 750 | F93: 12 | H93: VIN ROUGE E.U | I93: =CONCATENATE(Tableau1[[#This Row],[Code Article]]&","&Tableau1[[#This Row],[Nom du produit]]&","&Tableau1[[#This Row],[Format]]&","&Tableau1[[#This Row],[UVC]]&","&Tableau1[[#This Row],[CUP]]&","&Tableau1[[#This Row],[Catégorie]]) -> 10327630,SABASTIANI CABERNET SAUVIGNION,750,12,,VIN ROUGE E.U
A94: 86 | B94: 10669883 | D94: RESERVANIETO SENETER MALBEC | E94: =VLOOKUP($B94,'Répertoire des produits'!$1:$1048576,5,FALSE) -> 750 | F94: 12 | G94: =VLOOKUP($B94,'Répertoire des produits'!$1:$1048576,3,FALSE) -> 07793440700502 | H94: =VLOOKUP($B94,'Répertoire des produits'!$1:$1048576,2,FALSE) -> Vin rg Argentine | I94: =CONCATENATE(Tableau1[[#This Row],[Code Article]]&","&Tableau1[[#This Row],[Nom du produit]]&","&Tableau1[[#This Row],[Format]]&","&Tableau1[[#This Row],[UVC]]&","&Tableau1[[#This Row],[CUP]]&","&Tableau1[[#This Row],[Catégorie]]) -> 10669883,RESERVANIETO SENETER MALBEC,750,12,07793440700502,Vin rg Argentine
A95: 87 | B95: 898502 | D95: =VLOOKUP($B95,'Répertoire des produits'!$1:$1048576,4,FALSE) -> Shiraz Reserve Jacob's Creek Barossa | E95: =VLOOKUP($B95,'Répertoire des produits'!$1:$1048576,5,FALSE) -> 750 | F95: =VLOOKUP($B95,'Répertoire des produits'!$1:$1048576,6,FALSE) -> 12 | G95: =VLOOKUP($B95,'Répertoire des produits'!$1:$1048576,3,FALSE) -> 09300727140517 | H95: =VLOOKUP($B95,'Répertoire des produits'!$1:$1048576,2,FALSE) -> Vin rg Australie | I95: =CONCATENATE(Tableau1[[#This Row],[Code Article]]&","&Tableau1[[#This Row],[Nom du produit]]&","&Tableau1[[#This Row],[Format]]&","&Tableau1[[#This Row],[UVC]]&","&Tableau1[[#This Row],[CUP]]&","&Tableau1[[#This Row],[Catégorie]]) -> 898502,Shiraz Reserve Jacob's Creek Barossa,750,12,09300727140517,Vin rg Australie
A96: 88 | B96: 598623 | D96: =VLOOKUP($B96,'Répertoire des produits'!$1:$1048576,4,FALSE) -> Shiraz/Cabernet-Sauv.Settler's Cove South Eastern Australia | E96: =VLOOKUP($B96,'Répertoire des produits'!$1:$1048576,5,FALSE) -> 750 | F96: =VLOOKUP($B96,'Répertoire des produits'!$1:$1048576,6,FALSE) -> 12 | G96: =VLOOKUP($B96,'Répertoire des produits'!$1:$1048576,3,FALSE) -> 00057496598627 | H96: =VLOOKUP($B96,'Répertoire des produits'!$1:$1048576,2,FALSE) -> Vin rg Australie | I96: =CONCATENATE(Tableau1[[#This Row],[Code Article]]&","&Tableau1[[#This Row],[Nom du produit]]&","&Tableau1[[#This Row],[Format]]&","&Tableau1[[#This Row],[UVC]]&","&Tableau1[[#This Row],[CUP]]&","&Tableau1[[#This Row],[Catégorie]]) -> 598623,Shiraz/Cabernet-Sauv.Settler's Cove South Eastern Australia,750,12,00057496598627,Vin rg Australie
A97: 89 | B97: 11133036 | D97: =VLOOKUP($B97,'Répertoire des produits'!$1:$1048576,4,FALSE) -> Cabernet/Shiraz Cliff 79 South Eastern Australia | E97: =VLOOKUP($B97,'Répertoire des produits'!$1:$1048576,5,FALSE) -> 750 | F97: =VLOOKUP($B97,'Répertoire des produits'!$1:$1048576,6,FALSE) -> 12 | G97: =VLOOKUP($B97,'Répertoire des produits'!$1:$1048576,3,FALSE) -> 00056049021599 | H97: =VLOOKUP($B97,'Répertoire des produits'!$1:$1048576,2,FALSE) -> Vin rg Australie | I97: =CONCATENATE(Tableau1[[#This Row],[Code Article]]&","&Tableau1[[#This Row],[Nom du produit]]&","&Tableau1[[#This Row],[Format]]&","&Tableau1[[#This Row],[UVC]]&","&Tableau1[[#This Row],[CUP]]&","&Tableau1[[#This Row],[Catégorie]]) -> 11133036,Cabernet/Shiraz Cliff 79 South Eastern Australia,750,12,00056049021599,Vin rg Australie
A98: 90 | B98: 48611 | D98: =VLOOKUP($B98,'Répertoire des produits'!$1:$1048576,4,FALSE) -> Cabernet-Sauvignon Woodbridge by Robert Mondavi Californie | E98: =VLOOKUP($B98,'Répertoire des produits'!$1:$1048576,5,FALSE) -> 750 | F98: =VLOOKUP($B98,'Répertoire des produits'!$1:$1048576,6,FALSE) -> 12 | G98: =VLOOKUP($B98,'Répertoire des produits'!$1:$1048576,3,FALSE) -> 00086003000094 | H98: =VLOOKUP($B98,'Répertoire des produits'!$1:$1048576,2,FALSE) -> Vin rg États-Unis | I98: =CONCATENATE(Tableau1[[#This Row],[Code Article]]&","&Tableau1[[#This Row],[Nom du produit]]&","&Tableau1[[#This Row],[Format]]&","&Tableau1[[#This Row],[UVC]]&","&Tableau1[[#This Row],[CUP]]&","&Tableau1[[#This Row],[Catégorie]]) -> 48611,Cabernet-Sauvignon Woodbridge by Robert Mondavi Californie,750,12,00086003000094,Vin rg États-Unis
A99: 91 | B99: 13358183 | D99: seaside syrah | E99: 750 | F99: 12 | G99: 5604913508 | H99: vinrg etats unis | I99: =CONCATENATE(Tableau1[[#This Row],[Code Article]]&","&Tableau1[[#This Row],[Nom du produit]]&","&Tableau1[[#This Row],[Format]]&","&Tableau1[[#This Row],[UVC]]&","&Tableau1[[#This Row],[CUP]]&","&Tableau1[[#This Row],[Catégorie]]) -> 13358183,seaside syrah,750,12,5604913508,vinrg etats unis
A100: 92 | B100: 10967397 | D100: =VLOOKUP($B100,'Répertoire des produits'!$1:$1048576,4,FALSE) -> Cabernet-Sauvignon Château St-Jean California | E100: =VLOOKUP($B100,'Répertoire des produits'!$1:$1048576,5,FALSE) -> 750 | F100: =VLOOKUP($B100,'Répertoire des produits'!$1:$1048576,6,FALSE) -> 12 | G100: =VLOOKUP($B100,'Répertoire des produits'!$1:$1048576,3,FALSE) -> 00089819796861 | H100: =VLOOKUP($B100,'Répertoire des produits'!$1:$1048576,2,FALSE) -> Vin rg États-Unis | I100: =CONCATENATE(Tableau1[[#This Row],[Code Article]]&","&Tableau1[[#This Row],[Nom du produit]]&","&Tableau1[[#This Row],[Format]]&","&Tableau1[[#This Row],[UVC]]&","&Tableau1[[#This Row],[CUP]]&","&Tableau1[[#This Row],[Catégorie]]) -> 10967397,Cabernet-Sauvignon Château St-Jean California,750,12,00089819796861,Vin rg États-Unis
A101: 93 | B101: 335174 | D101: =VLOOKUP($B101,'Répertoire des produits'!$1:$1048576,4,FALSE) -> Cabernet-Sauvignon Errazuriz Max Reserva Aconcagua | E101: =VLOOKUP($B101,'Répertoire des produits'!$1:$1048576,5,FALSE) -> 750 | F101: =VLOOKUP($B101,'Répertoire des produits'!$1:$1048576,6,FALSE) -> 12 | G101: =VLOOKUP($B101,'Répertoire des produits'!$1:$1048576,3,FALSE) -> 00089046777336 | H101: =VLOOKUP($B101,'Répertoire des produits'!$1:$1048576,2,FALSE) -> Vin rg Chili | I101: =CONCATENATE(Tableau1[[#This Row],[Code Article]]&","&Tableau1[[#This Row],[Nom du produit]]&","&Tableau1[[#This Row],[Format]]&","&Tableau1[[#This Row],[UVC]]&","&Tableau1[[#This Row],[CUP]]&","&Tableau1[[#This Row],[Catégorie]]) -> 335174,Cabernet-Sauvignon Errazuriz Max Reserva Aconcagua,750,12,00089046777336,Vin rg Chili
A102: 94 | B102: 586149 | D102: =VLOOKUP($B102,'Répertoire des produits'!$1:$1048576,4,FALSE) -> Shiraz Robertson Winery Robertson | E102: =VLOOKUP($B102,'Répertoire des produits'!$1:$1048576,5,FALSE) -> 750 | F102: =VLOOKUP($B102,'Répertoire des produits'!$1:$1048576,6,FALSE) -> 12 | G102: =VLOOKUP($B102,'Répertoire des produits'!$1:$1048576,3,FALSE) -> 06002039005845 | H102: =VLOOKUP($B102,'Répertoire des produits'!$1:$1048576,2,FALSE) -> Vin rg Afrique du Sud | I102: =CONCATENATE(Tableau1[[#This Row],[Code Article]]&","&Tableau1[[#This Row],[Nom du produit]]&","&Tableau1[[#This Row],[Format]]&","&Tableau1[[#This Row],[UVC]]&","&Tableau1[[#This Row],[CUP]]&","&Tableau1[[#This Row],[Catégorie]]) -> 586149,Shiraz Robertson Winery Robertson,750,12,06002039005845,Vin rg Afrique du Sud
A103: 95 | B103: 10669832 | D103: =VLOOKUP($B103,'Répertoire des produits'!$1:$1048576,4,FALSE) -> Malbec Finca Flichman Mendoza | E103: =VLOOKUP($B103,'Répertoire des produits'!$1:$1048576,5,FALSE) -> 750 | F103: =VLOOKUP($B103,'Répertoire des produits'!$1:$1048576,6,FALSE) -> 12 | G103: =VLOOKUP($B103,'Répertoire des produits'!$1:$1048576,3,FALSE) -> 07790470080222 | H103: =VLOOKUP($B103,'Répertoire des produits'!$1:$1048576,2,FALSE) -> Vin rg Argentine | I103: =CONCATENATE(Tableau1[[#This Row],[Code Article]]&","&Tableau1[[#This Row],[Nom du produit]]&","&Tableau1[[#This Row],[Format]]&","&Tableau1[[#This Row],[UVC]]&","&Tableau1[[#This Row],[CUP]]&","&Tableau1[[#This Row],[Catégorie]]) -> 10669832,Malbec Finca Flichman Mendoza,750,12,07790470080222,Vin rg Argentine
A104: 96 | B104: 530907 | D104: =VLOOKUP($B104,'Répertoire des produits'!$1:$1048576,4,FALSE) -> Cabernet-Sauvignon Trapiche | E104: =VLOOKUP($B104,'Répertoire des produits'!$1:$1048576,5,FALSE) -> 750 | F104: =VLOOKUP($B104,'Répertoire des produits'!$1:$1048576,6,FALSE) -> 12 | G104: =VLOOKUP($B104,'Répertoire des produits'!$1:$1048576,3,FALSE) -> 07790240072150 | H104: =VLOOKUP($B104,'Répertoire des produits'!$1:$1048576,2,FALSE) -> Vin rg Argentine | I104: =CONCATENATE(Tableau1[[#This Row],[Code Article]]&","&Tableau1[[#This Row],[Nom du produit]]&","&Tableau1[[#This Row],[Format]]&","&Tableau1[[#This Row],[UVC]]&","&Tableau1[[#This Row],[CUP]]&","&Tableau1[[#This Row],[Catégorie]]) -> 530907,Cabernet-Sauvignon Trapiche,750,12,07790240072150,Vin rg Argentine
A105: 97 | B105: 560821 | D105: DEAKIN ESTATE | E105: =VLOOKUP($B105,'Répertoire des produits'!$1:$1048576,5,FALSE) -> 750 | G105: =VLOOKUP($B105,'Répertoire des produits'!$1:$1048576,3,FALSE) -> 00636662057320 | H105: =VLOOKUP($B105,'Répertoire des produits'!$1:$1048576,2,FALSE) -> Vin rg Australie | I105: =CONCATENATE(Tableau1[[#This Row],[Code Article]]&","&Tableau1[[#This Row],[Nom du produit]]&","&Tableau1[[#This Row],[Format]]&","&Tableau1[[#This Row],[UVC]]&","&Tableau1[[#This Row],[CUP]]&","&Tableau1[[#This Row],[Catégorie]]) -> 560821,DEAKIN ESTATE,750,,00636662057320,Vin rg Australie
A106: 98 | B106: 860429 | D106: NORTHON MALBEL BARREL SELECT | E106: =VLOOKUP($B106,'Répertoire des produits'!$1:$1048576,5,FALSE) -> 750 | F106: 12 | G106: =VLOOKUP($B106,'Répertoire des produits'!$1:$1048576,3,FALSE) -> 07792319968944 | H106: =VLOOKUP($B106,'Répertoire des produits'!$1:$1048576,2,FALSE) -> Vin rg Argentine | I106: =CONCATENATE(Tableau1[[#This Row],[Code Article]]&","&Tableau1[[#This Row],[Nom du produit]]&","&Tableau1[[#This Row],[Format]]&","&Tableau1[[#This Row],[UVC]]&","&Tableau1[[#This Row],[CUP]]&","&Tableau1[[#This Row],[Catégorie]]) -> 860429,NORTHON MALBEL BARREL SELECT,750,12,07792319968944,Vin rg Argentine
A107: 99 | B107: 12166892 | D107: =VLOOKUP($B107,'Répertoire des produits'!$1:$1048576,4,FALSE) -> Revolution Red Californie | E107: =VLOOKUP($B107,'Répertoire des produits'!$1:$1048576,5,FALSE) -> 750 | F107: =VLOOKUP($B107,'Répertoire des produits'!$1:$1048576,6,FALSE) -> 12 | G107: =VLOOKUP($B107,'Répertoire des produits'!$1:$1048576,3,FALSE) -> 00056049132547 | H107: =VLOOKUP($B107,'Répertoire des produits'!$1:$1048576,2,FALSE) -> Vin rg États-Unis | I107: =CONCATENATE(Tableau1[[#This Row],[Code Article]]&","&Tableau1[[#This Row],[Nom du produit]]&","&Tableau1[[#This Row],[Format]]&","&Tableau1[[#This Row],[UVC]]&","&Tableau1[[#This Row],[CUP]]&","&Tableau1[[#This Row],[Catégorie]]) -> 12166892,Revolution Red Californie,750,12,00056049132547,Vin rg États-Unis
A108: 100 | B108: 856567 | D108: =VLOOKUP($B108,'Répertoire des produits'!$1:$1048576,4,FALSE) -> Cabernet-Sauvignon Liberty School Paso Robles Californie | E108: =VLOOKUP($B108,'Répertoire des produits'!$1:$1048576,5,FALSE) -> 750 | F108: =VLOOKUP($B108,'Répertoire des produits'!$1:$1048576,6,FALSE) -> 12 | G108: =VLOOKUP($B108,'Répertoire des produits'!$1:$1048576,3,FALSE) -> 00657891700207 | H108: =VLOOKUP($B108,'Répertoire des produits'!$1:$1048576,2,FALSE) -> Vin rg États-Unis | I108: =CONCATENATE(Tableau1[[#This Row],[Code Article]]&","&Tableau1[[#This Row],[Nom du produit]]&","&Tableau1[[#This Row],[Format]]&","&Tableau1[[#This Row],[UVC]]&","&Tableau1[[#This Row],[CUP]]&","&Tableau1[[#This Row],[Catégorie]]) -> 856567,Cabernet-Sauvignon Liberty School Paso Robles Californie,750,12,00657891700207,Vin rg États-Unis
A109: 101 | B109: 10709152 | D109: =VLOOKUP($B109,'Répertoire des produits'!$1:$1048576,4,FALSE) -> Ménage à Trois Folie à Deux Californie rouge | E109: =VLOOKUP($B109,'Répertoire des produits'!$1:$1048576,5,FALSE) -> 750 | F109: =VLOOKUP($B109,'Répertoire des produits'!$1:$1048576,6,FALSE) -> 12 | G109: =VLOOKUP($B109,'Répertoire des produits'!$1:$1048576,3,FALSE) -> 00099988071096 | H109: =VLOOKUP($B109,'Répertoire des produits'!$1:$1048576,2,FALSE) -> Vin rg États-Unis | I109: =CONCATENATE(Tableau1[[#This Row],[Code Article]]&","&Tableau1[[#This Row],[Nom du produit]]&","&Tableau1[[#This Row],[Format]]&","&Tableau1[[#This Row],[UVC]]&","&Tableau1[[#This Row],[CUP]]&","&Tableau1[[#This Row],[Catégorie]]) -> 10709152,Ménage à Trois Folie à Deux Californie rouge,750,12,00099988071096,Vin rg États-Unis
A110: 102 | B110: 11315497 | D110: =VLOOKUP($B110,'Répertoire des produits'!$1:$1048576,4,FALSE) -> Apothic Red Californie | E110: =VLOOKUP($B110,'Répertoire des produits'!$1:$1048576,5,FALSE) -> 750 | F110: =VLOOKUP($B110,'Répertoire des produits'!$1:$1048576,6,FALSE) -> 12 | G110: =VLOOKUP($B110,'Répertoire des produits'!$1:$1048576,3,FALSE) -> 00085000017746 | H110: =VLOOKUP($B110,'Répertoire des produits'!$1:$1048576,2,FALSE) -> Vin rg États-Unis | I110: =CONCATENATE(Tableau1[[#This Row],[Code Article]]&","&Tableau1[[#This Row],[Nom du produit]]&","&Tableau1[[#This Row],[Format]]&","&Tableau1[[#This Row],[UVC]]&","&Tableau1[[#This Row],[CUP]]&","&Tableau1[[#This Row],[Catégorie]]) -> 11315497,Apothic Red Californie,750,12,00085000017746,Vin rg États-Unis
A111: 103 | B111: 12698346 | I111: =CONCATENATE(Tableau1[[#This Row],[Code Article]]&","&Tableau1[[#This Row],[Nom du produit]]&","&Tableau1[[#This Row],[Format]]&","&Tableau1[[#This Row],[UVC]]&","&Tableau1[[#This Row],[CUP]]&","&Tableau1[[#This Row],[Catégorie]]) -> 12698346,,,,,
A112: 104 | B112: 11975073 | D112: HACIENIDA ARAUCANO SYRAH | E112: 750 | F112: 12 | H112: VIN ROUGE CHILI | I112: =CONCATENATE(Tableau1[[#This Row],[Code Article]]&","&Tableau1[[#This Row],[Nom du produit]]&","&Tableau1[[#This Row],[Format]]&","&Tableau1[[#This Row],[UVC]]&","&Tableau1[[#This Row],[CUP]]&","&Tableau1[[#This Row],[Catégorie]]) -> 11975073,HACIENIDA ARAUCANO SYRAH,750,12,,VIN ROUGE CHILI
A113: 105 | B113: 10394955 | D113: =VLOOKUP($B113,'Répertoire des produits'!$1:$1048576,4,FALSE) -> Shiraz/Malbec Fuzion Zuccardi Mendoza | E113: =VLOOKUP($B113,'Répertoire des produits'!$1:$1048576,5,FALSE) -> 750 | F113: =VLOOKUP($B113,'Répertoire des produits'!$1:$1048576,6,FALSE) -> 12 | G113: =VLOOKUP($B113,'Répertoire des produits'!$1:$1048576,3,FALSE) -> 07791728018134 | H113: =VLOOKUP($B113,'Répertoire des produits'!$1:$1048576,2,FALSE) -> Vin rg Argentine | I113: =CONCATENATE(Tableau1[[#This Row],[Code Article]]&","&Tableau1[[#This Row],[Nom du produit]]&","&Tableau1[[#This Row],[Format]]&","&Tableau1[[#This Row],[UVC]]&","&Tableau1[[#This Row],[CUP]]&","&Tableau1[[#This Row],[Catégorie]]) -> 10394955,Shiraz/Malbec Fuzion Zuccardi Mendoza,750,12,07791728018134,Vin rg Argentine
A114: 106 | B114: 637876 | D114: =VLOOKUP($B114,'Répertoire des produits'!$1:$1048576,4,FALSE) -> Merlot/Malbec Astica Trapiche Cuyo | E114: =VLOOKUP($B114,'Répertoire des produits'!$1:$1048576,5,FALSE) -> 750 | F114: =VLOOKUP($B114,'Répertoire des produits'!$1:$1048576,6,FALSE) -> 12 | G114: =VLOOKUP($B114,'Répertoire des produits'!$1:$1048576,3,FALSE) -> 07790240026344 | H114: =VLOOKUP($B114,'Répertoire des produits'!$1:$1048576,2,FALSE) -> Vin rg Argentine | I114: =CONCATENATE(Tableau1[[#This Row],[Code Article]]&","&Tableau1[[#This Row],[Nom du produit]]&","&Tableau1[[#This Row],[Format]]&","&Tableau1[[#This Row],[UVC]]&","&Tableau1[[#This Row],[CUP]]&","&Tableau1[[#This Row],[Catégorie]]) -> 637876,Merlot/Malbec Astica Trapiche Cuyo,750,12,07790240026344,Vin rg Argentine
A115: 107 | B115: 145367 | D115: =VLOOKUP($B115,'Répertoire des produits'!$1:$1048576,4,FALSE) -> Shiraz Lindemans Bin 50 South Eastern Australia | E115: =VLOOKUP($B115,'Répertoire des produits'!$1:$1048576,5,FALSE) -> 750 | F115: =VLOOKUP($B115,'Répertoire des produits'!$1:$1048576,6,FALSE) -> 12 | G115: =VLOOKUP($B115,'Répertoire des produits'!$1:$1048576,3,FALSE) -> 00012354087651 | H115: =VLOOKUP($B115,'Répertoire des produits'!$1:$1048576,2,FALSE) -> Vin rg Australie | I115: =CONCATENATE(Tableau1[[#This Row],[Code Article]]&","&Tableau1[[#This Row],[Nom du produit]]&","&Tableau1[[#This Row],[Format]]&","&Tableau1[[#This Row],[UVC]]&","&Tableau1[[#This Row],[CUP]]&","&Tableau1[[#This Row],[Catégorie]]) -> 145367,Shiraz Lindemans Bin 50 South Eastern Australia,750,12,00012354087651,Vin rg Australie
A116: 108 | B116: 106377 | D116: =VLOOKUP($B116,'Répertoire des produits'!$1:$1048576,4,FALSE) -> Shiraz/Cabernet Jacob's Creek South Eastern Australia | E116: =VLOOKUP($B116,'Répertoire des produits'!$1:$1048576,5,FALSE) -> 750 | F116: =VLOOKUP($B116,'Répertoire des produits'!$1:$1048576,6,FALSE) -> 12 | G116: =VLOOKUP($B116,'Répertoire des produits'!$1:$1048576,3,FALSE) -> 09300727453112 | H116: =VLOOKUP($B116,'Répertoire des produits'!$1:$1048576,2,FALSE) -> Vin rg Australie | I116: =CONCATENATE(Tableau1[[#This Row],[Code Article]]&","&Tableau1[[#This Row],[Nom du produit]]&","&Tableau1[[#This Row],[Format]]&","&Tableau1[[#This Row],[UVC]]&","&Tableau1[[#This Row],[CUP]]&","&Tableau1[[#This Row],[Catégorie]]) -> 106377,Shiraz/Cabernet Jacob's Creek South Eastern Australia,750,12,09300727453112,Vin rg Australie
A117: 109 | B117: 251876 | D117: =VLOOKUP($B117,'Répertoire des produits'!$1:$1048576,4,FALSE) -> Cabernet-Sauvignon Wolf Blass Yellow Label South Australia | E117: =VLOOKUP($B117,'Répertoire des produits'!$1:$1048576,5,FALSE) -> 750 | F117: =VLOOKUP($B117,'Répertoire des produits'!$1:$1048576,6,FALSE) -> 12 | G117: =VLOOKUP($B117,'Répertoire des produits'!$1:$1048576,3,FALSE) -> 00098137335355 | H117: =VLOOKUP($B117,'Répertoire des produits'!$1:$1048576,2,FALSE) -> Vin rg Australie | I117: =CONCATENATE(Tableau1[[#This Row],[Code Article]]&","&Tableau1[[#This Row],[Nom du produit]]&","&Tableau1[[#This Row],[Format]]&","&Tableau1[[#This Row],[UVC]]&","&Tableau1[[#This Row],[CUP]]&","&Tableau1[[#This Row],[Catégorie]]) -> 251876,Cabernet-Sauvignon Wolf Blass Yellow Label South Australia,750,12,00098137335355,Vin rg Australie
A118: 110 | B118: 11603510 | D118: =VLOOKUP($B118,'Répertoire des produits'!$1:$1048576,4,FALSE) -> Cabernet-Sauvignon The Show Californie | E118: =VLOOKUP($B118,'Répertoire des produits'!$1:$1048576,5,FALSE) -> 750 | F118: =VLOOKUP($B118,'Répertoire des produits'!$1:$1048576,6,FALSE) -> 12 | G118: =VLOOKUP($B118,'Répertoire des produits'!$1:$1048576,3,FALSE) -> 00894509008502 | H118: =VLOOKUP($B118,'Répertoire des produits'!$1:$1048576,2,FALSE) -> Vin rg États-Unis | I118: =CONCATENATE(Tableau1[[#This Row],[Code Article]]&","&Tableau1[[#This Row],[Nom du produit]]&","&Tableau1[[#This Row],[Format]]&","&Tableau1[[#This Row],[UVC]]&","&Tableau1[[#This Row],[CUP]]&","&Tableau1[[#This Row],[Catégorie]]) -> 11603510,Cabernet-Sauvignon The Show Californie,750,12,00894509008502,Vin rg États-Unis
A119: 111 | B119: 576272 | D119: =VLOOKUP($B119,'Répertoire des produits'!$1:$1048576,4,FALSE) -> Syrah RH Phillips Californie | E119: =VLOOKUP($B119,'Répertoire des produits'!$1:$1048576,5,FALSE) -> 750 | F119: =VLOOKUP($B119,'Répertoire des produits'!$1:$1048576,6,FALSE) -> 12 | G119: =VLOOKUP($B119,'Répertoire des produits'!$1:$1048576,3,FALSE) -> 00087110320570 | H119: =VLOOKUP($B119,'Répertoire des produits'!$1:$1048576,2,FALSE) -> Vin rg États-Unis | I119: =CONCATENATE(Tableau1[[#This Row],[Code Article]]&","&Tableau1[[#This Row],[Nom du produit]]&","&Tableau1[[#This Row],[Format]]&","&Tableau1[[#This Row],[UVC]]&","&Tableau1[[#This Row],[CUP]]&","&Tableau1[[#This Row],[Catégorie]]) -> 576272,Syrah RH Phillips Californie,750,12,00087110320570,Vin rg États-Unis
A120: 112 | B120: 308999 | D120: =VLOOKUP($B120,'Répertoire des produits'!$1:$1048576,4,FALSE) -> Big House Red Californie | E120: =VLOOKUP($B120,'Répertoire des produits'!$1:$1048576,5,FALSE) -> 750 | F120: =VLOOKUP($B120,'Répertoire des produits'!$1:$1048576,6,FALSE) -> 12 | G120: =VLOOKUP($B120,'Répertoire des produits'!$1:$1048576,3,FALSE) -> 00769434201260 | H120: =VLOOKUP($B120,'Répertoire des produits'!$1:$1048576,2,FALSE) -> Vin rg États-Unis | I120: =CONCATENATE(Tableau1[[#This Row],[Code Article]]&","&Tableau1[[#This Row],[Nom du produit]]&","&Tableau1[[#This Row],[Format]]&","&Tableau1[[#This Row],[UVC]]&","&Tableau1[[#This Row],[CUP]]&","&Tableau1[[#This Row],[Catégorie]]) -> 308999,Big House Red Californie,750,12,00769434201260,Vin rg États-Unis
A121: 113 | B121: 874891 | D121: CONO SUR RESERVE PINOT NOIR | E121: 750 | F121: 12 | H121: VIN ROUGE CHILI | I121: =CONCATENATE(Tableau1[[#This Row],[Code Article]]&","&Tableau1[[#This Row],[Nom du produit]]&","&Tableau1[[#This Row],[Format]]&","&Tableau1[[#This Row],[UVC]]&","&Tableau1[[#This Row],[CUP]]&","&Tableau1[[#This Row],[Catégorie]]) -> 874891,CONO SUR RESERVE PINOT NOIR,750,12,,VIN ROUGE CHILI
A122: 114 | B122: 10530283 | D122: =VLOOKUP($B122,'Répertoire des produits'!$1:$1048576,4,FALSE) -> Cabernet-Sauvignon/Carmenère Mapu Valle Central | E122: =VLOOKUP($B122,'Répertoire des produits'!$1:$1048576,5,FALSE) -> 750 | F122: =VLOOKUP($B122,'Répertoire des produits'!$1:$1048576,6,FALSE) -> 12 | G122: =VLOOKUP($B122,'Répertoire des produits'!$1:$1048576,3,FALSE) -> 00812485000143 | H122: =VLOOKUP($B122,'Répertoire des produits'!$1:$1048576,2,FALSE) -> Vin rg Chili | I122: =CONCATENATE(Tableau1[[#This Row],[Code Article]]&","&Tableau1[[#This Row],[Nom du produit]]&","&Tableau1[[#This Row],[Format]]&","&Tableau1[[#This Row],[UVC]]&","&Tableau1[[#This Row],[CUP]]&","&Tableau1[[#This Row],[Catégorie]]) -> 10530283,Cabernet-Sauvignon/Carmenère Mapu Valle Central,750,12,00812485000143,Vin rg Chili
A123: 115 | B123: 10529910 | D123: =VLOOKUP($B123,'Répertoire des produits'!$1:$1048576,4,FALSE) -> Shiraz Two Oceans Western Cape | E123: =VLOOKUP($B123,'Répertoire des produits'!$1:$1048576,5,FALSE) -> 750 | F123: =VLOOKUP($B123,'Répertoire des produits'!$1:$1048576,6,FALSE) -> 12 | G123: =VLOOKUP($B123,'Répertoire des produits'!$1:$1048576,3,FALSE) -> 06001108001085 | H123: =VLOOKUP($B123,'Répertoire des produits'!$1:$1048576,2,FALSE) -> Vin rg Afrique du Sud | I123: =CONCATENATE(Tableau1[[#This Row],[Code Article]]&","&Tableau1[[#This Row],[Nom du produit]]&","&Tableau1[[#This Row],[Format]]&","&Tableau1[[#This Row],[UVC]]&","&Tableau1[[#This Row],[CUP]]&","&Tableau1[[#This Row],[Catégorie]]) -> 10529910,Shiraz Two Oceans Western Cape,750,12,06001108001085,Vin rg Afrique du Sud
A124: 116 | B124: 11004550 | D124: CARONE BIN 33 | E124: =VLOOKUP($B124,'Répertoire des produits'!$1:$1048576,5,FALSE) -> 750 | F124: =VLOOKUP($B124,'Répertoire des produits'!$1:$1048576,6,FALSE) -> 12 | G124: =VLOOKUP($B124,'Répertoire des produits'!$1:$1048576,3,FALSE) -> 01627843122974 | H124: =VLOOKUP($B124,'Répertoire des produits'!$1:$1048576,2,FALSE) -> Vin rg Québec | I124: =CONCATENATE(Tableau1[[#This Row],[Code Article]]&","&Tableau1[[#This Row],[Nom du produit]]&","&Tableau1[[#This Row],[Format]]&","&Tableau1[[#This Row],[UVC]]&","&Tableau1[[#This Row],[CUP]]&","&Tableau1[[#This Row],[Catégorie]]) -> 11004550,CARONE BIN 33,750,12,01627843122974,Vin rg Québec
A125: 117 | I125: =CONCATENATE(Tableau1[[#This Row],[Code Article]]&","&Tableau1[[#This Row],[Nom du produit]]&","&Tableau1[[#This Row],[Format]]&","&Tableau1[[#This Row],[UVC]]&","&Tableau1[[#This Row],[CUP]]&","&Tableau1[[#This Row],[Catégorie]]) -> ,,,,,
A126: 118 | B126: 12479872 | D126: =VLOOKUP($B126,'Répertoire des produits'!$1:$1048576,4,FALSE) -> Cabernet Sauvignon Smoky Bay | E126: =VLOOKUP($B126,'Répertoire des produits'!$1:$1048576,5,FALSE) -> 750 | F126: =VLOOKUP($B126,'Répertoire des produits'!$1:$1048576,6,FALSE) -> 12 | G126: =VLOOKUP($B126,'Répertoire des produits'!$1:$1048576,3,FALSE) -> 00057496005569 | H126: =VLOOKUP($B126,'Répertoire des produits'!$1:$1048576,2,FALSE) -> Vin rg Australie | I126: =CONCATENATE(Tableau1[[#This Row],[Code Article]]&","&Tableau1[[#This Row],[Nom du produit]]&","&Tableau1[[#This Row],[Format]]&","&Tableau1[[#This Row],[UVC]]&","&Tableau1[[#This Row],[CUP]]&","&Tableau1[[#This Row],[Catégorie]]) -> 12479872,Cabernet Sauvignon Smoky Bay,750,12,00057496005569,Vin rg Australie
A127: 119 | B127: 11073985 | D127: STERLING VINTNER`S CABETNET SAUVIGNON | E127: 750 | F127: 12 | I127: =CONCATENATE(Tableau1[[#This Row],[Code Article]]&","&Tableau1[[#This Row],[Nom du produit]]&","&Tableau1[[#This Row],[Format]]&","&Tableau1[[#This Row],[UVC]]&","&Tableau1[[#This Row],[CUP]]&","&Tableau1[[#This Row],[Catégorie]]) -> 11073985,STERLING VINTNER`S CABETNET SAUVIGNON,750,12,,
A128: 120 | B128: 11975102 | D128: =VLOOKUP($B128,'Répertoire des produits'!$1:$1048576,4,FALSE) -> Crush The Dreaming Tree North Coast | E128: =VLOOKUP($B128,'Répertoire des produits'!$1:$1048576,5,FALSE) -> 750 | F128: =VLOOKUP($B128,'Répertoire des produits'!$1:$1048576,6,FALSE) -> 12 | G128: =VLOOKUP($B128,'Répertoire des produits'!$1:$1048576,3,FALSE) -> 00082100780020 | H128: =VLOOKUP($B128,'Répertoire des produits'!$1:$1048576,2,FALSE) -> Vin rg États-Unis | I128: =CONCATENATE(Tableau1[[#This Row],[Code Article]]&","&Tableau1[[#This Row],[Nom du produit]]&","&Tableau1[[#This Row],[Format]]&","&Tableau1[[#This Row],[UVC]]&","&Tableau1[[#This Row],[CUP]]&","&Tableau1[[#This Row],[Catégorie]]) -> 11975102,Crush The Dreaming Tree North Coast,750,12,00082100780020,Vin rg États-Unis
A129: 121 | I129: =CONCATENATE(Tableau1[[#This Row],[Code Article]]&","&Tableau1[[#This Row],[Nom du produit]]&","&Tableau1[[#This Row],[Format]]&","&Tableau1[[#This Row],[UVC]]&","&Tableau1[[#This Row],[CUP]]&","&Tableau1[[#This Row],[Catégorie]]) -> ,,,,,
A130: 122 | B130: 10915036 | D130: =VLOOKUP($B130,'Répertoire des produits'!$1:$1048576,4,FALSE) -> Shiraz Barefoot California | E130: =VLOOKUP($B130,'Répertoire des produits'!$1:$1048576,5,FALSE) -> 750 | F130: =VLOOKUP($B130,'Répertoire des produits'!$1:$1048576,6,FALSE) -> 12 | G130: =VLOOKUP($B130,'Répertoire des produits'!$1:$1048576,3,FALSE) -> 00018341751130 | H130: =VLOOKUP($B130,'Répertoire des produits'!$1:$1048576,2,FALSE) -> Vin rg États-Unis | I130: =CONCATENATE(Tableau1[[#This Row],[Code Article]]&","&Tableau1[[#This Row],[Nom du produit]]&","&Tableau1[[#This Row],[Format]]&","&Tableau1[[#This Row],[UVC]]&","&Tableau1[[#This Row],[CUP]]&","&Tableau1[[#This Row],[Catégorie]]) -> 10915036,Shiraz Barefoot California,750,12,00018341751130,Vin rg États-Unis
A131: 123 | B131: 11133175 | D131: =VLOOKUP($B131,'Répertoire des produits'!$1:$1048576,4,FALSE) -> Zinfandel Barefoot Lodi Californie | E131: =VLOOKUP($B131,'Répertoire des produits'!$1:$1048576,5,FALSE) -> 750 | F131: =VLOOKUP($B131,'Répertoire des produits'!$1:$1048576,6,FALSE) -> 12 | G131: =VLOOKUP($B131,'Répertoire des produits'!$1:$1048576,3,FALSE) -> 00018341751093 | H131: =VLOOKUP($B131,'Répertoire des produits'!$1:$1048576,2,FALSE) -> Vin rg États-Unis | I131: =CONCATENATE(Tableau1[[#This Row],[Code Article]]&","&Tableau1[[#This Row],[Nom du produit]]&","&Tableau1[[#This Row],[Format]]&","&Tableau1[[#This Row],[UVC]]&","&Tableau1[[#This Row],[CUP]]&","&Tableau1[[#This Row],[Catégorie]]) -> 11133175,Zinfandel Barefoot Lodi Californie,750,12,00018341751093,Vin rg États-Unis
A132: 124 | B132: 11462411 | D132: =VLOOKUP($B132,'Répertoire des produits'!$1:$1048576,4,FALSE) -> Big House White Californie | E132: =VLOOKUP($B132,'Répertoire des produits'!$1:$1048576,5,FALSE) -> 3000 | F132: =VLOOKUP($B132,'Répertoire des produits'!$1:$1048576,6,FALSE) -> 3 | G132: =VLOOKUP($B132,'Répertoire des produits'!$1:$1048576,3,FALSE) -> 00081308000848 | H132: =VLOOKUP($B132,'Répertoire des produits'!$1:$1048576,2,FALSE) -> Vin bl grands formats | I132: =CONCATENATE(Tableau1[[#This Row],[Code Article]]&","&Tableau1[[#This Row],[Nom du produit]]&","&Tableau1[[#This Row],[Format]]&","&Tableau1[[#This Row],[UVC]]&","&Tableau1[[#This Row],[CUP]]&","&Tableau1[[#This Row],[Catégorie]]) -> 11462411,Big House White Californie,3000,3,00081308000848,Vin bl grands formats
A133: 125 | B133: 11462420 | D133: =VLOOKUP($B133,'Répertoire des produits'!$1:$1048576,4,FALSE) -> Big House Red Californie | E133: =VLOOKUP($B133,'Répertoire des produits'!$1:$1048576,5,FALSE) -> 3000 | F133: =VLOOKUP($B133,'Répertoire des produits'!$1:$1048576,6,FALSE) -> 3 | G133: =VLOOKUP($B133,'Répertoire des produits'!$1:$1048576,3,FALSE) -> 00081308000831 | H133: =VLOOKUP($B133,'Répertoire des produits'!$1:$1048576,2,FALSE) -> Vin rg grands formats | I133: =CONCATENATE(Tableau1[[#This Row],[Code Article]]&","&Tableau1[[#This Row],[Nom du produit]]&","&Tableau1[[#This Row],[Format]]&","&Tableau1[[#This Row],[UVC]]&","&Tableau1[[#This Row],[CUP]]&","&Tableau1[[#This Row],[Catégorie]]) -> 11462420,Big House Red Californie,3000,3,00081308000831,Vin rg grands formats
A134: 126 | B134: 11462104 | D134: =VLOOKUP($B134,'Répertoire des produits'!$1:$1048576,4,FALSE) -> Cabernet/Shiraz Cliff 79 South Eastern Australia | E134: =VLOOKUP($B134,'Répertoire des produits'!$1:$1048576,5,FALSE) -> 3000 | F134: =VLOOKUP($B134,'Répertoire des produits'!$1:$1048576,6,FALSE) -> 4 | G134: =VLOOKUP($B134,'Répertoire des produits'!$1:$1048576,3,FALSE) -> 00056049026105 | H134: =VLOOKUP($B134,'Répertoire des produits'!$1:$1048576,2,FALSE) -> Vin rg grands formats | I134: =CONCATENATE(Tableau1[[#This Row],[Code Article]]&","&Tableau1[[#This Row],[Nom du produit]]&","&Tableau1[[#This Row],[Format]]&","&Tableau1[[#This Row],[UVC]]&","&Tableau1[[#This Row],[CUP]]&","&Tableau1[[#This Row],[Catégorie]]) -> 11462104,Cabernet/Shiraz Cliff 79 South Eastern Australia,3000,4,00056049026105,Vin rg grands formats
A135: 127 | B135: 11974901 | D135: clif chardonny | E135: 3000 | F135: 4 | G135: 5604903236 | H135: vin blanc | I135: =CONCATENATE(Tableau1[[#This Row],[Code Article]]&","&Tableau1[[#This Row],[Nom du produit]]&","&Tableau1[[#This Row],[Format]]&","&Tableau1[[#This Row],[UVC]]&","&Tableau1[[#This Row],[CUP]]&","&Tableau1[[#This Row],[Catégorie]]) -> 11974901,clif chardonny,3000,4,5604903236,vin blanc
A136: 128 | B136: 153197 | D136: cuve st-pierre | E136: 4000 | I136: =CONCATENATE(Tableau1[[#This Row],[Code Article]]&","&Tableau1[[#This Row],[Nom du produit]]&","&Tableau1[[#This Row],[Format]]&","&Tableau1[[#This Row],[UVC]]&","&Tableau1[[#This Row],[CUP]]&","&Tableau1[[#This Row],[Catégorie]]) -> 153197,cuve st-pierre,4000,,,
A137: =ROW(C137)-8 -> 129 | B137: 13503070 | D137: galo rose | E137: 3000 | F137: 4 | I137: =CONCATENATE(Tableau1[[#This Row],[Code Article]]&","&Tableau1[[#This Row],[Nom du produit]]&","&Tableau1[[#This Row],[Format]]&","&Tableau1[[#This Row],[UVC]]&","&Tableau1[[#This Row],[CUP]]&","&Tableau1[[#This Row],[Catégorie]]) -> 13503070,galo rose,3000,4,,
A138: 130 | B138: 10845808 | D138: =VLOOKUP($B138,'Répertoire des produits'!$1:$1048576,4,FALSE) -> White Zinfandel Beringer California Collection | E138: =VLOOKUP($B138,'Répertoire des produits'!$1:$1048576,5,FALSE) -> 750 | F138: =VLOOKUP($B138,'Répertoire des produits'!$1:$1048576,6,FALSE) -> 12 | G138: =VLOOKUP($B138,'Répertoire des produits'!$1:$1048576,3,FALSE) -> 00089819006526 | H138: =VLOOKUP($B138,'Répertoire des produits'!$1:$1048576,2,FALSE) -> Vin rosé | I138: =CONCATENATE(Tableau1[[#This Row],[Code Article]]&","&Tableau1[[#This Row],[Nom du produit]]&","&Tableau1[[#This Row],[Format]]&","&Tableau1[[#This Row],[UVC]]&","&Tableau1[[#This Row],[CUP]]&","&Tableau1[[#This Row],[Catégorie]]) -> 10845808,White Zinfandel Beringer California Collection,750,12,00089819006526,Vin rosé
A139: 131 | B139: 270272 | D139: =VLOOKUP($B139,'Répertoire des produits'!$1:$1048576,4,FALSE) -> Listel-Gris Grain de Gris vin des Sables i.g.p. | E139: =VLOOKUP($B139,'Répertoire des produits'!$1:$1048576,5,FALSE) -> 750 | F139: =VLOOKUP($B139,'Répertoire des produits'!$1:$1048576,6,FALSE) -> 12 | G139: =VLOOKUP($B139,'Répertoire des produits'!$1:$1048576,3,FALSE) -> 03244081500005 | H139: =VLOOKUP($B139,'Répertoire des produits'!$1:$1048576,2,FALSE) -> Vin rosé | I139: =CONCATENATE(Tableau1[[#This Row],[Code Article]]&","&Tableau1[[#This Row],[Nom du produit]]&","&Tableau1[[#This Row],[Format]]&","&Tableau1[[#This Row],[UVC]]&","&Tableau1[[#This Row],[CUP]]&","&Tableau1[[#This Row],[Catégorie]]) -> 270272,Listel-Gris Grain de Gris vin des Sables i.g.p.,750,12,03244081500005,Vin rosé
A140: 132 | B140: 11073918 | D140: =VLOOKUP($B140,'Répertoire des produits'!$1:$1048576,4,FALSE) -> Syrah Rosé C'Est la Vie vin de pays d'Oc | E140: =VLOOKUP($B140,'Répertoire des produits'!$1:$1048576,5,FALSE) -> 750 | F140: =VLOOKUP($B140,'Répertoire des produits'!$1:$1048576,6,FALSE) -> 12 | G140: =VLOOKUP($B140,'Répertoire des produits'!$1:$1048576,3,FALSE) -> 00087113115258 | H140: =VLOOKUP($B140,'Répertoire des produits'!$1:$1048576,2,FALSE) -> Vin rosé | I140: =CONCATENATE(Tableau1[[#This Row],[Code Article]]&","&Tableau1[[#This Row],[Nom du produit]]&","&Tableau1[[#This Row],[Format]]&","&Tableau1[[#This Row],[UVC]]&","&Tableau1[[#This Row],[CUP]]&","&Tableau1[[#This Row],[Catégorie]]) -> 11073918,Syrah Rosé C'Est la Vie vin de pays d'Oc,750,12,00087113115258,Vin rosé
A141: 133 | B141: 285767 | D141: =VLOOKUP($B141,'Répertoire des produits'!$1:$1048576,4,FALSE) -> White Zinfandel Ernest & Julio Gallo Californie rosé | E141: =VLOOKUP($B141,'Répertoire des produits'!$1:$1048576,5,FALSE) -> 750 | F141: =VLOOKUP($B141,'Répertoire des produits'!$1:$1048576,6,FALSE) -> 12 | G141: =VLOOKUP($B141,'Répertoire des produits'!$1:$1048576,3,FALSE) -> 00085000007839 | H141: =VLOOKUP($B141,'Répertoire des produits'!$1:$1048576,2,FALSE) -> Vin rosé | I141: =CONCATENATE(Tableau1[[#This Row],[Code Article]]&","&Tableau1[[#This Row],[Nom du produit]]&","&Tableau1[[#This Row],[Format]]&","&Tableau1[[#This Row],[UVC]]&","&Tableau1[[#This Row],[CUP]]&","&Tableau1[[#This Row],[Catégorie]]) -> 285767,White Zinfandel Ernest & Julio Gallo Californie rosé,750,12,00085000007839,Vin rosé
A142: 134 | B142: 11372766 | D142: =VLOOKUP($B142,'Répertoire des produits'!$1:$1048576,4,FALSE) -> Le Pive Gris de Grande Camargue | E142: =VLOOKUP($B142,'Répertoire des produits'!$1:$1048576,5,FALSE) -> 750 | F142: =VLOOKUP($B142,'Répertoire des produits'!$1:$1048576,6,FALSE) -> 12 | G142: =VLOOKUP($B142,'Répertoire des produits'!$1:$1048576,3,FALSE) -> 03186127750855 | H142: =VLOOKUP($B142,'Répertoire des produits'!$1:$1048576,2,FALSE) -> Vin rosé | I142: =CONCATENATE(Tableau1[[#This Row],[Code Article]]&","&Tableau1[[#This Row],[Nom du produit]]&","&Tableau1[[#This Row],[Format]]&","&Tableau1[[#This Row],[UVC]]&","&Tableau1[[#This Row],[CUP]]&","&Tableau1[[#This Row],[Catégorie]]) -> 11372766,Le Pive Gris de Grande Camargue,750,12,03186127750855,Vin rosé
A143: 135 | B143: 741702 | D143: =VLOOKUP($B143,'Répertoire des produits'!$1:$1048576,4,FALSE) -> Champs de Florence Domaine du Ridge vin rosé | E143: =VLOOKUP($B143,'Répertoire des produits'!$1:$1048576,5,FALSE) -> 750 | F143: =VLOOKUP($B143,'Répertoire des produits'!$1:$1048576,6,FALSE) -> 12 | G143: =VLOOKUP($B143,'Répertoire des produits'!$1:$1048576,3,FALSE) -> 00827924037048 | H143: =VLOOKUP($B143,'Répertoire des produits'!$1:$1048576,2,FALSE) -> Vin rosé Québec | I143: =CONCATENATE(Tableau1[[#This Row],[Code Article]]&","&Tableau1[[#This Row],[Nom du produit]]&","&Tableau1[[#This Row],[Format]]&","&Tableau1[[#This Row],[UVC]]&","&Tableau1[[#This Row],[CUP]]&","&Tableau1[[#This Row],[Catégorie]]) -> 741702,Champs de Florence Domaine du Ridge vin rosé,750,12,00827924037048,Vin rosé Québec
A144: 136 | B144: 10938861 | D144: =VLOOKUP($B144,'Répertoire des produits'!$1:$1048576,4,FALSE) -> Ménage à Trois rosé Folie à Deux | E144: =VLOOKUP($B144,'Répertoire des produits'!$1:$1048576,5,FALSE) -> 750 | F144: =VLOOKUP($B144,'Répertoire des produits'!$1:$1048576,6,FALSE) -> 12 | G144: =VLOOKUP($B144,'Répertoire des produits'!$1:$1048576,3,FALSE) -> 00099988371080 | H144: =VLOOKUP($B144,'Répertoire des produits'!$1:$1048576,2,FALSE) -> Vin rosé | I144: =CONCATENATE(Tableau1[[#This Row],[Code Article]]&","&Tableau1[[#This Row],[Nom du produit]]&","&Tableau1[[#This Row],[Format]]&","&Tableau1[[#This Row],[UVC]]&","&Tableau1[[#This Row],[CUP]]&","&Tableau1[[#This Row],[Catégorie]]) -> 10938861,Ménage à Trois rosé Folie à Deux,750,12,00099988371080,Vin rosé
A145: 137 | B145: 11686626 | D145: domaine les brome rose | E145: 750 | F145: 12 | H145: vin rose | I145: =CONCATENATE(Tableau1[[#This Row],[Code Article]]&","&Tableau1[[#This Row],[Nom du produit]]&","&Tableau1[[#This Row],[Format]]&","&Tableau1[[#This Row],[UVC]]&","&Tableau1[[#This Row],[CUP]]&","&Tableau1[[#This Row],[Catégorie]]) -> 11686626,domaine les brome rose,750,12,,vin rose
A146: 138 | B146: 427625 | D146: =VLOOKUP($B146,'Répertoire des produits'!$1:$1048576,4,FALSE) -> Buti Nages Costières de Nîmes rosé | E146: =VLOOKUP($B146,'Répertoire des produits'!$1:$1048576,5,FALSE) -> 750 | F146: =VLOOKUP($B146,'Répertoire des produits'!$1:$1048576,6,FALSE) -> 12 | G146: =VLOOKUP($B146,'Répertoire des produits'!$1:$1048576,3,FALSE) -> 00690604000065 | H146: =VLOOKUP($B146,'Répertoire des produits'!$1:$1048576,2,FALSE) -> Vin rosé | I146: =CONCATENATE(Tableau1[[#This Row],[Code Article]]&","&Tableau1[[#This Row],[Nom du produit]]&","&Tableau1[[#This Row],[Format]]&","&Tableau1[[#This Row],[UVC]]&","&Tableau1[[#This Row],[CUP]]&","&Tableau1[[#This Row],[Catégorie]]) -> 427625,Buti Nages Costières de Nîmes rosé,750,12,00690604000065,Vin rosé
A147: 139 | B147: 166 | D147: =VLOOKUP($B147,'Répertoire des produits'!$1:$1048576,4,FALSE) -> Mateus rosé | E147: =VLOOKUP($B147,'Répertoire des produits'!$1:$1048576,5,FALSE) -> 750 | F147: =VLOOKUP($B147,'Répertoire des produits'!$1:$1048576,6,FALSE) -> 12 | G147: =VLOOKUP($B147,'Répertoire des produits'!$1:$1048576,3,FALSE) -> 05601012011500 | H147: =VLOOKUP($B147,'Répertoire des produits'!$1:$1048576,2,FALSE) -> Vin rosé | I147: =CONCATENATE(Tableau1[[#This Row],[Code Article]]&","&Tableau1[[#This Row],[Nom du produit]]&","&Tableau1[[#This Row],[Format]]&","&Tableau1[[#This Row],[UVC]]&","&Tableau1[[#This Row],[CUP]]&","&Tableau1[[#This Row],[Catégorie]]) -> 166,Mateus rosé,750,12,05601012011500,Vin rosé
A148: 140 | B148: 308460 | D148: =VLOOKUP($B148,'Répertoire des produits'!$1:$1048576,4,FALSE) -> White Zinfandel Ernest & Julio Gallo sierra valley rosé | E148: =VLOOKUP($B148,'Répertoire des produits'!$1:$1048576,5,FALSE) -> 1500 | F148: =VLOOKUP($B148,'Répertoire des produits'!$1:$1048576,6,FALSE) -> 6 | G148: =VLOOKUP($B148,'Répertoire des produits'!$1:$1048576,3,FALSE) -> 00085000007846 | H148: =VLOOKUP($B148,'Répertoire des produits'!$1:$1048576,2,FALSE) -> Vin rosé | I148: =CONCATENATE(Tableau1[[#This Row],[Code Article]]&","&Tableau1[[#This Row],[Nom du produit]]&","&Tableau1[[#This Row],[Format]]&","&Tableau1[[#This Row],[UVC]]&","&Tableau1[[#This Row],[CUP]]&","&Tableau1[[#This Row],[Catégorie]]) -> 308460,White Zinfandel Ernest & Julio Gallo sierra valley rosé,1500,6,00085000007846,Vin rosé
A149: 141 | I149: =CONCATENATE(Tableau1[[#This Row],[Code Article]]&","&Tableau1[[#This Row],[Nom du produit]]&","&Tableau1[[#This Row],[Format]]&","&Tableau1[[#This Row],[UVC]]&","&Tableau1[[#This Row],[CUP]]&","&Tableau1[[#This Row],[Catégorie]]) -> ,,,,,
A150: 142 | B150: 643700 | D150: =VLOOKUP($B150,'Répertoire des produits'!$1:$1048576,4,FALSE) -> Sauvignon bl. Fumées Blanches Cotes de Gascog IGP | E150: =VLOOKUP($B150,'Répertoire des produits'!$1:$1048576,5,FALSE) -> 750 | F150: =VLOOKUP($B150,'Répertoire des produits'!$1:$1048576,6,FALSE) -> 12 | G150: =VLOOKUP($B150,'Répertoire des produits'!$1:$1048576,3,FALSE) -> 00635335961957 | H150: =VLOOKUP($B150,'Répertoire des produits'!$1:$1048576,2,FALSE) -> Vin bl France Sud-Ouest | I150: =CONCATENATE(Tableau1[[#This Row],[Code Article]]&","&Tableau1[[#This Row],[Nom du produit]]&","&Tableau1[[#This Row],[Format]]&","&Tableau1[[#This Row],[UVC]]&","&Tableau1[[#This Row],[CUP]]&","&Tableau1[[#This Row],[Catégorie]]) -> 643700,Sauvignon bl. Fumées Blanches Cotes de Gascog IGP,750,12,00635335961957,Vin bl France Sud-Ouest
A151: 143 | B151: 10754228 | D151: =VLOOKUP($B151,'Répertoire des produits'!$1:$1048576,4,FALSE) -> Chenin blanc Robertson Winery Robertson | E151: =VLOOKUP($B151,'Répertoire des produits'!$1:$1048576,5,FALSE) -> 750 | F151: =VLOOKUP($B151,'Répertoire des produits'!$1:$1048576,6,FALSE) -> 12 | G151: =VLOOKUP($B151,'Répertoire des produits'!$1:$1048576,3,FALSE) -> 00746925000779 | H151: =VLOOKUP($B151,'Répertoire des produits'!$1:$1048576,2,FALSE) -> Vin bl divers pays | I151: =CONCATENATE(Tableau1[[#This Row],[Code Article]]&","&Tableau1[[#This Row],[Nom du produit]]&","&Tableau1[[#This Row],[Format]]&","&Tableau1[[#This Row],[UVC]]&","&Tableau1[[#This Row],[CUP]]&","&Tableau1[[#This Row],[Catégorie]]) -> 10754228,Chenin blanc Robertson Winery Robertson,750,12,00746925000779,Vin bl divers pays
A152: 144 | B152: 11334794 | D152: =VLOOKUP($B152,'Répertoire des produits'!$1:$1048576,4,FALSE) -> Muscat Natureo Torres | E152: =VLOOKUP($B152,'Répertoire des produits'!$1:$1048576,5,FALSE) -> 750 | F152: =VLOOKUP($B152,'Répertoire des produits'!$1:$1048576,6,FALSE) -> 12 | G152: =VLOOKUP($B152,'Répertoire des produits'!$1:$1048576,3,FALSE) -> 08410113001924 | H152: =VLOOKUP($B152,'Répertoire des produits'!$1:$1048576,2,FALSE) -> Vin bl Espagne | I152: =CONCATENATE(Tableau1[[#This Row],[Code Article]]&","&Tableau1[[#This Row],[Nom du produit]]&","&Tableau1[[#This Row],[Format]]&","&Tableau1[[#This Row],[UVC]]&","&Tableau1[[#This Row],[CUP]]&","&Tableau1[[#This Row],[Catégorie]]) -> 11334794,Muscat Natureo Torres,750,12,08410113001924,Vin bl Espagne
A153: 145 | B153: 541250 | D153: =VLOOKUP($B153,'Répertoire des produits'!$1:$1048576,4,FALSE) -> Fumé blanc Errazuriz Valle de Aconcagua | E153: =VLOOKUP($B153,'Répertoire des produits'!$1:$1048576,5,FALSE) -> 750 | F153: =VLOOKUP($B153,'Répertoire des produits'!$1:$1048576,6,FALSE) -> 12 | G153: =VLOOKUP($B153,'Répertoire des produits'!$1:$1048576,3,FALSE) -> 00608057000051 | H153: =VLOOKUP($B153,'Répertoire des produits'!$1:$1048576,2,FALSE) -> Vin bl Chili | I153: =CONCATENATE(Tableau1[[#This Row],[Code Article]]&","&Tableau1[[#This Row],[Nom du produit]]&","&Tableau1[[#This Row],[Format]]&","&Tableau1[[#This Row],[UVC]]&","&Tableau1[[#This Row],[CUP]]&","&Tableau1[[#This Row],[Catégorie]]) -> 541250,Fumé blanc Errazuriz Valle de Aconcagua,750,12,00608057000051,Vin bl Chili
A154: 146 | B154: 3269 | D154: =VLOOKUP($B154,'Répertoire des produits'!$1:$1048576,4,FALSE) -> Hanns Christof Liebfraumilch Qba Rheinhessen | E154: =VLOOKUP($B154,'Répertoire des produits'!$1:$1048576,5,FALSE) -> 750 | F154: =VLOOKUP($B154,'Répertoire des produits'!$1:$1048576,6,FALSE) -> 12 | G154: =VLOOKUP($B154,'Répertoire des produits'!$1:$1048576,3,FALSE) -> 04003310651104 | H154: =VLOOKUP($B154,'Répertoire des produits'!$1:$1048576,2,FALSE) -> Vin bl divers pays | I154: =CONCATENATE(Tableau1[[#This Row],[Code Article]]&","&Tableau1[[#This Row],[Nom du produit]]&","&Tableau1[[#This Row],[Format]]&","&Tableau1[[#This Row],[UVC]]&","&Tableau1[[#This Row],[CUP]]&","&Tableau1[[#This Row],[Catégorie]]) -> 3269,Hanns Christof Liebfraumilch Qba Rheinhessen,750,12,04003310651104,Vin bl divers pays
A155: 147 | B155: 12698741 | D155: adesso chardonnay | E155: 750 | F155: 12 | G155: =VLOOKUP($B155,'Répertoire des produits'!$1:$1048576,3,FALSE) ->  | H155: vin blanc Italie | I155: =CONCATENATE(Tableau1[[#This Row],[Code Article]]&","&Tableau1[[#This Row],[Nom du produit]]&","&Tableau1[[#This Row],[Format]]&","&Tableau1[[#This Row],[UVC]]&","&Tableau1[[#This Row],[CUP]]&","&Tableau1[[#This Row],[Catégorie]]) -> 
A156: 148 | B156: 11254495 | D156: =VLOOKUP($B156,'Répertoire des produits'!$1:$1048576,4,FALSE) -> Si Soave | E156: =VLOOKUP($B156,'Répertoire des produits'!$1:$1048576,5,FALSE) -> 750 | F156: =VLOOKUP($B156,'Répertoire des produits'!$1:$1048576,6,FALSE) -> 12 | G156: =VLOOKUP($B156,'Répertoire des produits'!$1:$1048576,3,FALSE) -> 00892339002172 | H156: =VLOOKUP($B156,'Répertoire des produits'!$1:$1048576,2,FALSE) -> Vin bl Italie Vénétie | I156: =CONCATENATE(Tableau1[[#This Row],[Code Article]]&","&Tableau1[[#This Row],[Nom du produit]]&","&Tableau1[[#This Row],[Format]]&","&Tableau1[[#This Row],[UVC]]&","&Tableau1[[#This Row],[CUP]]&","&Tableau1[[#This Row],[Catégorie]]) -> 11254495,Si Soave,750,12,00892339002172,Vin bl Italie Vénétie
A157: 149 | B157: 11506120 | D157: DOMAINE ST-JACQUES | E157: 750 | F157: 12 | H157: VIN BLANC | I157: =CONCATENATE(Tableau1[[#This Row],[Code Article]]&","&Tableau1[[#This Row],[Nom du produit]]&","&Tableau1[[#This Row],[Format]]&","&Tableau1[[#This Row],[UVC]]&","&Tableau1[[#This Row],[CUP]]&","&Tableau1[[#This Row],[Catégorie]]) -> 11506120,DOMAINE ST-JACQUES,750,12,,VIN BLANC
A158: 150 | B158: 642827 | D158: =VLOOKUP($B158,'Répertoire des produits'!$1:$1048576,4,FALSE) -> Sauvignon blanc Les Jamelles vin de pays d'Oc | E158: =VLOOKUP($B158,'Répertoire des produits'!$1:$1048576,5,FALSE) -> 750 | F158: =VLOOKUP($B158,'Répertoire des produits'!$1:$1048576,6,FALSE) -> 12 | G158: =VLOOKUP($B158,'Répertoire des produits'!$1:$1048576,3,FALSE) -> 00650298010115 | H158: =VLOOKUP($B158,'Répertoire des produits'!$1:$1048576,2,FALSE) -> Vin bl France Languedoc | I158: =CONCATENATE(Tableau1[[#This Row],[Code Article]]&","&Tableau1[[#This Row],[Nom du produit]]&","&Tableau1[[#This Row],[Format]]&","&Tableau1[[#This Row],[UVC]]&","&Tableau1[[#This Row],[CUP]]&","&Tableau1[[#This Row],[Catégorie]]) -> 642827,Sauvignon blanc Les Jamelles vin de pays d'Oc,750,12,00650298010115,Vin bl France Languedoc
A159: 151 | B159: 964601 | D159: =VLOOKUP($B159,'Répertoire des produits'!$1:$1048576,4,FALSE) -> Pinot grigio Santa Margherita Valdadige | E159: =VLOOKUP($B159,'Répertoire des produits'!$1:$1048576,5,FALSE) -> 750 | F159: =VLOOKUP($B159,'Répertoire des produits'!$1:$1048576,6,FALSE) -> 12 | G159: =VLOOKUP($B159,'Répertoire des produits'!$1:$1048576,3,FALSE) -> 00632987111112 | H159: =VLOOKUP($B159,'Répertoire des produits'!$1:$1048576,2,FALSE) -> Vin bl Italie autres régions | I159: =CONCATENATE(Tableau1[[#This Row],[Code Article]]&","&Tableau1[[#This Row],[Nom du produit]]&","&Tableau1[[#This Row],[Format]]&","&Tableau1[[#This Row],[UVC]]&","&Tableau1[[#This Row],[CUP]]&","&Tableau1[[#This Row],[Catégorie]]) -> 964601,Pinot grigio Santa Margherita Valdadige,750,12,00632987111112,Vin bl Italie autres régions
A160: 152 | B160: 10803114 | D160: =VLOOKUP($B160,'Répertoire des produits'!$1:$1048576,4,FALSE) -> Pinot grigio Voga Delle Venezie i.g.t. | E160: =VLOOKUP($B160,'Répertoire des produits'!$1:$1048576,5,FALSE) -> 750 | F160: =VLOOKUP($B160,'Répertoire des produits'!$1:$1048576,6,FALSE) -> 12 | G160: =VLOOKUP($B160,'Répertoire des produits'!$1:$1048576,3,FALSE) -> 00021893795088 | H160: =VLOOKUP($B160,'Répertoire des produits'!$1:$1048576,2,FALSE) -> Vin bl Italie Vénétie | I160: =CONCATENATE(Tableau1[[#This Row],[Code Article]]&","&Tableau1[[#This Row],[Nom du produit]]&","&Tableau1[[#This Row],[Format]]&","&Tableau1[[#This Row],[UVC]]&","&Tableau1[[#This Row],[CUP]]&","&Tableau1[[#This Row],[Catégorie]]) -> 10803114,Pinot grigio Voga Delle Venezie i.g.t.,750,12,00021893795088,Vin bl Italie Vénétie
A161: 153 | B161: 319905 | D161: =VLOOKUP($B161,'Répertoire des produits'!$1:$1048576,4,FALSE) -> Vinho regional Peninsula de Setúbal Albis J.M. Fonseca | E161: =VLOOKUP($B161,'Répertoire des produits'!$1:$1048576,5,FALSE) -> 750 | F161: =VLOOKUP($B161,'Répertoire des produits'!$1:$1048576,6,FALSE) -> 12 | G161: =VLOOKUP($B161,'Répertoire des produits'!$1:$1048576,3,FALSE) -> 00600470120002 | H161: =VLOOKUP($B161,'Répertoire des produits'!$1:$1048576,2,FALSE) -> Vin bl Portugal | I161: =CONCATENATE(Tableau1[[#This Row],[Code Article]]&","&Tableau1[[#This Row],[Nom du produit]]&","&Tableau1[[#This Row],[Format]]&","&Tableau1[[#This Row],[UVC]]&","&Tableau1[[#This Row],[CUP]]&","&Tableau1[[#This Row],[Catégorie]]) -> 319905,Vinho regional Peninsula de Setúbal Albis J.M. Fonseca,750,12,00600470120002,Vin bl Portugal
A162: 154 | B162: 11442701 | D162: =VLOOKUP($B162,'Répertoire des produits'!$1:$1048576,4,FALSE) -> Mumm Napa Brut Prestige Californie mousseux | E162: =VLOOKUP($B162,'Répertoire des produits'!$1:$1048576,5,FALSE) -> 750 | F162: =VLOOKUP($B162,'Répertoire des produits'!$1:$1048576,6,FALSE) -> 6 | G162: =VLOOKUP($B162,'Répertoire des produits'!$1:$1048576,3,FALSE) -> 00852832000150 | H162: =VLOOKUP($B162,'Répertoire des produits'!$1:$1048576,2,FALSE) -> Mousseux | I162: =CONCATENATE(Tableau1[[#This Row],[Code Article]]&","&Tableau1[[#This Row],[Nom du produit]]&","&Tableau1[[#This Row],[Format]]&","&Tableau1[[#This Row],[UVC]]&","&Tableau1[[#This Row],[CUP]]&","&Tableau1[[#This Row],[Catégorie]]) -> 11442701,Mumm Napa Brut Prestige Californie mousseux,750,6,00852832000150,Mousseux
A163: 155 | B163: 94953 | D163: =VLOOKUP($B163,'Répertoire des produits'!$1:$1048576,4,FALSE) -> Sieur d'Arques Première bulle Blanquette de Limoux mousseux | E163: =VLOOKUP($B163,'Répertoire des produits'!$1:$1048576,5,FALSE) -> 750 | F163: =VLOOKUP($B163,'Répertoire des produits'!$1:$1048576,6,FALSE) -> 12 | G163: =VLOOKUP($B163,'Répertoire des produits'!$1:$1048576,3,FALSE) -> 03062670160344 | H163: =VLOOKUP($B163,'Répertoire des produits'!$1:$1048576,2,FALSE) -> Mousseux | I163: =CONCATENATE(Tableau1[[#This Row],[Code Article]]&","&Tableau1[[#This Row],[Nom du produit]]&","&Tableau1[[#This Row],[Format]]&","&Tableau1[[#This Row],[UVC]]&","&Tableau1[[#This Row],[CUP]]&","&Tableau1[[#This Row],[Catégorie]]) -> 94953,Sieur d'Arques Première bulle Blanquette de Limoux mousseux,750,12,03062670160344,Mousseux
A164: 156 | B164: 884270 | D164: =VLOOKUP($B164,'Répertoire des produits'!$1:$1048576,4,FALSE) -> Bottega moscato Petalo Il Vino dell'Amore mousseux | E164: =VLOOKUP($B164,'Répertoire des produits'!$1:$1048576,5,FALSE) -> 750 | F164: =VLOOKUP($B164,'Répertoire des produits'!$1:$1048576,6,FALSE) -> 12 | G164: =VLOOKUP($B164,'Répertoire des produits'!$1:$1048576,3,FALSE) -> 08005829383206 | H164: =VLOOKUP($B164,'Répertoire des produits'!$1:$1048576,2,FALSE) -> Mousseux | I164: =CONCATENATE(Tableau1[[#This Row],[Code Article]]&","&Tableau1[[#This Row],[Nom du produit]]&","&Tableau1[[#This Row],[Format]]&","&Tableau1[[#This Row],[UVC]]&","&Tableau1[[#This Row],[CUP]]&","&Tableau1[[#This Row],[Catégorie]]) -> 884270,Bottega moscato Petalo Il Vino dell'Amore mousseux,750,12,08005829383206,Mousseux
A165: 157 | B165: 142117 | D165: =VLOOKUP($B165,'Répertoire des produits'!$1:$1048576,4,FALSE) -> Chardonnay Bin 65 Lindemans South Eastern Australia | E165: =VLOOKUP($B165,'Répertoire des produits'!$1:$1048576,5,FALSE) -> 750 | F165: =VLOOKUP($B165,'Répertoire des produits'!$1:$1048576,6,FALSE) -> 12 | G165: =VLOOKUP($B165,'Répertoire des produits'!$1:$1048576,3,FALSE) -> 00012354081840 | H165: =VLOOKUP($B165,'Répertoire des produits'!$1:$1048576,2,FALSE) -> Vin bl Australie | I165: =CONCATENATE(Tableau1[[#This Row],[Code Article]]&","&Tableau1[[#This Row],[Nom du produit]]&","&Tableau1[[#This Row],[Format]]&","&Tableau1[[#This Row],[UVC]]&","&Tableau1[[#This Row],[CUP]]&","&Tableau1[[#This Row],[Catégorie]]) -> 142117,Chardonnay Bin 65 Lindemans South Eastern Australia,750,12,00012354081840,Vin bl Australie
A166: 158 | B166: 219105 | D166: =VLOOKUP($B166,'Répertoire des produits'!$1:$1048576,4,FALSE) -> Sémillon/Chardonnay Jacob's Creek South Eastern Australia | E166: =VLOOKUP($B166,'Répertoire des produits'!$1:$1048576,5,FALSE) -> 750 | F166: =VLOOKUP($B166,'Répertoire des produits'!$1:$1048576,6,FALSE) -> 12 | G166: =VLOOKUP($B166,'Répertoire des produits'!$1:$1048576,3,FALSE) -> 09300727367112 | H166: =VLOOKUP($B166,'Répertoire des produits'!$1:$1048576,2,FALSE) -> Vin bl Australie | I166: =CONCATENATE(Tableau1[[#This Row],[Code Article]]&","&Tableau1[[#This Row],[Nom du produit]]&","&Tableau1[[#This Row],[Format]]&","&Tableau1[[#This Row],[UVC]]&","&Tableau1[[#This Row],[CUP]]&","&Tableau1[[#This Row],[Catégorie]]) -> 219105,Sémillon/Chardonnay Jacob's Creek South Eastern Australia,750,12,09300727367112,Vin bl Australie
A167: 159 | B167: 298505 | D167: =VLOOKUP($B167,'Répertoire des produits'!$1:$1048576,4,FALSE) -> La Vieille Ferme Luberon | E167: =VLOOKUP($B167,'Répertoire des produits'!$1:$1048576,5,FALSE) -> 750 | F167: =VLOOKUP($B167,'Répertoire des produits'!$1:$1048576,6,FALSE) -> 12 | G167: =VLOOKUP($B167,'Répertoire des produits'!$1:$1048576,3,FALSE) -> 00631470000049 | H167: =VLOOKUP($B167,'Répertoire des produits'!$1:$1048576,2,FALSE) -> Vin bl France Vallée du Rhône | I167: =CONCATENATE(Tableau1[[#This Row],[Code Article]]&","&Tableau1[[#This Row],[Nom du produit]]&","&Tableau1[[#This Row],[Format]]&","&Tableau1[[#This Row],[UVC]]&","&Tableau1[[#This Row],[CUP]]&","&Tableau1[[#This Row],[Catégorie]]) -> 298505,La Vieille Ferme Luberon,750,12,00631470000049,Vin bl France Vallée du Rhône
A168: 160 | B168: 456244 | D168: =VLOOKUP($B168,'Répertoire des produits'!$1:$1048576,4,FALSE) -> Pinot gris Pfaff Alsace | E168: =VLOOKUP($B168,'Répertoire des produits'!$1:$1048576,5,FALSE) -> 750 | F168: =VLOOKUP($B168,'Répertoire des produits'!$1:$1048576,6,FALSE) -> 12 | G168: =VLOOKUP($B168,'Répertoire des produits'!$1:$1048576,3,FALSE) -> 03185130071025 | H168: =VLOOKUP($B168,'Répertoire des produits'!$1:$1048576,2,FALSE) -> Vin bl France Alsace | I168: =CONCATENATE(Tableau1[[#This Row],[Code Article]]&","&Tableau1[[#This Row],[Nom du produit]]&","&Tableau1[[#This Row],[Format]]&","&Tableau1[[#This Row],[UVC]]&","&Tableau1[[#This Row],[CUP]]&","&Tableau1[[#This Row],[Catégorie]]) -> 456244,Pinot gris Pfaff Alsace,750,12,03185130071025,Vin bl France Alsace
A169: 161 | B169: 10327701 | D169: =VLOOKUP($B169,'Répertoire des produits'!$1:$1048576,4,FALSE) -> Sauvignon blanc Kim Crawford Marlborough | E169: =VLOOKUP($B169,'Répertoire des produits'!$1:$1048576,5,FALSE) -> 750 | F169: =VLOOKUP($B169,'Répertoire des produits'!$1:$1048576,6,FALSE) -> 12 | G169: =VLOOKUP($B169,'Répertoire des produits'!$1:$1048576,3,FALSE) -> 09419227006275 | H169: =VLOOKUP($B169,'Répertoire des produits'!$1:$1048576,2,FALSE) -> Vin bl Nouvelle-Zélande | I169: =CONCATENATE(Tableau1[[#This Row],[Code Article]]&","&Tableau1[[#This Row],[Nom du produit]]&","&Tableau1[[#This Row],[Format]]&","&Tableau1[[#This Row],[UVC]]&","&Tableau1[[#This Row],[CUP]]&","&Tableau1[[#This Row],[Catégorie]]) -> 10327701,Sauvignon blanc Kim Crawford Marlborough,750,12,09419227006275,Vin bl Nouvelle-Zélande
A170: 162 | B170: 897215 | D170: =VLOOKUP($B170,'Répertoire des produits'!$1:$1048576,4,FALSE) -> Chardonnay Château St-Jean Sonoma Californie | E170: =VLOOKUP($B170,'Répertoire des produits'!$1:$1048576,5,FALSE) -> 750 | F170: =VLOOKUP($B170,'Répertoire des produits'!$1:$1048576,6,FALSE) -> 12 | G170: =VLOOKUP($B170,'Répertoire des produits'!$1:$1048576,3,FALSE) -> 00089819055098 | H170: =VLOOKUP($B170,'Répertoire des produits'!$1:$1048576,2,FALSE) -> Vin bl États-Unis | I170: =CONCATENATE(Tableau1[[#This Row],[Code Article]]&","&Tableau1[[#This Row],[Nom du produit]]&","&Tableau1[[#This Row],[Format]]&","&Tableau1[[#This Row],[UVC]]&","&Tableau1[[#This Row],[CUP]]&","&Tableau1[[#This Row],[Catégorie]]) -> 897215,Chardonnay Château St-Jean Sonoma Californie,750,12,00089819055098,Vin bl États-Unis
A171: 163 | B171: 316570 | D171: =VLOOKUP($B171,'Répertoire des produits'!$1:$1048576,4,FALSE) -> Sauvignon blanc Oyster Bay Marlborough | E171: =VLOOKUP($B171,'Répertoire des produits'!$1:$1048576,5,FALSE) -> 750 | F171: =VLOOKUP($B171,'Répertoire des produits'!$1:$1048576,6,FALSE) -> 12 | G171: =VLOOKUP($B171,'Répertoire des produits'!$1:$1048576,3,FALSE) -> 09415549802601 | H171: =VLOOKUP($B171,'Répertoire des produits'!$1:$1048576,2,FALSE) -> Vin bl Nouvelle-Zélande | I171: =CONCATENATE(Tableau1[[#This Row],[Code Article]]&","&Tableau1[[#This Row],[Nom du produit]]&","&Tableau1[[#This Row],[Format]]&","&Tableau1[[#This Row],[UVC]]&","&Tableau1[[#This Row],[CUP]]&","&Tableau1[[#This Row],[Catégorie]]) -> 316570,Sauvignon blanc Oyster Bay Marlborough,750,12,09415549802601,Vin bl Nouvelle-Zélande
A172: 164 | B172: 10667351 | D172: =VLOOKUP($B172,'Répertoire des produits'!$1:$1048576,4,FALSE) -> Gazela Vinho verde | E172: =VLOOKUP($B172,'Répertoire des produits'!$1:$1048576,5,FALSE) -> 750 | F172: =VLOOKUP($B172,'Répertoire des produits'!$1:$1048576,6,FALSE) -> 12 | G172: =VLOOKUP($B172,'Répertoire des produits'!$1:$1048576,3,FALSE) -> 05601012045505 | H172: =VLOOKUP($B172,'Répertoire des produits'!$1:$1048576,2,FALSE) -> Vin bl Portugal | I172: =CONCATENATE(Tableau1[[#This Row],[Code Article]]&","&Tableau1[[#This Row],[Nom du produit]]&","&Tableau1[[#This Row],[Format]]&","&Tableau1[[#This Row],[UVC]]&","&Tableau1[[#This Row],[CUP]]&","&Tableau1[[#This Row],[Catégorie]]) -> 10667351,Gazela Vinho verde,750,12,05601012045505,Vin bl Portugal
A173: 165 | B173: 521518 | D173: =VLOOKUP($B173,'Répertoire des produits'!$1:$1048576,4,FALSE) -> Domaine du Tariquet Classic vdp Gascogne | E173: =VLOOKUP($B173,'Répertoire des produits'!$1:$1048576,5,FALSE) -> 750 | F173: =VLOOKUP($B173,'Répertoire des produits'!$1:$1048576,6,FALSE) -> 12 | G173: =VLOOKUP($B173,'Répertoire des produits'!$1:$1048576,3,FALSE) -> 03359880100018 | H173: =VLOOKUP($B173,'Répertoire des produits'!$1:$1048576,2,FALSE) -> Vin bl France Sud-Ouest | I173: =CONCATENATE(Tableau1[[#This Row],[Code Article]]&","&Tableau1[[#This Row],[Nom du produit]]&","&Tableau1[[#This Row],[Format]]&","&Tableau1[[#This Row],[UVC]]&","&Tableau1[[#This Row],[CUP]]&","&Tableau1[[#This Row],[Catégorie]]) -> 521518,Domaine du Tariquet Classic vdp Gascogne,750,12,03359880100018,Vin bl France Sud-Ouest
A174: 166 | B174: 134445 | D174: =VLOOKUP($B174,'Répertoire des produits'!$1:$1048576,4,FALSE) -> La Sablette Muscadet-Sèvre et Maine sur lie | E174: =VLOOKUP($B174,'Répertoire des produits'!$1:$1048576,5,FALSE) -> 750 | F174: =VLOOKUP($B174,'Répertoire des produits'!$1:$1048576,6,FALSE) -> 12 | G174: =VLOOKUP($B174,'Répertoire des produits'!$1:$1048576,3,FALSE) -> 03176780102443 | H174: =VLOOKUP($B174,'Répertoire des produits'!$1:$1048576,2,FALSE) -> Vin bl France Val de Loire | I174: =CONCATENATE(Tableau1[[#This Row],[Code Article]]&","&Tableau1[[#This Row],[Nom du produit]]&","&Tableau1[[#This Row],[Format]]&","&Tableau1[[#This Row],[UVC]]&","&Tableau1[[#This Row],[CUP]]&","&Tableau1[[#This Row],[Catégorie]]) -> 134445,La Sablette Muscadet-Sèvre et Maine sur lie,750,12,03176780102443,Vin bl France Val de Loire
A175: 167 | B175: 2527 | D175: =VLOOKUP($B175,'Répertoire des produits'!$1:$1048576,4,FALSE) -> Mouton Cadet Bordeaux | E175: =VLOOKUP($B175,'Répertoire des produits'!$1:$1048576,5,FALSE) -> 750 | F175: =VLOOKUP($B175,'Répertoire des produits'!$1:$1048576,6,FALSE) -> 12 | G175: =VLOOKUP($B175,'Répertoire des produits'!$1:$1048576,3,FALSE) -> 00083960144045 | H175: =VLOOKUP($B175,'Répertoire des produits'!$1:$1048576,2,FALSE) -> Vin bl France Bordeaux | I175: =CONCATENATE(Tableau1[[#This Row],[Code Article]]&","&Tableau1[[#This Row],[Nom du produit]]&","&Tableau1[[#This Row],[Format]]&","&Tableau1[[#This Row],[UVC]]&","&Tableau1[[#This Row],[CUP]]&","&Tableau1[[#This Row],[Catégorie]]) -> 2527,Mouton Cadet Bordeaux,750,12,00083960144045,Vin bl France Bordeaux
A176: 168 | B176: 255448 | D176: =VLOOKUP($B176,'Répertoire des produits'!$1:$1048576,4,FALSE) -> Fumé blanc Fetzer Valley Oaks Californie | E176: =VLOOKUP($B176,'Répertoire des produits'!$1:$1048576,5,FALSE) -> 750 | F176: =VLOOKUP($B176,'Répertoire des produits'!$1:$1048576,6,FALSE) -> 12 | G176: =VLOOKUP($B176,'Répertoire des produits'!$1:$1048576,3,FALSE) -> 00082896710270 | H176: =VLOOKUP($B176,'Répertoire des produits'!$1:$1048576,2,FALSE) -> Vin bl États-Unis | I176: =CONCATENATE(Tableau1[[#This Row],[Code Article]]&","&Tableau1[[#This Row],[Nom du produit]]&","&Tableau1[[#This Row],[Format]]&","&Tableau1[[#This Row],[UVC]]&","&Tableau1[[#This Row],[CUP]]&","&Tableau1[[#This Row],[Catégorie]]) -> 255448,Fumé blanc Fetzer Valley Oaks Californie,750,12,00082896710270,Vin bl États-Unis
A177: 169 | B177: 122689 | D177: =VLOOKUP($B177,'Répertoire des produits'!$1:$1048576,4,FALSE) -> Henkell Trocken mousseux | E177: =VLOOKUP($B177,'Répertoire des produits'!$1:$1048576,5,FALSE) -> 750 | F177: =VLOOKUP($B177,'Répertoire des produits'!$1:$1048576,6,FALSE) -> 12 | G177: =VLOOKUP($B177,'Répertoire des produits'!$1:$1048576,3,FALSE) -> 04003310011625 | H177: =VLOOKUP($B177,'Répertoire des produits'!$1:$1048576,2,FALSE) -> Mousseux | I177: =CONCATENATE(Tableau1[[#This Row],[Code Article]]&","&Tableau1[[#This Row],[Nom du produit]]&","&Tableau1[[#This Row],[Format]]&","&Tableau1[[#This Row],[UVC]]&","&Tableau1[[#This Row],[CUP]]&","&Tableau1[[#This Row],[Catégorie]]) -> 122689,Henkell Trocken mousseux,750,12,04003310011625,Mousseux
A178: 170 | B178: 11544337 | D178: =VLOOKUP($B178,'Répertoire des produits'!$1:$1048576,4,FALSE) -> Martini & Rossi Asti mousseux | E178: =VLOOKUP($B178,'Répertoire des produits'!$1:$1048576,5,FALSE) -> 750 | F178: =VLOOKUP($B178,'Répertoire des produits'!$1:$1048576,6,FALSE) -> 6 | G178: =VLOOKUP($B178,'Répertoire des produits'!$1:$1048576,3,FALSE) -> 00000570965815 | H178: =VLOOKUP($B178,'Répertoire des produits'!$1:$1048576,2,FALSE) -> Mousseux | I178: =CONCATENATE(Tableau1[[#This Row],[Code Article]]&","&Tableau1[[#This Row],[Nom du produit]]&","&Tableau1[[#This Row],[Format]]&","&Tableau1[[#This Row],[UVC]]&","&Tableau1[[#This Row],[CUP]]&","&Tableau1[[#This Row],[Catégorie]]) -> 11544337,Martini & Rossi Asti mousseux,750,6,00000570965815,Mousseux
A179: 171 | B179: 274720 | D179: =VLOOKUP($B179,'Répertoire des produits'!$1:$1048576,4,FALSE) -> Vi-No-Ze-Ro Müller-Thurgau tafelwein | E179: =VLOOKUP($B179,'Répertoire des produits'!$1:$1048576,5,FALSE) -> 750 | F179: =VLOOKUP($B179,'Répertoire des produits'!$1:$1048576,6,FALSE) -> 12 | G179: =VLOOKUP($B179,'Répertoire des produits'!$1:$1048576,3,FALSE) -> 04002410427206 | H179: =VLOOKUP($B179,'Répertoire des produits'!$1:$1048576,2,FALSE) -> Vin bl divers pays | I179: =CONCATENATE(Tableau1[[#This Row],[Code Article]]&","&Tableau1[[#This Row],[Nom du produit]]&","&Tableau1[[#This Row],[Format]]&","&Tableau1[[#This Row],[UVC]]&","&Tableau1[[#This Row],[CUP]]&","&Tableau1[[#This Row],[Catégorie]]) -> 274720,Vi-No-Ze-Ro Müller-Thurgau tafelwein,750,12,04002410427206,Vin bl divers pays
A180: 172 | B180: 711 | D180: =VLOOKUP($B180,'Répertoire des produits'!$1:$1048576,4,FALSE) -> Fontana di Papa Colli Albani | E180: =VLOOKUP($B180,'Répertoire des produits'!$1:$1048576,5,FALSE) -> 1000 | F180: =VLOOKUP($B180,'Répertoire des produits'!$1:$1048576,6,FALSE) -> 12 | G180: =VLOOKUP($B180,'Répertoire des produits'!$1:$1048576,3,FALSE) -> 08001333700010 | H180: =VLOOKUP($B180,'Répertoire des produits'!$1:$1048576,2,FALSE) -> Vin bl Italie autres régions | I180: =CONCATENATE(Tableau1[[#This Row],[Code Article]]&","&Tableau1[[#This Row],[Nom du produit]]&","&Tableau1[[#This Row],[Format]]&","&Tableau1[[#This Row],[UVC]]&","&Tableau1[[#This Row],[CUP]]&","&Tableau1[[#This Row],[Catégorie]]) -> 711,Fontana di Papa Colli Albani,1000,12,08001333700010,Vin bl Italie autres régions
A181: 173 | B181: 548883 | D181: =VLOOKUP($B181,'Répertoire des produits'!$1:$1048576,4,FALSE) -> Gros Manseng/Sauvignon Brumont vin pays des Côtes de Gascogne | E181: =VLOOKUP($B181,'Répertoire des produits'!$1:$1048576,5,FALSE) -> 750 | F181: =VLOOKUP($B181,'Répertoire des produits'!$1:$1048576,6,FALSE) -> 12 | G181: =VLOOKUP($B181,'Répertoire des produits'!$1:$1048576,3,FALSE) -> 03372220000243 | H181: =VLOOKUP($B181,'Répertoire des produits'!$1:$1048576,2,FALSE) -> Vin bl France Sud-Ouest | I181: =CONCATENATE(Tableau1[[#This Row],[Code Article]]&","&Tableau1[[#This Row],[Nom du produit]]&","&Tableau1[[#This Row],[Format]]&","&Tableau1[[#This Row],[UVC]]&","&Tableau1[[#This Row],[CUP]]&","&Tableau1[[#This Row],[Catégorie]]) -> 548883,Gros Manseng/Sauvignon Brumont vin pays des Côtes de Gascogne,750,12,03372220000243,Vin bl France Sud-Ouest
A182: 174 | B182: 11529591 | D182: =VLOOKUP($B182,'Répertoire des produits'!$1:$1048576,4,FALSE) -> Chardonnay Cliff 79 South East Australia | E182: =VLOOKUP($B182,'Répertoire des produits'!$1:$1048576,5,FALSE) -> 750 | F182: =VLOOKUP($B182,'Répertoire des produits'!$1:$1048576,6,FALSE) -> 12 | G182: =VLOOKUP($B182,'Répertoire des produits'!$1:$1048576,3,FALSE) -> 00056049028918 | H182: =VLOOKUP($B182,'Répertoire des produits'!$1:$1048576,2,FALSE) -> Vin bl Australie | I182: =CONCATENATE(Tableau1[[#This Row],[Code Article]]&","&Tableau1[[#This Row],[Nom du produit]]&","&Tableau1[[#This Row],[Format]]&","&Tableau1[[#This Row],[UVC]]&","&Tableau1[[#This Row],[CUP]]&","&Tableau1[[#This Row],[Catégorie]]) -> 11529591,Chardonnay Cliff 79 South East Australia,750,12,00056049028918,Vin bl Australie
A183: 175 | B183: 10915010 | D183: =VLOOKUP($B183,'Répertoire des produits'!$1:$1048576,4,FALSE) -> Pinot grigio Barefoot California | E183: =VLOOKUP($B183,'Répertoire des produits'!$1:$1048576,5,FALSE) -> 750 | F183: =VLOOKUP($B183,'Répertoire des produits'!$1:$1048576,6,FALSE) -> 12 | G183: =VLOOKUP($B183,'Répertoire des produits'!$1:$1048576,3,FALSE) -> 00085000014448 | H183: =VLOOKUP($B183,'Répertoire des produits'!$1:$1048576,2,FALSE) -> Vin bl États-Unis | I183: =CONCATENATE(Tableau1[[#This Row],[Code Article]]&","&Tableau1[[#This Row],[Nom du produit]]&","&Tableau1[[#This Row],[Format]]&","&Tableau1[[#This Row],[UVC]]&","&Tableau1[[#This Row],[CUP]]&","&Tableau1[[#This Row],[Catégorie]]) -> 10915010,Pinot grigio Barefoot California,750,12,00085000014448,Vin bl États-Unis
A184: 176 | B184: 10754199 | D184: =VLOOKUP($B184,'Répertoire des produits'!$1:$1048576,4,FALSE) -> Chenin blanc/Torrontes Fuzion Mendoza | E184: =VLOOKUP($B184,'Répertoire des produits'!$1:$1048576,5,FALSE) -> 750 | F184: =VLOOKUP($B184,'Répertoire des produits'!$1:$1048576,6,FALSE) -> 12 | G184: =VLOOKUP($B184,'Répertoire des produits'!$1:$1048576,3,FALSE) -> 07791728017366 | H184: =VLOOKUP($B184,'Répertoire des produits'!$1:$1048576,2,FALSE) -> Vin bl Argentine | I184: =CONCATENATE(Tableau1[[#This Row],[Code Article]]&","&Tableau1[[#This Row],[Nom du produit]]&","&Tableau1[[#This Row],[Format]]&","&Tableau1[[#This Row],[UVC]]&","&Tableau1[[#This Row],[CUP]]&","&Tableau1[[#This Row],[Catégorie]]) -> 10754199,Chenin blanc/Torrontes Fuzion Mendoza,750,12,07791728017366,Vin bl Argentine
A185: 177 | B185: 564674 | D185: =VLOOKUP($B185,'Répertoire des produits'!$1:$1048576,4,FALSE) -> Modello Masi Delle Venezie i.g.t. blanc | E185: =VLOOKUP($B185,'Répertoire des produits'!$1:$1048576,5,FALSE) -> 750 | F185: =VLOOKUP($B185,'Répertoire des produits'!$1:$1048576,6,FALSE) -> 12 | G185: =VLOOKUP($B185,'Répertoire des produits'!$1:$1048576,3,FALSE) -> 08002062008132 | H185: =VLOOKUP($B185,'Répertoire des produits'!$1:$1048576,2,FALSE) -> Vin bl Italie Vénétie | I185: =CONCATENATE(Tableau1[[#This Row],[Code Article]]&","&Tableau1[[#This Row],[Nom du produit]]&","&Tableau1[[#This Row],[Format]]&","&Tableau1[[#This Row],[UVC]]&","&Tableau1[[#This Row],[CUP]]&","&Tableau1[[#This Row],[Catégorie]]) -> 564674,Modello Masi Delle Venezie i.g.t. blanc,750,12,08002062008132,Vin bl Italie Vénétie
A186: 178 | B186: 430462 | D186: =VLOOKUP($B186,'Répertoire des produits'!$1:$1048576,4,FALSE) -> Bottero Di Cello Bianco Veneto i.g.t. | E186: =VLOOKUP($B186,'Répertoire des produits'!$1:$1048576,5,FALSE) -> 1000 | F186: =VLOOKUP($B186,'Répertoire des produits'!$1:$1048576,6,FALSE) -> 12 | G186: =VLOOKUP($B186,'Répertoire des produits'!$1:$1048576,3,FALSE) -> 08008863004083 | H186: =VLOOKUP($B186,'Répertoire des produits'!$1:$1048576,2,FALSE) -> Vin bl Italie Vénétie | I186: =CONCATENATE(Tableau1[[#This Row],[Code Article]]&","&Tableau1[[#This Row],[Nom du produit]]&","&Tableau1[[#This Row],[Format]]&","&Tableau1[[#This Row],[UVC]]&","&Tableau1[[#This Row],[CUP]]&","&Tableau1[[#This Row],[Catégorie]]) -> 430462,Bottero Di Cello Bianco Veneto i.g.t.,1000,12,08008863004083,Vin bl Italie Vénétie
A187: 179 | E187: =VLOOKUP($B187,'Répertoire des produits'!$1:$1048576,5,FALSE) ->  | F187: =VLOOKUP($B187,'Répertoire des produits'!$1:$1048576,6,FALSE) ->  | G187: =VLOOKUP($B187,'Répertoire des produits'!$1:$1048576,3,FALSE) ->  | H187: =VLOOKUP($B187,'Répertoire des produits'!$1:$1048576,2,FALSE) ->  | I187: =CONCATENATE(Tableau1[[#This Row],[Code Article]]&","&Tableau1[[#This Row],[Nom du produit]]&","&Tableau1[[#This Row],[Format]]&","&Tableau1[[#This Row],[UVC]]&","&Tableau1[[#This Row],[CUP]]&","&Tableau1[[#This Row],[Catégorie]]) -> 
A188: 180 | B188: 10324615 | D188: =VLOOKUP($B188,'Répertoire des produits'!$1:$1048576,4,FALSE) -> 3 Grappes Blanches De La Chevalière Pays d'Oc IGP | E188: =VLOOKUP($B188,'Répertoire des produits'!$1:$1048576,5,FALSE) -> 750 | F188: =VLOOKUP($B188,'Répertoire des produits'!$1:$1048576,6,FALSE) -> 12 | G188: =VLOOKUP($B188,'Répertoire des produits'!$1:$1048576,3,FALSE) -> 03546680019149 | H188: =VLOOKUP($B188,'Répertoire des produits'!$1:$1048576,2,FALSE) -> Vin bl France Languedoc | I188: =CONCATENATE(Tableau1[[#This Row],[Code Article]]&","&Tableau1[[#This Row],[Nom du produit]]&","&Tableau1[[#This Row],[Format]]&","&Tableau1[[#This Row],[UVC]]&","&Tableau1[[#This Row],[CUP]]&","&Tableau1[[#This Row],[Catégorie]]) -> 10324615,3 Grappes Blanches De La Chevalière Pays d'Oc IGP,750,12,03546680019149,Vin bl France Languedoc
A189: 181 | B189: 10709988 | D189: =VLOOKUP($B189,'Répertoire des produits'!$1:$1048576,4,FALSE) -> Ménage à Trois Folie à Deux Californie blanc | E189: =VLOOKUP($B189,'Répertoire des produits'!$1:$1048576,5,FALSE) -> 750 | F189: =VLOOKUP($B189,'Répertoire des produits'!$1:$1048576,6,FALSE) -> 12 | G189: =VLOOKUP($B189,'Répertoire des produits'!$1:$1048576,3,FALSE) -> 00099988071058 | H189: =VLOOKUP($B189,'Répertoire des produits'!$1:$1048576,2,FALSE) -> Vin bl États-Unis | I189: =CONCATENATE(Tableau1[[#This Row],[Code Article]]&","&Tableau1[[#This Row],[Nom du produit]]&","&Tableau1[[#This Row],[Format]]&","&Tableau1[[#This Row],[UVC]]&","&Tableau1[[#This Row],[CUP]]&","&Tableau1[[#This Row],[Catégorie]]) -> 10709988,Ménage à Trois Folie à Deux Californie blanc,750,12,00099988071058,Vin bl États-Unis
A190: 182 | B190: 9373 | D190: =VLOOKUP($B190,'Répertoire des produits'!$1:$1048576,4,FALSE) -> Sauvignon blanc Gallo Californie | E190: =VLOOKUP($B190,'Répertoire des produits'!$1:$1048576,5,FALSE) -> 750 | F190: =VLOOKUP($B190,'Répertoire des produits'!$1:$1048576,6,FALSE) -> 12 | G190: =VLOOKUP($B190,'Répertoire des produits'!$1:$1048576,3,FALSE) -> 00085000005866 | H190: =VLOOKUP($B190,'Répertoire des produits'!$1:$1048576,2,FALSE) -> Vin bl États-Unis | I190: =CONCATENATE(Tableau1[[#This Row],[Code Article]]&","&Tableau1[[#This Row],[Nom du produit]]&","&Tableau1[[#This Row],[Format]]&","&Tableau1[[#This Row],[UVC]]&","&Tableau1[[#This Row],[CUP]]&","&Tableau1[[#This Row],[Catégorie]]) -> 9373,Sauvignon blanc Gallo Californie,750,12,00085000005866,Vin bl États-Unis
A191: 183 | B191: 10669058 | D191: =VLOOKUP($B191,'Répertoire des produits'!$1:$1048576,4,FALSE) -> Chardonnay Gray Fox Vineyards Californie | E191: =VLOOKUP($B191,'Répertoire des produits'!$1:$1048576,5,FALSE) -> 750 | F191: =VLOOKUP($B191,'Répertoire des produits'!$1:$1048576,6,FALSE) -> 12 | G191: =VLOOKUP($B191,'Répertoire des produits'!$1:$1048576,3,FALSE) -> 00041985442270 | H191: =VLOOKUP($B191,'Répertoire des produits'!$1:$1048576,2,FALSE) -> Vin bl États-Unis | I191: =CONCATENATE(Tableau1[[#This Row],[Code Article]]&","&Tableau1[[#This Row],[Nom du produit]]&","&Tableau1[[#This Row],[Format]]&","&Tableau1[[#This Row],[UVC]]&","&Tableau1[[#This Row],[CUP]]&","&Tableau1[[#This Row],[Catégorie]]) -> 10669058,Chardonnay Gray Fox Vineyards Californie,750,12,00041985442270,Vin bl États-Unis
A192: 184 | B192: 704221 | D192: =VLOOKUP($B192,'Répertoire des produits'!$1:$1048576,4,FALSE) -> L'Orpailleur Vignoble de l'Orpailleur vin blanc | E192: =VLOOKUP($B192,'Répertoire des produits'!$1:$1048576,5,FALSE) -> 750 | F192: =VLOOKUP($B192,'Répertoire des produits'!$1:$1048576,6,FALSE) -> 12 | G192: =VLOOKUP($B192,'Répertoire des produits'!$1:$1048576,3,FALSE) -> 00827924004019 | H192: =VLOOKUP($B192,'Répertoire des produits'!$1:$1048576,2,FALSE) -> Vin bl Québec | I192: =CONCATENATE(Tableau1[[#This Row],[Code Article]]&","&Tableau1[[#This Row],[Nom du produit]]&","&Tableau1[[#This Row],[Format]]&","&Tableau1[[#This Row],[UVC]]&","&Tableau1[[#This Row],[CUP]]&","&Tableau1[[#This Row],[Catégorie]]) -> 704221,L'Orpailleur Vignoble de l'Orpailleur vin blanc,750,12,00827924004019,Vin bl Québec
A193: 185 | B193: 496349 | D193: =VLOOKUP($B193,'Répertoire des produits'!$1:$1048576,4,FALSE) -> Cellier des Dauphins Prestige Côtes du Rhône | E193: =VLOOKUP($B193,'Répertoire des produits'!$1:$1048576,5,FALSE) -> 250 | F193: =VLOOKUP($B193,'Répertoire des produits'!$1:$1048576,6,FALSE) -> 24 | G193: =VLOOKUP($B193,'Répertoire des produits'!$1:$1048576,3,FALSE) -> 03179070188011 | H193: =VLOOKUP($B193,'Répertoire des produits'!$1:$1048576,2,FALSE) -> Vin bl petits formats | I193: =CONCATENATE(Tableau1[[#This Row],[Code Article]]&","&Tableau1[[#This Row],[Nom du produit]]&","&Tableau1[[#This Row],[Format]]&","&Tableau1[[#This Row],[UVC]]&","&Tableau1[[#This Row],[CUP]]&","&Tableau1[[#This Row],[Catégorie]]) -> 496349,Cellier des Dauphins Prestige Côtes du Rhône,250,24,03179070188011,Vin bl petits formats
A194: 186 | B194: 10540721 | D194: zonin prosecco | E194: 750 | F194: 12 | I194: =CONCATENATE(Tableau1[[#This Row],[Code Article]]&","&Tableau1[[#This Row],[Nom du produit]]&","&Tableau1[[#This Row],[Format]]&","&Tableau1[[#This Row],[UVC]]&","&Tableau1[[#This Row],[CUP]]&","&Tableau1[[#This Row],[Catégorie]]) -> 10540721,zonin prosecco,750,12,,
A195: 187 | B195: 11675994 | D195: =VLOOKUP($B195,'Répertoire des produits'!$1:$1048576,4,FALSE) -> Chardonnay Fun Reserve Georges Duboeuf vin de pays d'Oc | E195: =VLOOKUP($B195,'Répertoire des produits'!$1:$1048576,5,FALSE) -> 750 | F195: =VLOOKUP($B195,'Répertoire des produits'!$1:$1048576,6,FALSE) -> 12 | G195: =VLOOKUP($B195,'Répertoire des produits'!$1:$1048576,3,FALSE) -> 03351650016147 | H195: =VLOOKUP($B195,'Répertoire des produits'!$1:$1048576,2,FALSE) -> Vin bl France Languedoc | I195: =CONCATENATE(Tableau1[[#This Row],[Code Article]]&","&Tableau1[[#This Row],[Nom du produit]]&","&Tableau1[[#This Row],[Format]]&","&Tableau1[[#This Row],[UVC]]&","&Tableau1[[#This Row],[CUP]]&","&Tableau1[[#This Row],[Catégorie]]) -> 11675994,Chardonnay Fun Reserve Georges Duboeuf vin de pays d'Oc,750,12,03351650016147,Vin bl France Languedoc
A196: 188 | I196: =CONCATENATE(Tableau1[[#This Row],[Code Article]]&","&Tableau1[[#This Row],[Nom du produit]]&","&Tableau1[[#This Row],[Format]]&","&Tableau1[[#This Row],[UVC]]&","&Tableau1[[#This Row],[CUP]]&","&Tableau1[[#This Row],[Catégorie]]) -> ,,,,,
A197: 189 | B197: 11687101 | D197: =VLOOKUP($B197,'Répertoire des produits'!$1:$1048576,4,FALSE) -> Palm Bay Lime/Cerise (6x355) canette boisson à la vodka | E197: =VLOOKUP($B197,'Répertoire des produits'!$1:$1048576,5,FALSE) -> 355 | F197: =VLOOKUP($B197,'Répertoire des produits'!$1:$1048576,6,FALSE) -> 24 | G197: =VLOOKUP($B197,'Répertoire des produits'!$1:$1048576,3,FALSE) -> 00779469002473 | H197: =VLOOKUP($B197,'Répertoire des produits'!$1:$1048576,2,FALSE) -> Cooler | I197: =CONCATENATE(Tableau1[[#This Row],[Code Article]]&","&Tableau1[[#This Row],[Nom du produit]]&","&Tableau1[[#This Row],[Format]]&","&Tableau1[[#This Row],[UVC]]&","&Tableau1[[#This Row],[CUP]]&","&Tableau1[[#This Row],[Catégorie]]) -> 11687101,Palm Bay Lime/Cerise (6x355) canette boisson à la vodka,355,24,00779469002473,Cooler
A198: 190 | B198: 12884923 | D198: Palm Bay Grenade Hibiscus | E198: =VLOOKUP($B198,'Répertoire des produits'!$1:$1048576,5,FALSE) ->  | F198: =VLOOKUP($B198,'Répertoire des produits'!$1:$1048576,6,FALSE) ->  | G198: =VLOOKUP($B198,'Répertoire des produits'!$1:$1048576,3,FALSE) ->  | H198: =VLOOKUP($B198,'Répertoire des produits'!$1:$1048576,2,FALSE) ->  | I198: =CONCATENATE(Tableau1[[#This Row],[Code Article]]&","&Tableau1[[#This Row],[Nom du produit]]&","&Tableau1[[#This Row],[Format]]&","&Tableau1[[#This Row],[UVC]]&","&Tableau1[[#This Row],[CUP]]&","&Tableau1[[#This Row],[Catégorie]]) -> 
A199: 191 | B199: 11440255 | D199: =VLOOKUP($B199,'Répertoire des produits'!$1:$1048576,4,FALSE) -> Palm Bay Ananas/Mandarine/ Orange (6x355) canette boisson | E199: =VLOOKUP($B199,'Répertoire des produits'!$1:$1048576,5,FALSE) -> 355 | F199: =VLOOKUP($B199,'Répertoire des produits'!$1:$1048576,6,FALSE) -> 24 | G199: =VLOOKUP($B199,'Répertoire des produits'!$1:$1048576,3,FALSE) -> 00779469002428 | H199: =VLOOKUP($B199,'Répertoire des produits'!$1:$1048576,2,FALSE) -> Cooler | I199: =CONCATENATE(Tableau1[[#This Row],[Code Article]]&","&Tableau1[[#This Row],[Nom du produit]]&","&Tableau1[[#This Row],[Format]]&","&Tableau1[[#This Row],[UVC]]&","&Tableau1[[#This Row],[CUP]]&","&Tableau1[[#This Row],[Catégorie]]) -> 11440255,Palm Bay Ananas/Mandarine/ Orange (6x355) canette boisson,355,24,00779469002428,Cooler
A200: 192 | B200: 13248719 | D200: Smirnoff green apple | E200: 355 | F200: 24 | I200: =CONCATENATE(Tableau1[[#This Row],[Code Article]]&","&Tableau1[[#This Row],[Nom du produit]]&","&Tableau1[[#This Row],[Format]]&","&Tableau1[[#This Row],[UVC]]&","&Tableau1[[#This Row],[CUP]]&","&Tableau1[[#This Row],[Catégorie]]) -> 13248719,Smirnoff green apple,355,24,,
A201: =ROW(C201)-8 -> 193 | B201: 11440221 | D201: =VLOOKUP($B201,'Répertoire des produits'!$1:$1048576,4,FALSE) -> Palm Bay Pamplemousse Rose (6x355) canette boisson vodka | E201: =VLOOKUP($B201,'Répertoire des produits'!$1:$1048576,5,FALSE) -> 355 | F201: =VLOOKUP($B201,'Répertoire des produits'!$1:$1048576,6,FALSE) -> 24 | G201: =VLOOKUP($B201,'Répertoire des produits'!$1:$1048576,3,FALSE) -> 00779469002435 | H201: =VLOOKUP($B201,'Répertoire des produits'!$1:$1048576,2,FALSE) -> Cooler | I201: =CONCATENATE(Tableau1[[#This Row],[Code Article]]&","&Tableau1[[#This Row],[Nom du produit]]&","&Tableau1[[#This Row],[Format]]&","&Tableau1[[#This Row],[UVC]]&","&Tableau1[[#This Row],[CUP]]&","&Tableau1[[#This Row],[Catégorie]]) -> 11440221,Palm Bay Pamplemousse Rose (6x355) canette boisson vodka,355,24,00779469002435,Cooler
A202: 194 | B202: 11927661 | D202: =VLOOKUP($B202,'Répertoire des produits'!$1:$1048576,4,FALSE) -> Smirnoff Ice canette 6x355ml cooler au spiritueux | E202: =VLOOKUP($B202,'Répertoire des produits'!$1:$1048576,5,FALSE) -> 355 | F202: =VLOOKUP($B202,'Répertoire des produits'!$1:$1048576,6,FALSE) -> 24 | G202: =VLOOKUP($B202,'Répertoire des produits'!$1:$1048576,3,FALSE) -> 00776103001113 | H202: =VLOOKUP($B202,'Répertoire des produits'!$1:$1048576,2,FALSE) -> Cooler | I202: =CONCATENATE(Tableau1[[#This Row],[Code Article]]&","&Tableau1[[#This Row],[Nom du produit]]&","&Tableau1[[#This Row],[Format]]&","&Tableau1[[#This Row],[UVC]]&","&Tableau1[[#This Row],[CUP]]&","&Tableau1[[#This Row],[Catégorie]]) -> 11927661,Smirnoff Ice canette 6x355ml cooler au spiritueux,355,24,00776103001113,Cooler
... 156 more rows

Sheet Répertoire des produits
A1: Code SAQ | B1: Catégorie | C1: Code CUP | D1: Nom du produit | E1: Format (ml) | F1: Nombre d'unités / caisse (UVC) | G1: Mode d'approvisionnement | H1: Statut
A2: 42 | B2: Whisky | C2: 00080686816157 | D2: Canadian Club whisky canadien | E2: 750 | F2: 12 | G2: Courant achat continu | H2: Article actif
A3: 67 | B3: Vodka et Alcool | C3: 00776103000260 | D3: Smirnoff triple distillation vodka | E3: 750 | F3: 12 | G3: Courant achat continu | H3: Article actif
A4: 117 | B4: Rhum | C4: 00620213015402 | D4: Bacardi Superior rhum blanc | E4: 750 | F4: 12 | G4: Courant achat continu | H4: Article actif
A5: 166 | B5: Vin rosé | C5: 05601012011500 | D5: Mateus rosé | E5: 750 | F5: 12 | G5: Courant achat continu | H5: Article actif
A6: 240 | B6: Spiritueux 200 à 375 ML | C6: 00776103000246 | D6: Smirnoff triple distillation vodka | E6: 375 | F6: 24 | G6: Courant achat continu | H6: Article actif
A7: 356 | B7: Apéritif | C7: 03163933575001 | D7: Dubonnet rouge apéritif | E7: 750 | F7: 12 | G7: Courant achat continu | H7: Article actif
A8: 406 | B8: Gin | C8: 00088004400507 | D8: de Kuyper genièvre | E8: 1140 | F8: 12 | G8: Courant achat continu | H8: Article actif
A9: 463 | B9: Spiritueux 200 à 375 ML | C9: 00080686816027 | D9: Canadian Club whisky canadien | E9: 375 | F9: 24 | G9: Courant achat continu | H9: Article actif
A10: 513 | B10: Vin rg France autres régions | C10: 03264380027034 | D10: Cuvée Saint Pierre Mommessin rouge | E10: 750 | F10: 12 | G10: Courant achat continu | H10: Article actif
A11: 570 | B11: Gin | C11: 05000329002216 | D11: Beefeater London dry gin | E11: 750 | F11: 12 | G11: Courant achat continu | H11: Article actif
A12: 596 | B12: Spiritueux 200 à 375 ML | C12: 00620213015600 | D12: Ron Bacardi rhum blanc | E12: 375 | F12: 24 | G12: Courant achat continu | H12: Article actif
A13: 711 | B13: Vin bl Italie autres régions | C13: 08001333700010 | D13: Fontana di Papa Colli Albani | E13: 1000 | F13: 12 | G13: Courant achat continu | H13: Article actif
A14: 935 | B14: Rhum | C14: 00082000749974 | D14: Captain Morgan rhum blanc | E14: 750 | F14: 12 | G14: Courant achat continu | H14: Article en écoulement
A15: 943 | B15: Vin rg France Bordeaux | C15: 03262151001757 | D15: Mouton Cadet Bordeaux | E15: 750 | F15: 12 | G15: Courant achat continu | H15: Article actif
A16: 1016 | B16: Vin rg Italie autres régions | C16: 08001333700027 | D16: Fontana di Papa Castelli Romani | E16: 1000 | F16: 12 | G16: Courant achat continu | H16: Article actif
A17: 1040 | B17: Gin | C17: 00622153139040 | D17: Gordon's London dry gin | E17: 750 | F17: 12 | G17: Courant achat continu | H17: Article actif
A18: 1099 | B18: Whisky Ecosse | C18: 00622153631049 | D18: Johnnie Walker Red Label scotch blended | E18: 750 | F18: 12 | G18: Courant achat continu | H18: Article actif
A19: 1206 | B19: Rhum | C19: 00620213025401 | D19: Bacardi Gold rhum ambré | E19: 750 | F19: 12 | G19: Courant achat continu | H19: Article actif
A20: 1339 | B20: Gin | C20: 00088004400538 | D20: De Kuyper Genièvre | E20: 750 | F20: 12 | G20: Courant achat continu | H20: Article actif
A21: 1487 | B21: Whisky | C21: 00087000007253 | D21: Crown Royal whisky canadien | E21: 750 | F21: 12 | G21: Courant achat continu | H21: Article actif
A22: 1743 | B22: Vin rg Italie Toscane | C22: 08001660101757 | D22: Ruffino Chianti | E22: 750 | F22: 12 | G22: Courant achat continu | H22: Article actif
A23: 1784 | B23: Liqueur | C23: 03018300000191 | D23: Grand Marnier liqueur d'agrumes | E23: 750 | F23: 12 | G23: Courant achat continu | H23: Article actif
A24: 1867 | B24: Liqueur | C24: 00010391100753 | D24: Drambuie liqueur d'herbe | E24: 750 | F24: 12 | G24: Spécialité achat continu | H24: Article actif
A25: 1925 | B25: Brandy et Cognac | C25: 03049197110236 | D25: Courvoisier Cognac V.S. | E25: 750 | F25: 12 | G25: Courant achat continu | H25: Article actif
A26: 2048 | B26: Apéritif | C26: 08000440112891 | D26: Stock vermouth | E26: 1000 | F26: 12 | G26: Courant achat continu | H26: Article actif
A27: 2253 | B27: Liqueur | C27: 00050037014501 | D27: Amaretto Disaronno Originale liqueur | E27: 750 | F27: 12 | G27: Courant achat continu | H27: Article actif
A28: 2337 | B28: Apéritif | C28: 03394210004109 | D28: St-Raphaël apéritif | E28: 750 | F28: 12 | G28: Courant achat continu | H28: Article actif
A29: 2444 | B29: Rhum | C29: 00622153160044 | D29: Ron Carioca rhum blanc | E29: 750 | F29: 12 | G29: Courant achat continu | H29: Article actif
A30: 2485 | B30: Tequila | C30: 00080686832010 | D30: Sauza Silver tequila | E30: 750 | F30: 12 | G30: Courant achat continu | H30: Article actif
A31: 2527 | B31: Vin bl France Bordeaux | C31: 00083960144045 | D31: Mouton Cadet Bordeaux | E31: 750 | F31: 12 | G31: Courant achat continu | H31: Article actif
A32: 2691 | B32: Gin | C32: 00622153625048 | D32: Tanqueray London dry gin | E32: 750 | F32: 12 | G32: Courant achat continu | H32: Article actif
A33: 2881 | B33: Vin rg France Beaujolais | C33: 03040072510509 | D33: Beaujolais Pisse-Dru Noémie Vernaux | E33: 750 | F33: 12 | G33: Courant achat continu | H33: Article actif
A34: 3004 | B34: Vodka et Alcool | C34: 00622153190041 | D34: Troika vodka | E34: 750 | F34: 12 | G34: Courant achat continu | H34: Article actif
A35: 3103 | B35: Apéritif | C35: 00774336031037 | D35: St-Georges Sélectionné vin fortifié blanc canadien | E35: 1000 | F35: 12 | G35: Courant achat continu | H35: Article actif
A36: 3269 | B36: Vin bl divers pays | C36: 04003310651104 | D36: Hanns Christof Liebfraumilch Qba Rheinhessen | E36: 750 | F36: 12 | G36: Courant achat continu | H36: Article actif
A37: 3467 | B37: Spiritueux 200 à 375 ML | C37: 00622153631025 | D37: Johnnie Walker Red Label scotch blended | E37: 375 | F37: 24 | G37: Courant achat continu | H37: Article actif
A38: 3723 | B38: Brandy et Cognac | C38: 00814789003325 | D38: Chemineaud ***** brandy | E38: 1140 | F38: 12 | G38: Courant achat continu | H38: Article actif
A39: 3962 | B39: Vin rg Italie Toscane | C39: 00618109027516 | D39: Brolio Chianti Classico | E39: 750 | F39: 12 | G39: Courant achat continu | H39: Article actif
A40: 4044 | B40: Apéritif | C40: 08000440112884 | D40: Stock extra sec vermouth | E40: 1000 | F40: 12 | G40: Courant achat continu | H40: Article actif
A41: 4069 | B41: Vin rg petits formats | C41: 08001660101733 | D41: Ruffino Chianti | E41: 375 | F41: 24 | G41: Courant achat continu | H41: Article actif
A42: 4077 | B42: Gin | C42: 00814789003387 | D42: Melchers Maxi Dry dry gin | E42: 1140 | F42: 12 | G42: Courant achat continu | H42: Article actif
A43: 4101 | B43: Brandy et Cognac | C43: 00087236001162 | D43: Rémy Martin Fine Champagne Cognac V.S.O.P. | E43: 750 | F43: 12 | G43: Courant achat continu | H43: Article actif
A44: 4242 | B44: Spiritueux 200 à 375 ML | C44: 00814789003349 | D44: Chemineaud ***** brandy | E44: 375 | F44: 24 | G44: Courant achat continu | H44: Article actif
A45: 4390 | B45: Rhum | C45: 00048415510813 | D45: Lamb's Palm Breeze rhum ambré | E45: 1140 | F45: 12 | G45: Courant achat continu | H45: Article actif
A46: 4440 | B46: Brandy et Cognac | C46: 00814789003332 | D46: Chemineaud ***** brandy | E46: 750 | F46: 12 | G46: Courant achat continu | H46: Article actif
A47: 4655 | B47: Apéritif | C47: 03394210004123 | D47: St-Raphaël doré apéritif | E47: 750 | F47: 12 | G47: Courant achat continu | H47: Article actif
A48: 4945 | B48: Whisky Ecosse | C48: 00814789003226 | D48: St-Leger scotch blended | E48: 1140 | F48: 12 | G48: Courant achat continu | H48: Article actif
A49: 5215 | B49: Liqueur | C49: 00048415163088 | D49: Triple Sec Meagher liqueur d'agrumes | E49: 750 | F49: 12 | G49: Courant achat continu | H49: Article actif
A50: 5322 | B50: Vin bl Portugal | C50: 05601096213333 | D50: Aveleda Vinho verde | E50: 750 | F50: 12 | G50: Courant achat continu | H50: Article actif
A51: 5561 | B51: Vin de Dessert | C51: 00085976033931 | D51: Manischewitz Concord rouge | E51: 750 | F51: 12 | G51: Spécialité achat continu | H51: Article actif
A52: 5595 | B52: Vodka et Alcool | C52: 04750021000966 | D52: Moskovskaya vodka | E52: 750 | F52: 12 | G52: Courant achat continu | H52: Article actif
A53: 5959 | B53: Crème | C53: 05011013100132 | D53: Baileys l'original boisson à la crème irlandaise | E53: 750 | F53: 12 | G53: Courant achat continu | H53: Article actif
A54: 6049 | B54: Apéritif | C54: 00630637091036 | D54: Pernod alcool anisé | E54: 750 | F54: 12 | G54: Spécialité achat continu | H54: Article actif
A55: 6502 | B55: Liqueur | C55: 03035542002004 | D55: Cointreau liqueur d'agrumes | E55: 750 | F55: 12 | G55: Courant achat continu | H55: Article actif
A56: 6585 | B56: Vin rg Espagne | C56: 08410113003027 | D56: Sangre de Toro Torres Catalunya | E56: 750 | F56: 12 | G56: Courant achat continu | H56: Article actif
A57: 6932 | B57: Rhum | C57: 00048415510820 | D57: Lamb's rhum blanc | E57: 1140 | F57: 12 | G57: Courant achat continu | H57: Article actif
A58: 7286 | B58: Apéritif | C58: 00774336072863 | D58: St-Georges Sélectionné vin fortifié canadien | E58: 1000 | F58: 12 | G58: Courant achat continu | H58: Article actif
A59: 7369 | B59: Spiritueux 200 à 375 ML | C59: 05000329002100 | D59: Beefeater London dry gin | E59: 375 | F59: 24 | G59: Courant achat continu | H59: Article actif
A60: 7617 | B60: Whisky Ecosse | C60: 00080432400395 | D60: Chivas Regal 12 ans scotch blended | E60: 750 | F60: 12 | G60: Courant achat continu | H60: Article actif
A61: 7880 | B61: Whisky Ecosse | C61: 00622153629046 | D61: Johnnie Walker Black Label 12 ans scotch blended | E61: 750 | F61: 12 | G61: Courant achat continu | H61: Article actif
A62: 8284 | B62: Brandy et Cognac | C62: 03245996328616 | D62: Hennessy Very Special Cognac V.S. | E62: 750 | F62: 12 | G62: Courant achat continu | H62: Article actif
A63: 8888 | B63: Brandy et Cognac | C63: 00088352103280 | D63: St-Rémy Authentic VSOP brandy | E63: 750 | F63: 12 | G63: Courant achat continu | H63: Article actif
A64: 9043 | B64: Spiritueux 200 à 375 ML | C64: 00087000007604 | D64: Crown Royal whisky canadien | E64: 375 | F64: 24 | G64: Courant achat continu | H64: Article actif
A65: 9118 | B65: Mousseux | C65: 04003310012363 | D65: Henkell Trocken Piccolo mousseux | E65: 200 | F65: 24 | G65: Courant achat continu | H65: Article actif
A66: 9373 | B66: Vin bl États-Unis | C66: 00085000005866 | D66: Sauvignon blanc Gallo Californie | E66: 750 | F66: 12 | G66: Courant achat continu | H66: Article actif
A67: 9902 | B67: Brandy et Cognac | C67: 03049197210332 | D67: Courvoisier Fine Champagne Cognac V.S.O.P. | E67: 750 | F67: 12 | G67: Courant achat continu | H67: Article actif
A68: 10132 | B68: Vin bl France Alsace | C68: 03225820061308 | D68: Sainte-Odile Alsace | E68: 750 | F68: 12 | G68: Courant achat continu | H68: Article actif
A69: 10157 | B69: Whisky | C69: 00080432500170 | D69: Jameson whiskey irlandais | E69: 750 | F69: 12 | G69: Courant achat continu | H69: Article actif
A70: 10207 | B70: Vin bl Italie autres régions | C70: 08004753006298 | D70: Trebbiano/Malvasia Le Contrade Latium IGP | E70: 1000 | F70: 12 | G70: Courant achat continu | H70: Article en écoulement
A71: 10579 | B71: Vin rg Italie autres régions | C71: 08004753004010 | D71: Sangiovese/Merlot Le Contrade Latium IGP | E71: 1000 | F71: 12 | G71: Courant achat continu | H71: Article en écoulement
A72: 11452 | B72: Vin bl France Alsace | C72: 03442680030057 | D72: Riesling Réserve Willm Alsace | E72: 750 | F72: 12 | G72: Courant achat continu | H72: Article actif
A73: 12187 | B73: Whisky Ecosse | C73: 00814789003233 | D73: St-Leger scotch blended | E73: 750 | F73: 12 | G73: Courant achat continu | H73: Article en écoulement
A74: 12195 | B74: Spiritueux 200 à 375 ML | C74: 03018300003284 | D74: Grand Marnier liqueur d'agrumes | E74: 375 | F74: 12 | G74: Courant achat continu | H74: Article actif
A75: 12286 | B75: Vin rg France Vallée du Rhône | C75: 03217661012519 | D75: La Fiole du Pape Châteauneuf- du-Pape | E75: 750 | F75: 12 | G75: Courant achat continu | H75: Article actif
A76: 12385 | B76: Whisky Ecosse | C76: 05010327000176 | D76: Glenfiddich 12 ans Highland scotch single malt | E76: 750 | F76: 12 | G76: Courant achat continu | H76: Article actif
A77: 12443 | B77: Vin rg Italie Vénétie | C77: 00086785120492 | D77: Secco-Bertani Verona i.g.t | E77: 750 | F77: 12 | G77: Courant achat continu | H77: Article actif
A78: 12567 | B78: Brandy et Cognac | C78: 03253781110018 | D78: Gaston de Lagrange Cognac V.S. | E78: 750 | F78: 12 | G78: Courant achat continu | H78: Article actif
A79: 12849 | B79: Vin bl divers pays | C79: 04902650260536 | D79: Hakutsuru sake | E79: 720 | F79: 12 | G79: Courant achat continu | H79: Article actif
A80: 12971 | B80: Apéritif | C80: 08008513005255 | D80: Cremovo à base de marsala Sperone apéritif | E80: 750 | F80: 12 | G80: Spécialité achat continu | H80: Article actif
A81: 15693 | B81: Apéritif | C81: 03163937836009 | D81: Ricard pastis de Marseille alcool anisé | E81: 750 | F81: 12 | G81: Courant achat continu | H81: Article actif
A82: 16840 | B82: Vin rg Italie Vénétie | C82: 08008960096462 | D82: Bolla Valpolicella Classico | E82: 750 | F82: 12 | G82: Courant achat continu | H82: Article actif
A83: 17897 | B83: Vin bl France Bourgogne | C83: 00087113111809 | D83: Chablis Albert Bichot | E83: 750 | F83: 12 | G83: Courant achat continu | H83: Article actif
A84: 18234 | B84: Vin rg France Bordeaux | C84: 03258691483474 | D84: La Terrasse de la Garde Pessac-Léognan | E84: 750 | F84: 12 | G84: Spécialité achat continu | H84: Article actif
A85: 18838 | B85: Vin bl Italie autres régions | C85: 08001935323204 | D85: Campogrande Antinori Orvieto Classico | E85: 750 | F85: 12 | G85: Spécialité achat continu | H85: Article actif
A86: 19877 | B86: Vodka et Alcool | C86: 00624177198775 | D86: Moskova vodka | E86: 1140 | F86: 12 | G86: Courant achat continu | H86: Article en écoulement
A87: 19935 | B87: Vin bl petits formats | C87: 03442680030088 | D87: Riesling Willm Réserve alsace | E87: 375 | F87: 24 | G87: Spécialité achat continu | H87: Article actif
A88: 20214 | B88: Vin rg Italie Piémont | C88: 08000174200024 | D88: Fontanafredda Barolo | E88: 750 | F88: 12 | G88: Courant achat continu | H88: Article actif
A89: 20362 | B89: Vodka et Alcool | C89: 06412709021301 | D89: Finlandia vodka | E89: 750 | F89: 12 | G89: Courant achat continu | H89: Article en écoulement
A90: 20412 | B90: Brandy et Cognac | C90: 00087236001704 | D90: Rémy Martin Very Special Cognac Petite Champagne | E90: 750 | F90: 12 | G90: Courant achat continu | H90: Article actif
A91: 21097 | B91: Whisky Ecosse | C91: 00080432400630 | D91: The Glenlivet 12 ans Highland scotch single malt | E91: 750 | F91: 12 | G91: Courant achat continu | H91: Article actif
A92: 22384 | B92: Vin rg France Languedoc | C92: 03497120000015 | D92: Château de Gourgazaud Minervois | E92: 750 | F92: 12 | G92: Courant achat continu | H92: Article actif
A93: 22558 | B93: Miniatures | C93: 00080686821915 | D93: Canadian Club Premium whisky canadien | E93: 50 | F93: 120 | G93: Spécialité achat continu | H93: Article actif
A94: 22707 | B94: Gin | C94: 00088004400514 | D94: de Kuyper genièvre | E94: 1750 | F94: 6 | G94: Courant achat continu | H94: Article actif
A95: 22871 | B95: Vin bl France Bourgogne | C95: 00087113114305 | D95: Pouilly-Fuissé Albert Bichot | E95: 750 | F95: 12 | G95: Courant achat continu | H95: Article actif
A96: 22889 | B96: Vin rg France Vallée du Rhône | C96: 03552510012006 | D96: Château de la Gardine Châteauneuf-du-Pape | E96: 750 | F96: 12 | G96: Courant achat continu | H96: Article actif
A97: 23358 | B97: Vin rg France Bordeaux | C97: 00618726000046 | D97: J. Lebègue Saint-Emilion | E97: 750 | F97: 12 | G97: Courant achat continu | H97: Article actif
A98: 23465 | B98: Vin rosé | C98: 03244085120001 | D98: Bouquet de Provence Billette Côtes de Provence rosé | E98: 750 | F98: 12 | G98: Courant achat continu | H98: Article actif
A99: 24208 | B99: Apéritif | C99: 03104052010158 | D99: Le Coq d'Or Pineau des Charentes | E99: 750 | F99: 12 | G99: Courant achat continu | H99: Article actif
A100: 24844 | B100: Vin bl Italie autres régions | C100: 08000120622221 | D100: Melini Orvieto Classico | E100: 750 | F100: 12 | G100: Courant achat continu | H100: Article actif
A101: 25007 | B101: Vin bl Italie Vénétie | C101: 08008326112157 | D101: Bertani Soave Classico | E101: 750 | F101: 12 | G101: Spécialité achat continu | H101: Article actif
A102: 26021 | B102: Vin rg Italie Vénétie | C102: 08005390065105 | D102: Sartori Valpolicella Superiore | E102: 750 | F102: 12 | G102: Courant achat continu | H102: Article actif
A103: 26302 | B103: Apéritif | C103: 05201023132067 | D103: Ouzo Cambas extra dry alcool anisé | E103: 750 | F103: 12 | G103: Spécialité achat continu | H103: Article actif
A104: 27102 | B104: Vin bl petits formats | C104: 00087113121808 | D104: Chablis Albert Bichot | E104: 375 | F104: 24 | G104: Spécialité achat continu | H104: Article actif
A105: 27763 | B105: Rhum | C105: 03255537507066 | D105: Saint James agricole rhum ambré | E105: 750 | F105: 12 | G105: Courant achat continu | H105: Article actif
A106: 27888 | B106: Brandy et Cognac | C106: 00057496027882 | D106: Mont Blanc brandy blanc | E106: 1140 | F106: 12 | G106: Spécialité achat continu | H106: Article actif
A107: 28035 | B107: Vin bl Espagne | C107: 08410113001146 | D107: Vina Sol Torres Catalunya | E107: 750 | F107: 12 | G107: Courant achat continu | H107: Article actif
A108: 29645 | B108: Gin | C108: 00814789003370 | D108: Melchers Maxi Dry dry gin | E108: 1750 | F108: 6 | G108: Courant achat continu | H108: Article actif
A109: 29728 | B109: Vin rg Espagne | C109: 08410113003089 | D109: Tempranillo Coronas Torres Catalunya | E109: 750 | F109: 12 | G109: Courant achat continu | H109: Article actif
A110: 29983 | B110: Vin bl France Alsace | C110: 03442680020058 | D110: Pinot blanc Willm Réserve Alsace | E110: 750 | F110: 12 | G110: Courant achat continu | H110: Article actif
A111: 30072 | B111: Vin rg France Bordeaux | C111: 03305160001247 | D111: Ch.Timberlay Merlot/Cabernet- Sauvignon Bordeaux supérieur | E111: 750 | F111: 12 | G111: Courant achat continu | H111: Article actif
A112: 30155 | B112: Vin bl France Bourgogne | C112: 00011373001983 | D112: Bourgogne Aligoté Marquis de Jouennes | E112: 750 | F112: 12 | G112: Courant achat continu | H112: Article actif
A113: 31062 | B113: Vin bl Italie autres régions | C113: 08001660126750 | D113: Ruffino Orvieto Classico | E113: 750 | F113: 12 | G113: Courant achat continu | H113: Article actif
A114: 31096 | B114: Apéritif | C114: 08412449101231 | D114: Tesoro Pale Dry extra sec Xérès | E114: 750 | F114: 12 | G114: Spécialité achat continu | H114: Article actif
A115: 31112 | B115: Whisky Ecosse | C115: 05010327000060 | D115: Grant's Family Reserve scotch blended | E115: 750 | F115: 12 | G115: Courant achat continu | H115: Article actif
A116: 31278 | B116: Liqueur | C116: 03104691024103 | D116: Crème de Cassis de Dijon Lejay Lagoute liqueur de fruit | E116: 750 | F116: 12 | G116: Courant achat continu | H116: Article actif
A117: 31864 | B117: Spiritueux 200 à 375 ML | C117: 00050037014518 | D117: Amaretto Disaronno Originale liqueur | E117: 375 | F117: 12 | G117: Courant achat continu | H117: Article actif
A118: 32276 | B118: Vin rg France Bourgogne | C118: 03473120003829 | D118: Bourgogne Passe-tout-grains Prince Philippe Bouchard Ainé | E118: 750 | F118: 12 | G118: Courant achat continu | H118: Article actif
A119: 32896 | B119: Apéritif | C119: 08412449101248 | D119: Tesoro Amontillado medium dry Xérès | E119: 750 | F119: 12 | G119: Spécialité achat continu | H119: Article actif
A120: 33100 | B120: Spiritueux 200 à 375 ML | C120: 00088004400521 | D120: de Kuyper genièvre | E120: 375 | F120: 24 | G120: Courant achat continu | H120: Article actif
A121: 33480 | B121: Vin bl France Val de Loire | C121: 03273390552054 | D121: Domaine la Moussière Sancerre | E121: 750 | F121: 12 | G121: Spécialité achat continu | H121: Article actif
A122: 33605 | B122: Vin rg France Bordeaux | C122: 03505290101941 | D122: Château Puyfromage Côtes de Bordeaux | E122: 750 | F122: 12 | G122: Courant achat continu | H122: Article actif
A123: 34124 | B123: Rhum | C123: 00622153160075 | D123: Ron Carioca rhum blanc | E123: 1750 | F123: 6 | G123: Courant achat continu | H123: Article actif
A124: 34439 | B124: Vin rg Italie Sicile Sardaigne | C124: 00891006000237 | D124: Corvo Duca di Salaparuta Sicilia i.g.t. | E124: 750 | F124: 12 | G124: Courant achat continu | H124: Article actif
A125: 34637 | B125: Whisky | C125: 00080686816126 | D125: Canadian Club whisky canadien | E125: 1750 | F125: 6 | G125: Courant achat continu | H125: Article actif
A126: 35840 | B126: Vodka et Alcool | C126: 05900343003520 | D126: Zubrowka Bison vodka aromatisée | E126: 750 | F126: 12 | G126: Spécialité achat continu | H126: Article actif
A127: 35881 | B127: Apéritif | C127: 03191010010695 | D127: Berger pastis de Marseille alcool anisé | E127: 750 | F127: 12 | G127: Spécialité achat continu | H127: Article actif
A128: 36012 | B128: Vin rg France Bordeaux | C128: 03326260057378 | D128: La Grande Chapelle merlot/ cabernet-sauvignon Bordeaux | E128: 750 | F128: 12 | G128: Courant achat continu | H128: Article actif
A129: 36483 | B129: Vin rg Espagne | C129: 08410113003119 | D129: Cab.-Sauv. Gran Coronas Reserva Torres Penedès | E129: 750 | F129: 12 | G129: Courant achat continu | H129: Article actif
A130: 37333 | B130: Spiritueux 200 à 375 ML | C130: 03023480110370 | D130: Chartreuse verte liqueur à base d'herbes | E130: 375 | F130: 12 | G130: Spécialité achat continu | H130: Article actif
A131: 38414 | B131: Brandy et Cognac | C131: 03152900051051 | D131: Boulard Calvados Pays d'Auge | E131: 750 | F131: 12 | G131: Courant achat continu | H131: Article actif
A132: 38505 | B132: Vodka et Alcool | C132: 00776103000284 | D132: Smirnoff triple distillation vodka | E132: 1750 | F132: 6 | G132: Courant achat continu | H132: Article actif
A133: 40501 | B133: Vin bl États-Unis | C133: 00086003861862 | D133: Sauvignon blanc Mondavi Woodbridge Californie | E133: 750 | F133: 12 | G133: Courant achat continu | H133: Article actif
A134: 41327 | B134: Liqueur | C134: 00080915078264 | D134: Crème de bananes Bols boisson de fruit | E134: 750 | F134: 12 | G134: Spécialité achat continu | H134: Article actif
A135: 41350 | B135: Vin rg France Bourgogne | C135: 03337690161702 | D135: Mâcon Domaine Bouchard Père & Fils | E135: 750 | F135: 12 | G135: Courant achat continu | H135: Article actif
A136: 41384 | B136: Whisky | C136: 00082184046357 | D136: Jack Daniel's Old No 7 whiskey américain | E136: 750 | F136: 12 | G136: Courant achat continu | H136: Article actif
A137: 42101 | B137: Vin bl France Alsace | C137: 03300370190033 | D137: Riesling Hugel Alsace | E137: 750 | F137: 12 | G137: Spécialité achat continu | H137: Article actif
A138: 43125 | B138: Vin rg France Bordeaux | C138: 03441590000082 | D138: Domaine de l'Ile Margaux Bordeaux supérieur | E138: 750 | F138: 12 | G138: Courant achat continu | H138: Article actif
A139: 44578 | B139: Apéritif | C139: 05201273115209 | D139: Vin de Muscat Samos | E139: 750 | F139: 12 | G139: Spécialité achat continu | H139: Article actif
A140: 44990 | B140: Brandy et Cognac | C140: 03272513020753 | D140: Larsen Cognac V.S.O.P. | E140: 750 | F140: 12 | G140: Courant achat continu | H140: Article actif
A141: 45195 | B141: Vin rg Italie Toscane | C141: 08001660109753 | D141: Ducale Riserva Ruffino Chianti Classico | E141: 750 | F141: 12 | G141: Courant achat continu | H141: Article actif
A142: 45898 | B142: Rhum | C142: 00620213015204 | D142: Ron Bacardi rhum blanc | E142: 1750 | F142: 6 | G142: Courant achat continu | H142: Article actif
A143: 46888 | B143: Vin bl divers pays | C143: 00013791050147 | D143: Retsina d'Attique Kourtaki | E143: 750 | F143: 12 | G143: Spécialité achat continu | H143: Article actif
A144: 46946 | B144: Porto | C144: 05013626111277 | D144: Taylor Fladgate late bottled vintage | E144: 750 | F144: 12 | G144: Courant achat continu | H144: Article actif
A145: 46953 | B145: Vin rg France Bordeaux | C145: 03191740800276 | D145: Vieux Château Renaissance Bordeaux | E145: 750 | F145: 12 | G145: Courant achat continu | H145: Article actif
A146: 48611 | B146: Vin rg États-Unis | C146: 00086003000094 | D146: Cabernet-Sauvignon Woodbridge by Robert Mondavi Californie | E146: 750 | F146: 12 | G146: Courant achat continu | H146: Article actif
A147: 50096 | B147: Vin rg France Beaujolais | C147: 03454140010011 | D147: Beaujolais Collin-Bourisset | E147: 750 | F147: 12 | G147: Courant achat continu | H147: Article actif
A148: 51540 | B148: Miniatures | C148: 00622153631001 | D148: Johnnie Walker Red Label scotch blended | E148: 50 | F148: 192 | G148: Spécialité achat continu | H148: Article actif
A149: 51953 | B149: Champagne | C149: 03260923012000 | D149: Pol Roger Brut Champagne | E149: 750 | F149: 12 | G149: Courant achat continu | H149: Article actif
A150: 53140 | B150: Rhum | C150: 08501110080446 | D150: Havana Club 7 ans rhum brun | E150: 750 | F150: 12 | G150: Courant achat continu | H150: Article actif
A151: 53546 | B151: Vodka et Alcool | C151: 00620213100511 | D151: Russian Prince vodka | E151: 1140 | F151: 12 | G151: Courant achat continu | H151: Article actif
A152: 54593 | B152: Vodka et Alcool | C152: 00622153190072 | D152: Troika vodka | E152: 1750 | F152: 6 | G152: Courant achat continu | H152: Article actif
A153: 55533 | B153: Vin bl France Bourgogne | C153: 03566921001177 | D153: Bourgogne Chardonnay Louis Latour | E153: 750 | F153: 12 | G153: Courant achat continu | H153: Article actif
A154: 56622 | B154: Gin | C154: 05000329002414 | D154: Beefeater London dry gin | E154: 1750 | F154: 6 | G154: Courant achat continu | H154: Article en écoulement
A155: 60004 | B155: Vin bl divers pays | C155: 04003310010420 | D155: Deinhard Riesling Qba Rheinhessen | E155: 750 | F155: 12 | G155: Courant achat continu | H155: Article en écoulement
A156: 63461 | B156: Brandy et Cognac | C156: 03269550254913 | D156: Gautier Cognac V.S. | E156: 750 | F156: 12 | G156: Courant achat continu | H156: Article actif
A157: 64774 | B157: Vin bl Espagne | C157: 08410113001092 | D157: Chardonnay Gran Vina Sol Torres Penedès | E157: 750 | F157: 12 | G157: Spécialité achat continu | H157: Article actif
A158: 65086 | B158: Vin bl Italie autres régions | C158: 08007425000730 | D158: Castello di Pomino Frescobaldi Pomino | E158: 750 | F158: 12 | G158: Spécialité achat continu | H158: Article actif
A159: 66043 | B159: Apéritif | C159: 03304115060001 | D159: Château de Beaulon 5 ans Pineau des Charentes | E159: 750 | F159: 12 | G159: Courant achat continu | H159: Article actif
A160: 69229 | B160: Miniatures | C160: 00000030043947 | D160: Grand Marnier Cordon Rouge liqueur d'agrumes | E160: 50 | F160: 120 | G160: Spécialité achat continu | H160: Article actif
A161: 70540 | B161: Vin rg France Beaujolais | C161: 03351650001662 | D161: Brouilly Georges Duboeuf | E161: 750 | F161: 12 | G161: Courant achat continu | H161: Article actif
A162: 72009 | B162: Miniatures | C162: 00080480016210 | D162: Ron Bacardi rhum blanc | E162: 50 | F162: 120 | G162: Spécialité achat continu | H162: Article actif
A163: 74393 | B163: Spiritueux 200 à 375 ML | C163: 05011013100194 | D163: Baileys l'original boisson à la crème irlandaise | E163: 375 | F163: 12 | G163: Courant achat continu | H163: Article actif
A164: 76497 | B164: Cooler | C164: 08410015700109 | D164: Real Sangria Cruz Garcia boisson aromatisée | E164: 750 | F164: 12 | G164: Courant achat continu | H164: Article actif
A165: 76521 | B165: Vin rg Italie Toscane | C165: 08001935361404 | D165: Santa Cristina Antinori Toscana i.g.t. Sangiovese | E165: 750 | F165: 12 | G165: Courant achat continu | H165: Article actif
A166: 81471 | B166: Vin bl France Alsace | C166: 03499057541005 | D166: Riesling Léon Beyer Réserve Alsace | E166: 750 | F166: 12 | G166: Courant achat continu | H166: Article actif
A167: 81794 | B167: Vin rg Italie Vénétie | C167: 08003503001040 | D167: Rustego Montresor Valpolicella | E167: 750 | F167: 12 | G167: Courant achat continu | H167: Article en écoulement
A168: 83329 | B168: Mousseux | C168: 00057496083321 | D168: Brutus Charles Meunier mousseux | E168: 750 | F168: 12 | G168: Courant achat continu | H168: Article actif
A169: 83709 | B169: Vin bl France Bordeaux | C169: 03338831113109 | D169: Ch. Bonnet Sauv.blanc/Sémillon /Muscadelle Entre-Deux-Mers | E169: 750 | F169: 12 | G169: Courant achat continu | H169: Article actif
A170: 89292 | B170: Vin bl France Alsace | C170: 00087000301344 | D170: Pinot blanc Trimbach Alsace | E170: 750 | F170: 12 | G170: Spécialité achat continu | H170: Article actif
A171: 90076 | B171: Spiritueux 200 à 375 ML | C171: 00057496090077 | D171: Alcool Global 94% | E171: 375 | F171: 24 | G171: Courant achat continu | H171: Article actif
A172: 90167 | B172: Brandy et Cognac | C172: 00057496090169 | D172: Global brandy français | E172: 1140 | F172: 12 | G172: Courant achat continu | H172: Article en écoulement
A173: 90191 | B173: Spiritueux 200 à 375 ML | C173: 00057496090190 | D173: Global Cognac V.S. | E173: 375 | F173: 24 | G173: Courant achat continu | H173: Article en écoulement
A174: 90225 | B174: Brandy et Cognac | C174: 00057496090220 | D174: Global Cognac V.S. | E174: 750 | F174: 12 | G174: Courant achat continu | H174: Article actif
A175: 90456 | B175: Vodka et Alcool | C175: 00057496090459 | D175: Kamouraska vodka | E175: 1140 | F175: 12 | G175: Courant achat continu | H175: Article actif
A176: 90472 | B176: Vodka et Alcool | C176: 00057496090473 | D176: Kamouraska vodka | E176: 750 | F176: 12 | G176: Courant achat continu | H176: Article actif
A177: 93237 | B177: Apéritif | C177: 03280790000016 | D177: Muscat des Papes Muscat de Beaumes-de-Venise | E177: 750 | F177: 12 | G177: Spécialité achat continu | H177: Article actif
A178: 93401 | B178: Vin bl Australie | C178: 00080432124079 | D178: Chardonnay Bin 222 Wyndham Estate South Eastern | E178: 750 | F178: 12 | G178: Courant achat continu | H178: Article actif
A179: 94052 | B179: Whisky Ecosse | C179: 00081753817138 | D179: Glenmorangie Original 10 ans Highland scotch single malt | E179: 750 | F179: 12 | G179: Courant achat continu | H179: Article en écoulement
A180: 94953 | B180: Mousseux | C180: 03062670160344 | D180: Sieur d'Arques Première bulle Blanquette de Limoux mousseux | E180: 750 | F180: 12 | G180: Courant achat continu | H180: Article actif
A181: 95158 | B181: Mousseux | C181: 05450013150103 | D181: Cuvée de L'Écusson Brut mousseux | E181: 750 | F181: 12 | G181: Spécialité achat continu | H181: Article actif
A182: 101394 | B182: Apéritif | C182: 03250510301105 | D182: Reynac Pineau des Charentes | E182: 750 | F182: 12 | G182: Courant achat continu | H182: Article actif
A183: 103861 | B183: Vin rg Italie autres régions | C183: 00008005493001 | D183: Citra Montepulciano d'Abruzzo | E183: 1000 | F183: 12 | G183: Courant achat continu | H183: Article actif
A184: 103887 | B184: Vin rg Espagne | C184: 08410406311006 | D184: Marqués de Caceres Vendimia Seleccionada Crianza Rioja | E184: 750 | F184: 12 | G184: Courant achat continu | H184: Article actif
A185: 105601 | B185: Liqueur | C185: 00088544016770 | D185: Southern Comfort liqueur de pêche et de bourbon | E185: 750 | F185: 12 | G185: Courant achat continu | H185: Article actif
A186: 105742 | B186: Rhum | C186: 00063619100240 | D186: Appleton Estate Extra 12 ans rhum Ambré | E186: 750 | F186: 12 | G186: Spécialité achat continu | H186: Article actif
A187: 106377 | B187: Vin rg Australie | C187: 09300727453112 | D187: Shiraz/Cabernet Jacob's Creek South Eastern Australia | E187: 750 | F187: 12 | G187: Courant achat continu | H187: Article actif
A188: 106492 | B188: Mousseux | C188: 05998815750201 | D188: Hungaria Grande Cuvée Brut mousseux | E188: 750 | F188: 12 | G188: Courant achat continu | H188: Article actif
A189: 107169 | B189: Brandy et Cognac | C189: 03253430105006 | D189: Raynal V.S.O.P. brandy | E189: 750 | F189: 12 | G189: Courant achat continu | H189: Article actif
A190: 107276 | B190: Vin rg Italie Toscane | C190: 08007425000181 | D190: Castello Nipozzano Riserva Frescobaldi Chianti Rùfina | E190: 750 | F190: 12 | G190: Courant achat continu | H190: Article actif
A191: 108357 | B191: Crème | C191: 05011026105292 | D191: Carolans boisson à la crème irlandaise | E191: 750 | F191: 12 | G191: Courant achat continu | H191: Article en écoulement
A192: 110056 | B192: Vodka et Alcool | C192: 00835229000308 | D192: Absolut vodka | E192: 750 | F192: 12 | G192: Courant achat continu | H192: Article actif
A193: 110221 | B193: Spiritueux 200 à 375 ML | C193: 00088352103297 | D193: St-Rémy Authentic VSOP brandy | E193: 375 | F193: 24 | G193: Courant achat continu | H193: Article actif
A194: 110486 | B194: Vin rg Australie | C194: 00080432126073 | D194: Cabernet-Sauvignon Bin 444 Wyndham Estate | E194: 750 | F194: 12 | G194: Courant achat continu | H194: Article en écoulement
A195: 111021 | B195: Gin | C195: 00622153139071 | D195: Gordon's London dry gin | E195: 1750 | F195: 6 | G195: Courant achat continu | H195: Article actif
A196: 113233 | B196: Brandy et Cognac | C196: 00814789003318 | D196: Chemineaud ***** brandy | E196: 1750 | F196: 6 | G196: Courant achat continu | H196: Article actif
A197: 113381 | B197: Vin rg France Bordeaux | C197: 03338836211107 | D197: Château de Cruzeau Pessac-Léognan | E197: 750 | F197: 12 | G197: Courant achat continu | H197: Article actif
A198: 113407 | B198: Vin rg France Vallée du Rhône | C198: 00089806011540 | D198: Ortas Tradition Rasteau | E198: 750 | F198: 12 | G198: Courant achat continu | H198: Article actif
A199: 114223 | B199: Vin bl France Bourgogne | C199: 03292060010045 | D199: Chablis Saint-Martin Domaine Laroche | E199: 750 | F199: 12 | G199: Spécialité achat continu | H199: Article actif
A200: 116038 | B200: Brandy et Cognac | C200: 05202795070755 | D200: Metaxa 7* Gold Label brandy | E200: 750 | F200: 12 | G200: Courant achat continu | H200: Article actif
... 1993 more rows
